Body Name,Body,Service Area Categorisation,Service Division Categorisation,Responsible Unit,Expenses Type,Detailed Expenses Type,Payment Date,Transaction Number,Payment Amount,Supplier Type,Supplier Name,Supplier Id
Portsmouth City Council,PCC,Housing Services,Homelessness,"Housing, Neighbourhood and Building Services",Premises-Related Expenditure,Rents,23-Feb-24,6766649,"-6,180.00",SUPPLIER,K H PROPERTY INVESTMENT LIMITED,300000020467836
Portsmouth City Council,PCC,Housing Services,Homelessness,"Housing, Neighbourhood and Building Services",Premises-Related Expenditure,Rents,23-Feb-24,6766649,"6,180.00",SUPPLIER,K H PROPERTY INVESTMENT LIMITED,300000020467836
Portsmouth City Council,PCC,Housing Services,Homelessness,"Housing, Neighbourhood and Building Services",Premises-Related Expenditure,Rents,23-Feb-24,6766649,"6,180.00",SUPPLIER,K H PROPERTY INVESTMENT LIMITED,300000020467836
Portsmouth City Council,PCC,Children's and Education Services,Special Schools,Children's Services and Education,Third Party Payments,Other establishments,23-Feb-24,6766527,"123,346.00",SUPPLIER,SOLENT ACADEMIES TRUST,300000020477417
Portsmouth City Council,PCC,Children's and Education Services,Special Schools,Children's Services and Education,Third Party Payments,Other establishments,23-Feb-24,6766527,"8,218.72",SUPPLIER,SOLENT ACADEMIES TRUST,300000020477417
Portsmouth City Council,PCC,Children's and Education Services,Special Schools,Children's Services and Education,Third Party Payments,Other establishments,26-Feb-24,6766728,-1,SUPPLIER,SOLENT ACADEMIES TRUST,300000020477417
Portsmouth City Council,PCC,Children's and Education Services,Special Schools,Children's Services and Education,Third Party Payments,Other establishments,26-Feb-24,6766728,0.24,SUPPLIER,SOLENT ACADEMIES TRUST,300000020477417
Portsmouth City Council,PCC,Children's and Education Services,Special Schools,Children's Services and Education,Third Party Payments,Other establishments,26-Feb-24,6766728,"246,489.00",SUPPLIER,SOLENT ACADEMIES TRUST,300000020477417
Portsmouth City Council,PCC,Children's and Education Services,Special Schools,Children's Services and Education,Third Party Payments,Other establishments,26-Feb-24,6766728,"1,230.00",SUPPLIER,SOLENT ACADEMIES TRUST,300000020477417
Portsmouth City Council,PCC,Children's and Education Services,Special Schools,Children's Services and Education,Third Party Payments,Other establishments,26-Feb-24,6766728,666.64,SUPPLIER,SOLENT ACADEMIES TRUST,300000020477417
Portsmouth City Council,PCC,Children's and Education Services,Special Schools,Children's Services and Education,Third Party Payments,Other establishments,26-Feb-24,6766728,"12,848.72",SUPPLIER,SOLENT ACADEMIES TRUST,300000020477417
Portsmouth City Council,PCC,Children's and Education Services,Special Schools,Children's Services and Education,Third Party Payments,Other establishments,23-Feb-24,6766525,"247,247.76",SUPPLIER,SOLENT ACADEMIES TRUST,300000020477417
Portsmouth City Council,PCC,Children's and Education Services,Special Schools,Children's Services and Education,Third Party Payments,Other establishments,23-Feb-24,6766525,"18,809.84",SUPPLIER,SOLENT ACADEMIES TRUST,300000020477417
Portsmouth City Council,PCC,Children's and Education Services,Special Schools,Children's Services and Education,Third Party Payments,Other establishments,23-Feb-24,6766525,"10,800.00",SUPPLIER,SOLENT ACADEMIES TRUST,300000020477417
Portsmouth City Council,PCC,Children's and Education Services,Special Schools,Children's Services and Education,Third Party Payments,Other establishments,23-Feb-24,6766525,"12,828.40",SUPPLIER,SOLENT ACADEMIES TRUST,300000020477417
Portsmouth City Council,PCC,Children's and Education Services,Special Schools,Children's Services and Education,Third Party Payments,Other establishments,23-Feb-24,6766525,978,SUPPLIER,SOLENT ACADEMIES TRUST,300000020477417
Portsmouth City Council,PCC,Children's and Education Services,Management and Support Services,Children's Services and Education,Third Party Payments,Other establishments,28-Feb-24,6767367,833.33,TRUST,ACADEMY TRUST - UNIVERSITY OF PORTSMOUTH,300000316357634
Portsmouth City Council,PCC,Housing Revenue Account,"Rents, Rates, Taxes and Other Charges","Housing, Neighbourhood and Building Services",Premises-Related Expenditure,Rates,23-Feb-24,6766674,124,OTHER LOCAL AUTHORITY,HAVANT BOROUGH COUNCIL,300000020457057
Portsmouth City Council,PCC,Housing Revenue Account,"Rents, Rates, Taxes and Other Charges","Housing, Neighbourhood and Building Services",Premises-Related Expenditure,Rates,23-Feb-24,6766674,138,OTHER LOCAL AUTHORITY,HAVANT BOROUGH COUNCIL,300000020457057
Portsmouth City Council,PCC,Housing Revenue Account,"Rents, Rates, Taxes and Other Charges","Housing, Neighbourhood and Building Services",Premises-Related Expenditure,Rates,23-Feb-24,6766674,324,OTHER LOCAL AUTHORITY,HAVANT BOROUGH COUNCIL,300000020457057
Portsmouth City Council,PCC,Housing Revenue Account,"Rents, Rates, Taxes and Other Charges","Housing, Neighbourhood and Building Services",Premises-Related Expenditure,Rates,23-Feb-24,6766674,127,OTHER LOCAL AUTHORITY,HAVANT BOROUGH COUNCIL,300000020457057
Portsmouth City Council,PCC,Housing Revenue Account,"Rents, Rates, Taxes and Other Charges","Housing, Neighbourhood and Building Services",Premises-Related Expenditure,Rates,23-Feb-24,6766674,134,OTHER LOCAL AUTHORITY,HAVANT BOROUGH COUNCIL,300000020457057
Portsmouth City Council,PCC,Children's and Education Services,Special Schools,Children's Services and Education,Third Party Payments,Other establishments,23-Feb-24,6766615,"48,397.86",SUPPLIER,THE DELTA EDUCATION TRUST,300000020481637
Portsmouth City Council,PCC,Children's and Education Services,Special Schools,Children's Services and Education,Third Party Payments,Other establishments,23-Feb-24,6766615,"3,034.40",SUPPLIER,THE DELTA EDUCATION TRUST,300000020481637
Portsmouth City Council,PCC,Children's and Education Services,Other Education and Community Budget,Children's Services and Education,Third Party Payments,Other establishments,26-Feb-24,6766728,"12,615.13",SUPPLIER,SOLENT ACADEMIES TRUST,300000020477417
Portsmouth City Council,PCC,Children's and Education Services,Other Education and Community Budget,Children's Services and Education,Third Party Payments,Other establishments,23-Feb-24,6766527,"9,074.02",SUPPLIER,SOLENT ACADEMIES TRUST,300000020477417
Portsmouth City Council,PCC,Children's and Education Services,Other Education and Community Budget,Children's Services and Education,Third Party Payments,Other establishments,23-Feb-24,6766525,"11,971.35",SUPPLIER,SOLENT ACADEMIES TRUST,300000020477417
Portsmouth City Council,PCC,Children's and Education Services,Other Education and Community Budget,Children's Services and Education,Third Party Payments,Other establishments,23-Feb-24,6766526,"13,225.95",SUPPLIER,THE DELTA EDUCATION TRUST,300000020481637
Portsmouth City Council,PCC,Children's and Education Services,Special Schools,Children's Services and Education,Third Party Payments,Other establishments,23-Feb-24,6766526,"128,704.80",SUPPLIER,THE DELTA EDUCATION TRUST,300000020481637
Portsmouth City Council,PCC,Children's and Education Services,Management and Support Services,Children's Services and Education,Third Party Payments,Other establishments,23-Feb-24,6766526,"20,204.80",SUPPLIER,THE DELTA EDUCATION TRUST,300000020481637
Portsmouth City Council,PCC,Children's and Education Services,Management and Support Services,Children's Services and Education,Third Party Payments,Other establishments,23-Feb-24,6766526,"4,800.00",SUPPLIER,THE DELTA EDUCATION TRUST,300000020481637
Portsmouth City Council,PCC,Children's and Education Services,Management and Support Services,Children's Services and Education,Third Party Payments,Other establishments,23-Feb-24,6766526,"52,800.00",SUPPLIER,THE DELTA EDUCATION TRUST,300000020481637
Portsmouth City Council,PCC,Children's and Education Services,Special Schools,Children's Services and Education,Third Party Payments,Other establishments,23-Feb-24,6766526,"1,795.20",SUPPLIER,THE DELTA EDUCATION TRUST,300000020481637
Portsmouth City Council,PCC,Children's and Education Services,Special Schools,Children's Services and Education,Third Party Payments,Other establishments,23-Feb-24,6766526,"7,217.60",SUPPLIER,THE DELTA EDUCATION TRUST,300000020481637
Portsmouth City Council,PCC,Children's and Education Services,Special Schools,Children's Services and Education,Third Party Payments,Other establishments,23-Feb-24,6766526,"5,357.84",SUPPLIER,THE DELTA EDUCATION TRUST,300000020481637
Portsmouth City Council,PCC,Children's and Education Services,Other Education and Community Budget,Children's Services and Education,Third Party Payments,Other establishments,23-Feb-24,6766526,"7,322.67",SUPPLIER,THE DELTA EDUCATION TRUST,300000020481637
Portsmouth City Council,PCC,Children's and Education Services,Special Schools,Children's Services and Education,Third Party Payments,Other establishments,05-Feb-24,6762831,"1,522.92",SUPPLIER,ACADEMY TRUST (UNIVERSITY OF CHICHESTER),300000020484342
Portsmouth City Council,PCC,Children's and Education Services,Other Education and Community Budget,Children's Services and Education,Third Party Payments,Other establishments,05-Feb-24,6762831,"2,869.10",SUPPLIER,ACADEMY TRUST (UNIVERSITY OF CHICHESTER),300000020484342
Portsmouth City Council,PCC,Housing Revenue Account,"Rents, Rates, Taxes and Other Charges","Housing, Neighbourhood and Building Services",Premises-Related Expenditure,Rates,23-Feb-24,6766674,224,OTHER LOCAL AUTHORITY,HAVANT BOROUGH COUNCIL,300000020457057
Portsmouth City Council,PCC,Housing Revenue Account,"Rents, Rates, Taxes and Other Charges","Housing, Neighbourhood and Building Services",Premises-Related Expenditure,Rates,23-Feb-24,6766674,197,OTHER LOCAL AUTHORITY,HAVANT BOROUGH COUNCIL,300000020457057
Portsmouth City Council,PCC,Housing Revenue Account,"Rents, Rates, Taxes and Other Charges","Housing, Neighbourhood and Building Services",Premises-Related Expenditure,Rates,23-Feb-24,6766674,144,OTHER LOCAL AUTHORITY,HAVANT BOROUGH COUNCIL,300000020457057
Portsmouth City Council,PCC,Housing Revenue Account,"Rents, Rates, Taxes and Other Charges","Housing, Neighbourhood and Building Services",Premises-Related Expenditure,Rates,23-Feb-24,6766674,652,OTHER LOCAL AUTHORITY,HAVANT BOROUGH COUNCIL,300000020457057
Portsmouth City Council,PCC,Housing Revenue Account,"Rents, Rates, Taxes and Other Charges","Housing, Neighbourhood and Building Services",Premises-Related Expenditure,Rates,23-Feb-24,6766674,169,OTHER LOCAL AUTHORITY,HAVANT BOROUGH COUNCIL,300000020457057
Portsmouth City Council,PCC,Highways and Transport Services,"Airports, Harbours and Toll Facilities",Portsmouth International Port,Premises-Related Expenditure,Energy costs,14-Feb-24,6764649,-6.12,LIMITED COMPANY,SEFE MARKETING AND TRADING LTD,300000250807105
Portsmouth City Council,PCC,Highways and Transport Services,"Airports, Harbours and Toll Facilities",Portsmouth International Port,Premises-Related Expenditure,Energy costs,14-Feb-24,6764649,-6.32,LIMITED COMPANY,SEFE MARKETING AND TRADING LTD,300000250807105
Portsmouth City Council,PCC,Highways and Transport Services,"Airports, Harbours and Toll Facilities",Portsmouth International Port,Premises-Related Expenditure,Energy costs,14-Feb-24,6764649,-6.12,LIMITED COMPANY,SEFE MARKETING AND TRADING LTD,300000250807105
Portsmouth City Council,PCC,Highways and Transport Services,"Airports, Harbours and Toll Facilities",Portsmouth International Port,Premises-Related Expenditure,Energy costs,14-Feb-24,6764649,-6.32,LIMITED COMPANY,SEFE MARKETING AND TRADING LTD,300000250807105
Portsmouth City Council,PCC,Highways and Transport Services,"Airports, Harbours and Toll Facilities",Portsmouth International Port,Premises-Related Expenditure,Energy costs,14-Feb-24,6764649,-6.32,LIMITED COMPANY,SEFE MARKETING AND TRADING LTD,300000250807105
Portsmouth City Council,PCC,Highways and Transport Services,"Airports, Harbours and Toll Facilities",Portsmouth International Port,Premises-Related Expenditure,Energy costs,14-Feb-24,6764649,-6.12,LIMITED COMPANY,SEFE MARKETING AND TRADING LTD,300000250807105
Portsmouth City Council,PCC,Highways and Transport Services,"Airports, Harbours and Toll Facilities",Portsmouth International Port,Premises-Related Expenditure,Energy costs,14-Feb-24,6764649,-6.32,LIMITED COMPANY,SEFE MARKETING AND TRADING LTD,300000250807105
Portsmouth City Council,PCC,Highways and Transport Services,"Airports, Harbours and Toll Facilities",Portsmouth International Port,Premises-Related Expenditure,Energy costs,14-Feb-24,6764649,-6.12,LIMITED COMPANY,SEFE MARKETING AND TRADING LTD,300000250807105
Portsmouth City Council,PCC,Highways and Transport Services,"Airports, Harbours and Toll Facilities",Portsmouth International Port,Premises-Related Expenditure,Energy costs,14-Feb-24,6764649,3.88,LIMITED COMPANY,SEFE MARKETING AND TRADING LTD,300000250807105
Portsmouth City Council,PCC,Housing Revenue Account,Special Services,"Housing, Neighbourhood and Building Services",Premises-Related Expenditure,Energy costs,14-Feb-24,6764649,-6.12,LIMITED COMPANY,SEFE MARKETING AND TRADING LTD,300000250807105
Portsmouth City Council,PCC,Housing Revenue Account,Special Services,"Housing, Neighbourhood and Building Services",Premises-Related Expenditure,Energy costs,14-Feb-24,6764649,-6.32,LIMITED COMPANY,SEFE MARKETING AND TRADING LTD,300000250807105
Portsmouth City Council,PCC,Housing Revenue Account,Special Services,"Housing, Neighbourhood and Building Services",Premises-Related Expenditure,Energy costs,14-Feb-24,6764649,-6.12,LIMITED COMPANY,SEFE MARKETING AND TRADING LTD,300000250807105
Portsmouth City Council,PCC,Housing Revenue Account,Special Services,"Housing, Neighbourhood and Building Services",Premises-Related Expenditure,Energy costs,14-Feb-24,6764649,"-13,159.64",LIMITED COMPANY,SEFE MARKETING AND TRADING LTD,300000250807105
Portsmouth City Council,PCC,Housing Revenue Account,Special Services,"Housing, Neighbourhood and Building Services",Premises-Related Expenditure,Energy costs,14-Feb-24,6764649,-6.32,LIMITED COMPANY,SEFE MARKETING AND TRADING LTD,300000250807105
Portsmouth City Council,PCC,Housing Revenue Account,Special Services,"Housing, Neighbourhood and Building Services",Premises-Related Expenditure,Energy costs,14-Feb-24,6764649,-6.12,LIMITED COMPANY,SEFE MARKETING AND TRADING LTD,300000250807105
Portsmouth City Council,PCC,Housing Revenue Account,Special Services,"Housing, Neighbourhood and Building Services",Premises-Related Expenditure,Energy costs,14-Feb-24,6764649,-6.32,LIMITED COMPANY,SEFE MARKETING AND TRADING LTD,300000250807105
Portsmouth City Council,PCC,Housing Revenue Account,Special Services,"Housing, Neighbourhood and Building Services",Premises-Related Expenditure,Energy costs,14-Feb-24,6764649,-6.12,LIMITED COMPANY,SEFE MARKETING AND TRADING LTD,300000250807105
Portsmouth City Council,PCC,Housing Revenue Account,Special Services,"Housing, Neighbourhood and Building Services",Premises-Related Expenditure,Energy costs,14-Feb-24,6764649,-6.22,LIMITED COMPANY,SEFE MARKETING AND TRADING LTD,300000250807105
Portsmouth City Council,PCC,Housing Revenue Account,Special Services,"Housing, Neighbourhood and Building Services",Premises-Related Expenditure,Energy costs,14-Feb-24,6764649,-11.84,LIMITED COMPANY,SEFE MARKETING AND TRADING LTD,300000250807105
Portsmouth City Council,PCC,Housing Revenue Account,Special Services,"Housing, Neighbourhood and Building Services",Premises-Related Expenditure,Energy costs,14-Feb-24,6764649,-6.22,LIMITED COMPANY,SEFE MARKETING AND TRADING LTD,300000250807105
Portsmouth City Council,PCC,Housing Revenue Account,Special Services,"Housing, Neighbourhood and Building Services",Premises-Related Expenditure,Energy costs,14-Feb-24,6764649,-6.02,LIMITED COMPANY,SEFE MARKETING AND TRADING LTD,300000250807105
Portsmouth City Council,PCC,Housing Revenue Account,Special Services,"Housing, Neighbourhood and Building Services",Premises-Related Expenditure,Energy costs,14-Feb-24,6764649,-6.22,LIMITED COMPANY,SEFE MARKETING AND TRADING LTD,300000250807105
Portsmouth City Council,PCC,Housing Revenue Account,Special Services,"Housing, Neighbourhood and Building Services",Premises-Related Expenditure,Energy costs,14-Feb-24,6764649,-70,LIMITED COMPANY,SEFE MARKETING AND TRADING LTD,300000250807105
Portsmouth City Council,PCC,Housing Revenue Account,Special Services,"Housing, Neighbourhood and Building Services",Premises-Related Expenditure,Energy costs,14-Feb-24,6764649,162.63,LIMITED COMPANY,SEFE MARKETING AND TRADING LTD,300000250807105
Portsmouth City Council,PCC,Housing Revenue Account,Special Services,"Housing, Neighbourhood and Building Services",Premises-Related Expenditure,Energy costs,14-Feb-24,6764649,-162.63,LIMITED COMPANY,SEFE MARKETING AND TRADING LTD,300000250807105
Portsmouth City Council,PCC,Central Services,"Registration of Births, Deaths and Marriages","Culture, Leisure & Regulatory Services",Premises-Related Expenditure,Energy costs,14-Feb-24,6764649,"1,074.74",LIMITED COMPANY,SEFE MARKETING AND TRADING LTD,300000250807105
Portsmouth City Council,PCC,Central Services,"Registration of Births, Deaths and Marriages","Culture, Leisure & Regulatory Services",Premises-Related Expenditure,Energy costs,14-Feb-24,6764649,"-1,074.74",LIMITED COMPANY,SEFE MARKETING AND TRADING LTD,300000250807105
Portsmouth City Council,PCC,Highways and Transport Services,"Airports, Harbours and Toll Facilities",Portsmouth International Port,Premises-Related Expenditure,Energy costs,14-Feb-24,6764649,-6,LIMITED COMPANY,SEFE MARKETING AND TRADING LTD,300000250807105
Portsmouth City Council,PCC,Highways and Transport Services,"Airports, Harbours and Toll Facilities",Portsmouth International Port,Premises-Related Expenditure,Energy costs,14-Feb-24,6764649,-6.2,LIMITED COMPANY,SEFE MARKETING AND TRADING LTD,300000250807105
Portsmouth City Council,PCC,Highways and Transport Services,"Airports, Harbours and Toll Facilities",Portsmouth International Port,Premises-Related Expenditure,Energy costs,14-Feb-24,6764649,-6,LIMITED COMPANY,SEFE MARKETING AND TRADING LTD,300000250807105
Portsmouth City Council,PCC,Highways and Transport Services,"Airports, Harbours and Toll Facilities",Portsmouth International Port,Premises-Related Expenditure,Energy costs,14-Feb-24,6764649,-6.2,LIMITED COMPANY,SEFE MARKETING AND TRADING LTD,300000250807105
Portsmouth City Council,PCC,Highways and Transport Services,"Airports, Harbours and Toll Facilities",Portsmouth International Port,Premises-Related Expenditure,Energy costs,14-Feb-24,6764649,-6.2,LIMITED COMPANY,SEFE MARKETING AND TRADING LTD,300000250807105
Portsmouth City Council,PCC,Highways and Transport Services,"Airports, Harbours and Toll Facilities",Portsmouth International Port,Premises-Related Expenditure,Energy costs,14-Feb-24,6764649,-6,LIMITED COMPANY,SEFE MARKETING AND TRADING LTD,300000250807105
Portsmouth City Council,PCC,Highways and Transport Services,"Airports, Harbours and Toll Facilities",Portsmouth International Port,Premises-Related Expenditure,Energy costs,14-Feb-24,6764649,-6.2,LIMITED COMPANY,SEFE MARKETING AND TRADING LTD,300000250807105
Portsmouth City Council,PCC,Highways and Transport Services,"Airports, Harbours and Toll Facilities",Portsmouth International Port,Premises-Related Expenditure,Energy costs,14-Feb-24,6764649,-6,LIMITED COMPANY,SEFE MARKETING AND TRADING LTD,300000250807105
Portsmouth City Council,PCC,Highways and Transport Services,"Airports, Harbours and Toll Facilities",Portsmouth International Port,Premises-Related Expenditure,Energy costs,14-Feb-24,6764649,4,LIMITED COMPANY,SEFE MARKETING AND TRADING LTD,300000250807105
Portsmouth City Council,PCC,Children's and Education Services,Other Education and Community Budget,Children's Services and Education,Premises-Related Expenditure,Energy costs,14-Feb-24,6764649,-214.88,LIMITED COMPANY,SEFE MARKETING AND TRADING LTD,300000250807105
Portsmouth City Council,PCC,Children's and Education Services,Other Education and Community Budget,Children's Services and Education,Premises-Related Expenditure,Energy costs,14-Feb-24,6764649,-80.23,LIMITED COMPANY,SEFE MARKETING AND TRADING LTD,300000250807105
Portsmouth City Council,PCC,Children's and Education Services,Other Education and Community Budget,Children's Services and Education,Premises-Related Expenditure,Energy costs,14-Feb-24,6764649,-20.13,LIMITED COMPANY,SEFE MARKETING AND TRADING LTD,300000250807105
Portsmouth City Council,PCC,Children's and Education Services,Other Education and Community Budget,Children's Services and Education,Premises-Related Expenditure,Energy costs,14-Feb-24,6764649,14.52,LIMITED COMPANY,SEFE MARKETING AND TRADING LTD,300000250807105
Portsmouth City Council,PCC,Children's and Education Services,Primary Schools,Children's Services and Education,Premises-Related Expenditure,Energy costs,14-Feb-24,6764649,-9.73,LIMITED COMPANY,SEFE MARKETING AND TRADING LTD,300000250807105
Portsmouth City Council,PCC,Children's and Education Services,Primary Schools,Children's Services and Education,Premises-Related Expenditure,Energy costs,14-Feb-24,6764649,-10.06,LIMITED COMPANY,SEFE MARKETING AND TRADING LTD,300000250807105
Portsmouth City Council,PCC,Children's and Education Services,Primary Schools,Children's Services and Education,Premises-Related Expenditure,Energy costs,14-Feb-24,6764649,-9.73,LIMITED COMPANY,SEFE MARKETING AND TRADING LTD,300000250807105
Portsmouth City Council,PCC,Children's and Education Services,Primary Schools,Children's Services and Education,Premises-Related Expenditure,Energy costs,14-Feb-24,6764649,-10.06,LIMITED COMPANY,SEFE MARKETING AND TRADING LTD,300000250807105
Portsmouth City Council,PCC,Children's and Education Services,Primary Schools,Children's Services and Education,Premises-Related Expenditure,Energy costs,14-Feb-24,6764649,-10.06,LIMITED COMPANY,SEFE MARKETING AND TRADING LTD,300000250807105
Portsmouth City Council,PCC,Children's and Education Services,Primary Schools,Children's Services and Education,Premises-Related Expenditure,Energy costs,14-Feb-24,6764649,-9.73,LIMITED COMPANY,SEFE MARKETING AND TRADING LTD,300000250807105
Portsmouth City Council,PCC,Children's and Education Services,Primary Schools,Children's Services and Education,Premises-Related Expenditure,Energy costs,14-Feb-24,6764649,-10.06,LIMITED COMPANY,SEFE MARKETING AND TRADING LTD,300000250807105
Portsmouth City Council,PCC,Children's and Education Services,Primary Schools,Children's Services and Education,Premises-Related Expenditure,Energy costs,14-Feb-24,6764649,-9.73,LIMITED COMPANY,SEFE MARKETING AND TRADING LTD,300000250807105
Portsmouth City Council,PCC,Children's and Education Services,Primary Schools,Children's Services and Education,Premises-Related Expenditure,Energy costs,14-Feb-24,6764649,-9.4,LIMITED COMPANY,SEFE MARKETING AND TRADING LTD,300000250807105
Portsmouth City Council,PCC,Children's and Education Services,Primary Schools,Children's Services and Education,Premises-Related Expenditure,Energy costs,14-Feb-24,6764649,-8.49,LIMITED COMPANY,SEFE MARKETING AND TRADING LTD,300000250807105
Portsmouth City Council,PCC,Children's and Education Services,Primary Schools,Children's Services and Education,Premises-Related Expenditure,Energy costs,14-Feb-24,6764649,-9.4,LIMITED COMPANY,SEFE MARKETING AND TRADING LTD,300000250807105
Portsmouth City Council,PCC,Children's and Education Services,Primary Schools,Children's Services and Education,Premises-Related Expenditure,Energy costs,14-Feb-24,6764649,-9.4,LIMITED COMPANY,SEFE MARKETING AND TRADING LTD,300000250807105
Portsmouth City Council,PCC,Children's and Education Services,Primary Schools,Children's Services and Education,Premises-Related Expenditure,Energy costs,14-Feb-24,6764649,-9.1,LIMITED COMPANY,SEFE MARKETING AND TRADING LTD,300000250807105
Portsmouth City Council,PCC,Children's and Education Services,Primary Schools,Children's Services and Education,Premises-Related Expenditure,Energy costs,14-Feb-24,6764649,-9.4,LIMITED COMPANY,SEFE MARKETING AND TRADING LTD,300000250807105
Portsmouth City Council,PCC,Children's and Education Services,Primary Schools,Children's Services and Education,Premises-Related Expenditure,Energy costs,14-Feb-24,6764649,-9.1,LIMITED COMPANY,SEFE MARKETING AND TRADING LTD,300000250807105
Portsmouth City Council,PCC,Children's and Education Services,Primary Schools,Children's Services and Education,Premises-Related Expenditure,Energy costs,14-Feb-24,6764649,6.07,LIMITED COMPANY,SEFE MARKETING AND TRADING LTD,300000250807105
Portsmouth City Council,PCC,Children's and Education Services,Primary Schools,Children's Services and Education,Premises-Related Expenditure,Energy costs,14-Feb-24,6764649,-188.85,LIMITED COMPANY,SEFE MARKETING AND TRADING LTD,300000250807105
Portsmouth City Council,PCC,Other,Suspense and Capital Schemes,Capital - Housing and Tackling Homelessness,Capital Charges,REFCUS,07-Feb-24,6763446,"4,690.00",LIMITED COMPANY,LIFTECH SYSTEMS (SE) LIMITED,300000020461913
Portsmouth City Council,PCC,Children's and Education Services,Children Looked After,Children's Services and Education,Third Party Payments,Other establishments,02-Feb-24,6762552,"1,070.71",LIMITED COMPANY,ALPINE4CARE SERVICES LTD,300000626937773
Portsmouth City Council,PCC,Children's and Education Services,Children Looked After,Children's Services and Education,Third Party Payments,Other establishments,02-Feb-24,6762552,"2,141.43",LIMITED COMPANY,ALPINE4CARE SERVICES LTD,300000626937773
Portsmouth City Council,PCC,Children's and Education Services,Children Looked After,Children's Services and Education,Third Party Payments,Other establishments,02-Feb-24,6762552,"7,495.00",LIMITED COMPANY,ALPINE4CARE SERVICES LTD,300000626937773
Portsmouth City Council,PCC,Children's and Education Services,Children Looked After,Children's Services and Education,Third Party Payments,Other establishments,02-Feb-24,6762552,"7,495.00",LIMITED COMPANY,ALPINE4CARE SERVICES LTD,300000626937773
Portsmouth City Council,PCC,Children's and Education Services,Children Looked After,Children's Services and Education,Third Party Payments,Other establishments,02-Feb-24,6762552,"7,495.00",LIMITED COMPANY,ALPINE4CARE SERVICES LTD,300000626937773
Portsmouth City Council,PCC,Children's and Education Services,Children Looked After,Children's Services and Education,Third Party Payments,Other establishments,02-Feb-24,6762552,"7,495.00",LIMITED COMPANY,ALPINE4CARE SERVICES LTD,300000626937773
Portsmouth City Council,PCC,Children's and Education Services,Children Looked After,Children's Services and Education,Third Party Payments,Other establishments,02-Feb-24,6762553,"1,080.00",LIMITED COMPANY,UNITY ONE CARE SOLUTION LTD,300000632417516
Portsmouth City Council,PCC,Children's and Education Services,Children Looked After,Children's Services and Education,Third Party Payments,Other establishments,02-Feb-24,6762553,"3,240.00",LIMITED COMPANY,UNITY ONE CARE SOLUTION LTD,300000632417516
Portsmouth City Council,PCC,Children's and Education Services,Children Looked After,Children's Services and Education,Third Party Payments,Other establishments,06-Feb-24,6762888,"2,228.57",LIMITED COMPANY,FOUNDATION FOR FAMILIES LTD,300000580689662
Portsmouth City Council,PCC,Children's and Education Services,Children Looked After,Children's Services and Education,Third Party Payments,Other establishments,06-Feb-24,6762888,"2,971.43",LIMITED COMPANY,FOUNDATION FOR FAMILIES LTD,300000580689662
Portsmouth City Council,PCC,Children's and Education Services,Children Looked After,Children's Services and Education,Third Party Payments,Other establishments,06-Feb-24,6762888,"5,200.00",LIMITED COMPANY,FOUNDATION FOR FAMILIES LTD,300000580689662
Portsmouth City Council,PCC,Children's and Education Services,Children Looked After,Children's Services and Education,Third Party Payments,Other establishments,06-Feb-24,6762888,"5,200.00",LIMITED COMPANY,FOUNDATION FOR FAMILIES LTD,300000580689662
Portsmouth City Council,PCC,Children's and Education Services,Children Looked After,Children's Services and Education,Third Party Payments,Other establishments,06-Feb-24,6762888,"5,200.00",LIMITED COMPANY,FOUNDATION FOR FAMILIES LTD,300000580689662
Portsmouth City Council,PCC,Children's and Education Services,Family Support Services,Children's Services and Education,Third Party Payments,Other establishments,02-Feb-24,6762535,"1,611.00",LIMITED COMPANY,SOUTHSEA BOOKINGS LIMITED,300000515220928
Portsmouth City Council,PCC,Children's and Education Services,Asylum seekers,Children's Services and Education,Third Party Payments,Other establishments,07-Feb-24,6763288,278.57,SUPPLIER,BE MY FAMILY FOSTERING AGENCY LTD,300000449800391
Portsmouth City Council,PCC,Children's and Education Services,Asylum seekers,Children's Services and Education,Third Party Payments,Other establishments,07-Feb-24,6763288,139.29,SUPPLIER,BE MY FAMILY FOSTERING AGENCY LTD,300000449800391
Portsmouth City Council,PCC,Children's and Education Services,Asylum seekers,Children's Services and Education,Third Party Payments,Other establishments,07-Feb-24,6763288,278.57,SUPPLIER,BE MY FAMILY FOSTERING AGENCY LTD,300000449800391
Portsmouth City Council,PCC,Children's and Education Services,Asylum seekers,Children's Services and Education,Third Party Payments,Other establishments,07-Feb-24,6763288,975,SUPPLIER,BE MY FAMILY FOSTERING AGENCY LTD,300000449800391
Portsmouth City Council,PCC,Children's and Education Services,Asylum seekers,Children's Services and Education,Third Party Payments,Other establishments,07-Feb-24,6763288,975,SUPPLIER,BE MY FAMILY FOSTERING AGENCY LTD,300000449800391
Portsmouth City Council,PCC,Children's and Education Services,Asylum seekers,Children's Services and Education,Third Party Payments,Other establishments,07-Feb-24,6763288,975,SUPPLIER,BE MY FAMILY FOSTERING AGENCY LTD,300000449800391
Portsmouth City Council,PCC,Children's and Education Services,Asylum seekers,Children's Services and Education,Third Party Payments,Other establishments,07-Feb-24,6763288,975,SUPPLIER,BE MY FAMILY FOSTERING AGENCY LTD,300000449800391
Portsmouth City Council,PCC,Children's and Education Services,Children Looked After,Children's Services and Education,Third Party Payments,Other establishments,08-Feb-24,6763699,-0.26,SUPPLIER,BLUE SKY FOSTERING,300000020464936
Portsmouth City Council,PCC,Children's and Education Services,Children Looked After,Children's Services and Education,Third Party Payments,Other establishments,08-Feb-24,6763699,441.71,SUPPLIER,BLUE SKY FOSTERING,300000020464936
Portsmouth City Council,PCC,Children's and Education Services,Children Looked After,Children's Services and Education,Third Party Payments,Other establishments,08-Feb-24,6763699,662.57,SUPPLIER,BLUE SKY FOSTERING,300000020464936
Portsmouth City Council,PCC,Children's and Education Services,Children Looked After,Children's Services and Education,Third Party Payments,Other establishments,08-Feb-24,6763699,773,SUPPLIER,BLUE SKY FOSTERING,300000020464936
Portsmouth City Council,PCC,Children's and Education Services,Children Looked After,Children's Services and Education,Third Party Payments,Other establishments,08-Feb-24,6763699,773,SUPPLIER,BLUE SKY FOSTERING,300000020464936
Portsmouth City Council,PCC,Children's and Education Services,Children Looked After,Children's Services and Education,Third Party Payments,Other establishments,08-Feb-24,6763699,773,SUPPLIER,BLUE SKY FOSTERING,300000020464936
Portsmouth City Council,PCC,Children's and Education Services,Children Looked After,Children's Services and Education,Third Party Payments,Other establishments,08-Feb-24,6763699,-0.26,SUPPLIER,BLUE SKY FOSTERING,300000020464936
Portsmouth City Council,PCC,Children's and Education Services,Children Looked After,Children's Services and Education,Third Party Payments,Other establishments,08-Feb-24,6763699,441.71,SUPPLIER,BLUE SKY FOSTERING,300000020464936
Portsmouth City Council,PCC,Children's and Education Services,Children Looked After,Children's Services and Education,Third Party Payments,Other establishments,08-Feb-24,6763699,662.57,SUPPLIER,BLUE SKY FOSTERING,300000020464936
Portsmouth City Council,PCC,Children's and Education Services,Children Looked After,Children's Services and Education,Third Party Payments,Other establishments,08-Feb-24,6763699,773,SUPPLIER,BLUE SKY FOSTERING,300000020464936
Portsmouth City Council,PCC,Children's and Education Services,Children Looked After,Children's Services and Education,Third Party Payments,Other establishments,08-Feb-24,6763699,773,SUPPLIER,BLUE SKY FOSTERING,300000020464936
Portsmouth City Council,PCC,Children's and Education Services,Children Looked After,Children's Services and Education,Third Party Payments,Other establishments,08-Feb-24,6763699,773,SUPPLIER,BLUE SKY FOSTERING,300000020464936
Portsmouth City Council,PCC,Children's and Education Services,Children Looked After,Children's Services and Education,Third Party Payments,Other establishments,08-Feb-24,6763623,-108.41,SUPPLIER,ACORN CARE AND EDUCATION LTD,300000020481370
Portsmouth City Council,PCC,Children's and Education Services,Children Looked After,Children's Services and Education,Third Party Payments,Other establishments,08-Feb-24,6763623,585,SUPPLIER,ACORN CARE AND EDUCATION LTD,300000020481370
Portsmouth City Council,PCC,Children's and Education Services,Children Looked After,Children's Services and Education,Third Party Payments,Other establishments,08-Feb-24,6763623,877.5,SUPPLIER,ACORN CARE AND EDUCATION LTD,300000020481370
Portsmouth City Council,PCC,Children's and Education Services,Children Looked After,Children's Services and Education,Third Party Payments,Other establishments,08-Feb-24,6763623,"1,023.75",SUPPLIER,ACORN CARE AND EDUCATION LTD,300000020481370
Portsmouth City Council,PCC,Children's and Education Services,Children Looked After,Children's Services and Education,Third Party Payments,Other establishments,08-Feb-24,6763623,"1,023.75",SUPPLIER,ACORN CARE AND EDUCATION LTD,300000020481370
Portsmouth City Council,PCC,Children's and Education Services,Children Looked After,Children's Services and Education,Third Party Payments,Other establishments,08-Feb-24,6763623,"1,023.75",SUPPLIER,ACORN CARE AND EDUCATION LTD,300000020481370
Portsmouth City Council,PCC,Children's and Education Services,Children Looked After,Children's Services and Education,Third Party Payments,Other establishments,08-Feb-24,6763623,"2,266.07",SUPPLIER,ACORN CARE AND EDUCATION LTD,300000020481370
Portsmouth City Council,PCC,Children's and Education Services,Children Looked After,Children's Services and Education,Third Party Payments,Other establishments,08-Feb-24,6763623,"2,266.07",SUPPLIER,ACORN CARE AND EDUCATION LTD,300000020481370
Portsmouth City Council,PCC,Children's and Education Services,Children Looked After,Children's Services and Education,Third Party Payments,Other establishments,08-Feb-24,6763623,"3,399.11",SUPPLIER,ACORN CARE AND EDUCATION LTD,300000020481370
Portsmouth City Council,PCC,Children's and Education Services,Children Looked After,Children's Services and Education,Third Party Payments,Other establishments,08-Feb-24,6763623,"3,399.11",SUPPLIER,ACORN CARE AND EDUCATION LTD,300000020481370
Portsmouth City Council,PCC,Children's and Education Services,Children Looked After,Children's Services and Education,Third Party Payments,Other establishments,08-Feb-24,6763623,"3,965.63",SUPPLIER,ACORN CARE AND EDUCATION LTD,300000020481370
Portsmouth City Council,PCC,Children's and Education Services,Children Looked After,Children's Services and Education,Third Party Payments,Other establishments,08-Feb-24,6763623,"3,965.63",SUPPLIER,ACORN CARE AND EDUCATION LTD,300000020481370
Portsmouth City Council,PCC,Children's and Education Services,Children Looked After,Children's Services and Education,Third Party Payments,Other establishments,08-Feb-24,6763623,"3,965.63",SUPPLIER,ACORN CARE AND EDUCATION LTD,300000020481370
Portsmouth City Council,PCC,Children's and Education Services,Children Looked After,Children's Services and Education,Third Party Payments,Other establishments,08-Feb-24,6763623,"3,965.63",SUPPLIER,ACORN CARE AND EDUCATION LTD,300000020481370
Portsmouth City Council,PCC,Children's and Education Services,Children Looked After,Children's Services and Education,Third Party Payments,Other establishments,08-Feb-24,6763623,"3,965.63",SUPPLIER,ACORN CARE AND EDUCATION LTD,300000020481370
Portsmouth City Council,PCC,Children's and Education Services,Children Looked After,Children's Services and Education,Third Party Payments,Other establishments,08-Feb-24,6763623,"3,965.63",SUPPLIER,ACORN CARE AND EDUCATION LTD,300000020481370
Portsmouth City Council,PCC,Children's and Education Services,Children Looked After,Children's Services and Education,Third Party Payments,Other establishments,08-Feb-24,6763687,493.28,SUPPLIER,FOSTER CARE ASSOCIATES LTD,300000020461175
Portsmouth City Council,PCC,Children's and Education Services,Children Looked After,Children's Services and Education,Third Party Payments,Other establishments,08-Feb-24,6763687,739.92,SUPPLIER,FOSTER CARE ASSOCIATES LTD,300000020461175
Portsmouth City Council,PCC,Children's and Education Services,Children Looked After,Children's Services and Education,Third Party Payments,Other establishments,08-Feb-24,6763687,863.24,SUPPLIER,FOSTER CARE ASSOCIATES LTD,300000020461175
Portsmouth City Council,PCC,Children's and Education Services,Children Looked After,Children's Services and Education,Third Party Payments,Other establishments,08-Feb-24,6763687,863.24,SUPPLIER,FOSTER CARE ASSOCIATES LTD,300000020461175
Portsmouth City Council,PCC,Children's and Education Services,Children Looked After,Children's Services and Education,Third Party Payments,Other establishments,08-Feb-24,6763687,863.24,SUPPLIER,FOSTER CARE ASSOCIATES LTD,300000020461175
Portsmouth City Council,PCC,Children's and Education Services,Children Looked After,Children's Services and Education,Third Party Payments,Other establishments,08-Feb-24,6763687,526.92,SUPPLIER,FOSTER CARE ASSOCIATES LTD,300000020461175
Portsmouth City Council,PCC,Children's and Education Services,Children Looked After,Children's Services and Education,Third Party Payments,Other establishments,08-Feb-24,6763687,790.38,SUPPLIER,FOSTER CARE ASSOCIATES LTD,300000020461175
Portsmouth City Council,PCC,Children's and Education Services,Children Looked After,Children's Services and Education,Third Party Payments,Other establishments,08-Feb-24,6763687,922.11,SUPPLIER,FOSTER CARE ASSOCIATES LTD,300000020461175
Portsmouth City Council,PCC,Children's and Education Services,Children Looked After,Children's Services and Education,Third Party Payments,Other establishments,08-Feb-24,6763687,922.11,SUPPLIER,FOSTER CARE ASSOCIATES LTD,300000020461175
Portsmouth City Council,PCC,Children's and Education Services,Children Looked After,Children's Services and Education,Third Party Payments,Other establishments,08-Feb-24,6763687,922.11,SUPPLIER,FOSTER CARE ASSOCIATES LTD,300000020461175
Portsmouth City Council,PCC,Adult Social Care,Social Support - Support for Carer,Adult Care,Third Party Payments,Other establishments,23-Feb-24,6766508,367.2,PRIVATE PROVIDER,Classified as 'personal data' (under the Data Protection Act 2018),300000020460102
Portsmouth City Council,PCC,Adult Social Care,Physical Support Adults (18 - 64),Adult Care,Third Party Payments,Other establishments,23-Feb-24,6766508,"1,833.00",PRIVATE PROVIDER,Classified as 'personal data' (under the Data Protection Act 2018),300000020460102
Portsmouth City Council,PCC,Adult Social Care,Learning Disability Support Adults (18 - 64),Adult Care,Third Party Payments,Other establishments,23-Feb-24,6766678,"1,337.80",PRIVATE PROVIDER,Classified as 'personal data' (under the Data Protection Act 2018),300000020481843
Portsmouth City Council,PCC,Adult Social Care,Physical Support Adults (18 - 64),Adult Care,Third Party Payments,Other establishments,23-Feb-24,6766680,647.28,PRIVATE PROVIDER,Classified as 'personal data' (under the Data Protection Act 2018),300000020483065
Portsmouth City Council,PCC,Adult Social Care,Physical Support Adults (18 - 64),Adult Care,Third Party Payments,Other establishments,23-Feb-24,6766505,516.12,PRIVATE PROVIDER,Classified as 'personal data' (under the Data Protection Act 2018),300000020480632
Portsmouth City Council,PCC,Adult Social Care,Social Care Activities,Adult Care,Third Party Payments,Other establishments,23-Feb-24,6766677,"3,000.00",PRIVATE PROVIDER,Classified as 'personal data' (under the Data Protection Act 2018),300000020480170
Portsmouth City Council,PCC,Adult Social Care,Support with Memory and Cognition Older People (65 - 74),Adult Care,Supplies and Services,Communications and computing,27-Feb-24,6766872,440,SUPPLIER,ACCENT NETWORKS LTD,300000020478970
Portsmouth City Council,PCC,Adult Social Care,Commissioning & service delivery,Adult Care,Employees,Indirect employee expenses,01-Feb-24,6762337,"-3,000.00",SUPPLIER,ACCESS UK LTD,300000020479657
Portsmouth City Council,PCC,Adult Social Care,Commissioning & service delivery,Adult Care,Employees,Indirect employee expenses,01-Feb-24,6762337,"1,000.00",SUPPLIER,ACCESS UK LTD,300000020479657
Portsmouth City Council,PCC,Adult Social Care,Commissioning & service delivery,Adult Care,Employees,Indirect employee expenses,01-Feb-24,6762337,"2,000.00",SUPPLIER,ACCESS UK LTD,300000020479657
Portsmouth City Council,PCC,Adult Social Care,Commissioning & service delivery,Adult Care,Employees,Indirect employee expenses,01-Feb-24,6762337,"3,000.00",SUPPLIER,ACCESS UK LTD,300000020479657
Portsmouth City Council,PCC,Adult Social Care,Learning Disabilty Support Older People (65 - 74),Adult Care,Third Party Payments,Joint authorities,12-Feb-24,6763986,968,SUPPLIER,ACHIEVE TOGETHER LIMITED,300000020469986
Portsmouth City Council,PCC,Adult Social Care,Learning Disability Support Adults (18 - 64),Adult Care,Third Party Payments,Other establishments,12-Feb-24,6763986,"7,271.17",SUPPLIER,ACHIEVE TOGETHER LIMITED,300000020469986
Portsmouth City Council,PCC,Adult Social Care,Learning Disability Support Adults (18 - 64),Adult Care,Third Party Payments,Other establishments,12-Feb-24,6763986,"7,288.86",SUPPLIER,ACHIEVE TOGETHER LIMITED,300000020469986
Portsmouth City Council,PCC,Adult Social Care,Learning Disabilty Support Older People (65 - 74),Adult Care,Third Party Payments,Joint authorities,12-Feb-24,6763986,"8,443.06",SUPPLIER,ACHIEVE TOGETHER LIMITED,300000020469986
Portsmouth City Council,PCC,Adult Social Care,Learning Disability Support Adults (18 - 64),Adult Care,Third Party Payments,Other establishments,12-Feb-24,6763986,"8,824.70",SUPPLIER,ACHIEVE TOGETHER LIMITED,300000020469986
Portsmouth City Council,PCC,Adult Social Care,Learning Disability Support Adults (18 - 64),Adult Care,Third Party Payments,Other establishments,12-Feb-24,6763986,"9,633.22",SUPPLIER,ACHIEVE TOGETHER LIMITED,300000020469986
Portsmouth City Council,PCC,Adult Social Care,Learning Disability Support Adults (18 - 64),Adult Care,Third Party Payments,Other establishments,12-Feb-24,6763986,"15,308.23",SUPPLIER,ACHIEVE TOGETHER LIMITED,300000020469986
Portsmouth City Council,PCC,Adult Social Care,Learning Disability Support Adults (18 - 64),Adult Care,Third Party Payments,Other establishments,23-Feb-24,6766617,-581.54,SUPPLIER,ACHIEVE TOGETHER LIMITED,300000020469986
Portsmouth City Council,PCC,Adult Social Care,Learning Disability Support Adults (18 - 64),Adult Care,Third Party Payments,Other establishments,23-Feb-24,6766617,348.84,SUPPLIER,ACHIEVE TOGETHER LIMITED,300000020469986
Portsmouth City Council,PCC,Adult Social Care,Learning Disabilty Support Older People (65 - 74),Adult Care,Third Party Payments,Joint authorities,23-Feb-24,6766617,447.43,SUPPLIER,ACHIEVE TOGETHER LIMITED,300000020469986
Portsmouth City Council,PCC,Adult Social Care,Learning Disability Support Adults (18 - 64),Adult Care,Third Party Payments,Other establishments,23-Feb-24,6766617,540,SUPPLIER,ACHIEVE TOGETHER LIMITED,300000020469986
Portsmouth City Council,PCC,Adult Social Care,Learning Disability Support Adults (18 - 64),Adult Care,Third Party Payments,Other establishments,23-Feb-24,6766617,581.54,SUPPLIER,ACHIEVE TOGETHER LIMITED,300000020469986
Portsmouth City Council,PCC,Adult Social Care,Learning Disability Support Adults (18 - 64),Adult Care,Third Party Payments,Other establishments,23-Feb-24,6766617,722.6,SUPPLIER,ACHIEVE TOGETHER LIMITED,300000020469986
Portsmouth City Council,PCC,Housing Revenue Account,Supervision and Management,"Housing, Neighbourhood and Building Services",Premises-Related Expenditure,Energy costs,14-Feb-24,6764649,349.63,LIMITED COMPANY,SEFE MARKETING AND TRADING LTD,300000250807105
Portsmouth City Council,PCC,Children's and Education Services,Primary Schools,Children's Services and Education,Premises-Related Expenditure,Energy costs,14-Feb-24,6764649,80.31,LIMITED COMPANY,SEFE MARKETING AND TRADING LTD,300000250807105
Portsmouth City Council,PCC,Housing Revenue Account,Special Services,"Housing, Neighbourhood and Building Services",Premises-Related Expenditure,Energy costs,14-Feb-24,6764649,537.82,LIMITED COMPANY,SEFE MARKETING AND TRADING LTD,300000250807105
Portsmouth City Council,PCC,Children's and Education Services,Primary Schools,Children's Services and Education,Premises-Related Expenditure,Energy costs,14-Feb-24,6764649,"1,107.55",LIMITED COMPANY,SEFE MARKETING AND TRADING LTD,300000250807105
Portsmouth City Council,PCC,Children's and Education Services,Primary Schools,Children's Services and Education,Premises-Related Expenditure,Energy costs,14-Feb-24,6764649,51.96,LIMITED COMPANY,SEFE MARKETING AND TRADING LTD,300000250807105
Portsmouth City Council,PCC,Housing Revenue Account,Special Services,"Housing, Neighbourhood and Building Services",Premises-Related Expenditure,Energy costs,14-Feb-24,6764649,25.09,LIMITED COMPANY,SEFE MARKETING AND TRADING LTD,300000250807105
Portsmouth City Council,PCC,Housing Revenue Account,Special Services,"Housing, Neighbourhood and Building Services",Premises-Related Expenditure,Energy costs,14-Feb-24,6764649,219.94,LIMITED COMPANY,SEFE MARKETING AND TRADING LTD,300000250807105
Portsmouth City Council,PCC,Housing Revenue Account,Special Services,"Housing, Neighbourhood and Building Services",Premises-Related Expenditure,Energy costs,14-Feb-24,6764649,162.63,LIMITED COMPANY,SEFE MARKETING AND TRADING LTD,300000250807105
Portsmouth City Council,PCC,Environmental and Regulatory Services,"Cemetery, Cremation and Mortuary Services","Culture, Leisure & Regulatory Services",Premises-Related Expenditure,Energy costs,14-Feb-24,6764649,470.71,LIMITED COMPANY,SEFE MARKETING AND TRADING LTD,300000250807105
Portsmouth City Council,PCC,Housing Revenue Account,Special Services,"Housing, Neighbourhood and Building Services",Premises-Related Expenditure,Energy costs,14-Feb-24,6764649,71.62,LIMITED COMPANY,SEFE MARKETING AND TRADING LTD,300000250807105
Portsmouth City Council,PCC,Housing Revenue Account,Special Services,"Housing, Neighbourhood and Building Services",Premises-Related Expenditure,Energy costs,14-Feb-24,6764649,322.4,LIMITED COMPANY,SEFE MARKETING AND TRADING LTD,300000250807105
Portsmouth City Council,PCC,Housing Revenue Account,Special Services,"Housing, Neighbourhood and Building Services",Premises-Related Expenditure,Energy costs,14-Feb-24,6764649,599.77,LIMITED COMPANY,SEFE MARKETING AND TRADING LTD,300000250807105
Portsmouth City Council,PCC,Children's and Education Services,Primary Schools,Children's Services and Education,Premises-Related Expenditure,Energy costs,14-Feb-24,6764649,"1,389.89",LIMITED COMPANY,SEFE MARKETING AND TRADING LTD,300000250807105
Portsmouth City Council,PCC,Children's and Education Services,Children Looked After,Children's Services and Education,Third Party Payments,Other establishments,09-Feb-24,6763747,511.44,SUPPLIER,FOOTPRINTS FOSTER CARE LIMITED,300000020467393
Portsmouth City Council,PCC,Children's and Education Services,Children Looked After,Children's Services and Education,Third Party Payments,Other establishments,09-Feb-24,6763747,767.16,SUPPLIER,FOOTPRINTS FOSTER CARE LIMITED,300000020467393
Portsmouth City Council,PCC,Children's and Education Services,Children Looked After,Children's Services and Education,Third Party Payments,Other establishments,09-Feb-24,6763747,895.02,SUPPLIER,FOOTPRINTS FOSTER CARE LIMITED,300000020467393
Portsmouth City Council,PCC,Children's and Education Services,Children Looked After,Children's Services and Education,Third Party Payments,Other establishments,09-Feb-24,6763747,895.02,SUPPLIER,FOOTPRINTS FOSTER CARE LIMITED,300000020467393
Portsmouth City Council,PCC,Children's and Education Services,Children Looked After,Children's Services and Education,Third Party Payments,Other establishments,09-Feb-24,6763747,895.02,SUPPLIER,FOOTPRINTS FOSTER CARE LIMITED,300000020467393
Portsmouth City Council,PCC,Children's and Education Services,Children Looked After,Children's Services and Education,Third Party Payments,Other establishments,09-Feb-24,6763747,0.08,SUPPLIER,FOOTPRINTS FOSTER CARE LIMITED,300000020467393
Portsmouth City Council,PCC,Children's and Education Services,Children Looked After,Children's Services and Education,Third Party Payments,Other establishments,09-Feb-24,6763747,490.97,SUPPLIER,FOOTPRINTS FOSTER CARE LIMITED,300000020467393
Portsmouth City Council,PCC,Children's and Education Services,Children Looked After,Children's Services and Education,Third Party Payments,Other establishments,09-Feb-24,6763747,736.46,SUPPLIER,FOOTPRINTS FOSTER CARE LIMITED,300000020467393
Portsmouth City Council,PCC,Children's and Education Services,Children Looked After,Children's Services and Education,Third Party Payments,Other establishments,09-Feb-24,6763747,859.2,SUPPLIER,FOOTPRINTS FOSTER CARE LIMITED,300000020467393
Portsmouth City Council,PCC,Children's and Education Services,Children Looked After,Children's Services and Education,Third Party Payments,Other establishments,09-Feb-24,6763747,859.2,SUPPLIER,FOOTPRINTS FOSTER CARE LIMITED,300000020467393
Portsmouth City Council,PCC,Children's and Education Services,Children Looked After,Children's Services and Education,Third Party Payments,Other establishments,09-Feb-24,6763747,859.2,SUPPLIER,FOOTPRINTS FOSTER CARE LIMITED,300000020467393
Portsmouth City Council,PCC,Children's and Education Services,Children Looked After,Children's Services and Education,Third Party Payments,Other establishments,09-Feb-24,6763747,0.08,SUPPLIER,FOOTPRINTS FOSTER CARE LIMITED,300000020467393
Portsmouth City Council,PCC,Children's and Education Services,Children Looked After,Children's Services and Education,Third Party Payments,Other establishments,09-Feb-24,6763747,490.97,SUPPLIER,FOOTPRINTS FOSTER CARE LIMITED,300000020467393
Portsmouth City Council,PCC,Children's and Education Services,Children Looked After,Children's Services and Education,Third Party Payments,Other establishments,09-Feb-24,6763747,736.46,SUPPLIER,FOOTPRINTS FOSTER CARE LIMITED,300000020467393
Portsmouth City Council,PCC,Children's and Education Services,Children Looked After,Children's Services and Education,Third Party Payments,Other establishments,09-Feb-24,6763747,859.2,SUPPLIER,FOOTPRINTS FOSTER CARE LIMITED,300000020467393
Portsmouth City Council,PCC,Children's and Education Services,Children Looked After,Children's Services and Education,Third Party Payments,Other establishments,09-Feb-24,6763747,859.2,SUPPLIER,FOOTPRINTS FOSTER CARE LIMITED,300000020467393
Portsmouth City Council,PCC,Children's and Education Services,Children Looked After,Children's Services and Education,Third Party Payments,Other establishments,09-Feb-24,6763747,859.2,SUPPLIER,FOOTPRINTS FOSTER CARE LIMITED,300000020467393
Portsmouth City Council,PCC,Children's and Education Services,Children Looked After,Children's Services and Education,Third Party Payments,Other establishments,09-Feb-24,6763734,-3.6,SUPPLIER,FOSTERING SOLUTIONS,300000009793967
Portsmouth City Council,PCC,Children's and Education Services,Children Looked After,Children's Services and Education,Third Party Payments,Other establishments,09-Feb-24,6763734,730.38,SUPPLIER,FOSTERING SOLUTIONS,300000009793967
Portsmouth City Council,PCC,Children's and Education Services,Children Looked After,Children's Services and Education,Third Party Payments,Other establishments,09-Feb-24,6763734,730.38,SUPPLIER,FOSTERING SOLUTIONS,300000009793967
Portsmouth City Council,PCC,Children's and Education Services,Children Looked After,Children's Services and Education,Third Party Payments,Other establishments,09-Feb-24,6763734,728.58,SUPPLIER,FOSTERING SOLUTIONS,300000009793967
Portsmouth City Council,PCC,Children's and Education Services,Children Looked After,Children's Services and Education,Third Party Payments,Other establishments,09-Feb-24,6763734,728.58,SUPPLIER,FOSTERING SOLUTIONS,300000009793967
Portsmouth City Council,PCC,Children's and Education Services,Children Looked After,Children's Services and Education,Third Party Payments,Other establishments,09-Feb-24,6763734,-0.05,SUPPLIER,FOSTERING SOLUTIONS,300000009793967
Portsmouth City Council,PCC,Children's and Education Services,Children Looked After,Children's Services and Education,Third Party Payments,Other establishments,09-Feb-24,6763734,714.29,SUPPLIER,FOSTERING SOLUTIONS,300000009793967
Portsmouth City Council,PCC,Children's and Education Services,Children Looked After,Children's Services and Education,Third Party Payments,Other establishments,09-Feb-24,6763734,"1,071.43",SUPPLIER,FOSTERING SOLUTIONS,300000009793967
Portsmouth City Council,PCC,Children's and Education Services,Children Looked After,Children's Services and Education,Third Party Payments,Other establishments,09-Feb-24,6763734,"1,250.00",SUPPLIER,FOSTERING SOLUTIONS,300000009793967
Portsmouth City Council,PCC,Children's and Education Services,Children Looked After,Children's Services and Education,Third Party Payments,Other establishments,09-Feb-24,6763734,"1,250.00",SUPPLIER,FOSTERING SOLUTIONS,300000009793967
Portsmouth City Council,PCC,Children's and Education Services,Children Looked After,Children's Services and Education,Third Party Payments,Other establishments,09-Feb-24,6763734,"1,250.00",SUPPLIER,FOSTERING SOLUTIONS,300000009793967
Portsmouth City Council,PCC,Children's and Education Services,Children Looked After,Children's Services and Education,Third Party Payments,Other establishments,09-Feb-24,6763734,-0.06,SUPPLIER,FOSTERING SOLUTIONS,300000009793967
Portsmouth City Council,PCC,Children's and Education Services,Children Looked After,Children's Services and Education,Third Party Payments,Other establishments,09-Feb-24,6763734,495.91,SUPPLIER,FOSTERING SOLUTIONS,300000009793967
Portsmouth City Council,PCC,Children's and Education Services,Children Looked After,Children's Services and Education,Third Party Payments,Other establishments,09-Feb-24,6763734,743.86,SUPPLIER,FOSTERING SOLUTIONS,300000009793967
Portsmouth City Council,PCC,Children's and Education Services,Children Looked After,Children's Services and Education,Third Party Payments,Other establishments,09-Feb-24,6763734,867.84,SUPPLIER,FOSTERING SOLUTIONS,300000009793967
Portsmouth City Council,PCC,Children's and Education Services,Children Looked After,Children's Services and Education,Third Party Payments,Other establishments,09-Feb-24,6763734,867.84,SUPPLIER,FOSTERING SOLUTIONS,300000009793967
Portsmouth City Council,PCC,Children's and Education Services,Children Looked After,Children's Services and Education,Third Party Payments,Other establishments,09-Feb-24,6763734,867.84,SUPPLIER,FOSTERING SOLUTIONS,300000009793967
Portsmouth City Council,PCC,Children's and Education Services,Safeguarding Children and Young Peoples Services,Children's Services and Education,Third Party Payments,Other establishments,01-Feb-24,6762355,-872.6,SUPPLIER,LILIAN DAVIS GROUP LTD,300000020467263
Portsmouth City Council,PCC,Children's and Education Services,Safeguarding Children and Young Peoples Services,Children's Services and Education,Third Party Payments,Other establishments,01-Feb-24,6762355,-10,SUPPLIER,LILIAN DAVIS GROUP LTD,300000020467263
Portsmouth City Council,PCC,Children's and Education Services,Safeguarding Children and Young Peoples Services,Children's Services and Education,Third Party Payments,Other establishments,01-Feb-24,6762355,-10,SUPPLIER,LILIAN DAVIS GROUP LTD,300000020467263
Portsmouth City Council,PCC,Children's and Education Services,Safeguarding Children and Young Peoples Services,Children's Services and Education,Third Party Payments,Other establishments,01-Feb-24,6762355,-10,SUPPLIER,LILIAN DAVIS GROUP LTD,300000020467263
Portsmouth City Council,PCC,Children's and Education Services,Safeguarding Children and Young Peoples Services,Children's Services and Education,Third Party Payments,Other establishments,01-Feb-24,6762355,-8.57,SUPPLIER,LILIAN DAVIS GROUP LTD,300000020467263
Portsmouth City Council,PCC,Children's and Education Services,Safeguarding Children and Young Peoples Services,Children's Services and Education,Third Party Payments,Other establishments,01-Feb-24,6762355,-5.71,SUPPLIER,LILIAN DAVIS GROUP LTD,300000020467263
Portsmouth City Council,PCC,Children's and Education Services,Safeguarding Children and Young Peoples Services,Children's Services and Education,Third Party Payments,Other establishments,01-Feb-24,6762355,-0.01,SUPPLIER,LILIAN DAVIS GROUP LTD,300000020467263
Portsmouth City Council,PCC,Children's and Education Services,Safeguarding Children and Young Peoples Services,Children's Services and Education,Third Party Payments,Other establishments,01-Feb-24,6762355,42.86,SUPPLIER,LILIAN DAVIS GROUP LTD,300000020467263
Portsmouth City Council,PCC,Children's and Education Services,Safeguarding Children and Young Peoples Services,Children's Services and Education,Third Party Payments,Other establishments,01-Feb-24,6762355,64.29,SUPPLIER,LILIAN DAVIS GROUP LTD,300000020467263
Portsmouth City Council,PCC,Children's and Education Services,Safeguarding Children and Young Peoples Services,Children's Services and Education,Third Party Payments,Other establishments,01-Feb-24,6762355,75,SUPPLIER,LILIAN DAVIS GROUP LTD,300000020467263
Portsmouth City Council,PCC,Children's and Education Services,Safeguarding Children and Young Peoples Services,Children's Services and Education,Third Party Payments,Other establishments,01-Feb-24,6762355,75,SUPPLIER,LILIAN DAVIS GROUP LTD,300000020467263
Portsmouth City Council,PCC,Children's and Education Services,Safeguarding Children and Young Peoples Services,Children's Services and Education,Third Party Payments,Other establishments,01-Feb-24,6762355,75,SUPPLIER,LILIAN DAVIS GROUP LTD,300000020467263
Portsmouth City Council,PCC,Children's and Education Services,Safeguarding Children and Young Peoples Services,Children's Services and Education,Third Party Payments,Other establishments,01-Feb-24,6762355,251.43,SUPPLIER,LILIAN DAVIS GROUP LTD,300000020467263
Portsmouth City Council,PCC,Children's and Education Services,Safeguarding Children and Young Peoples Services,Children's Services and Education,Third Party Payments,Other establishments,01-Feb-24,6762355,377.14,SUPPLIER,LILIAN DAVIS GROUP LTD,300000020467263
Portsmouth City Council,PCC,Children's and Education Services,Safeguarding Children and Young Peoples Services,Children's Services and Education,Third Party Payments,Other establishments,01-Feb-24,6762355,440,SUPPLIER,LILIAN DAVIS GROUP LTD,300000020467263
Portsmouth City Council,PCC,Children's and Education Services,Safeguarding Children and Young Peoples Services,Children's Services and Education,Third Party Payments,Other establishments,01-Feb-24,6762355,440,SUPPLIER,LILIAN DAVIS GROUP LTD,300000020467263
Portsmouth City Council,PCC,Children's and Education Services,Safeguarding Children and Young Peoples Services,Children's Services and Education,Third Party Payments,Other establishments,01-Feb-24,6762355,440,SUPPLIER,LILIAN DAVIS GROUP LTD,300000020467263
Portsmouth City Council,PCC,Children's and Education Services,Safeguarding Children and Young Peoples Services,Children's Services and Education,Third Party Payments,Other establishments,01-Feb-24,6762355,-872.6,SUPPLIER,LILIAN DAVIS GROUP LTD,300000020467263
Portsmouth City Council,PCC,Children's and Education Services,Safeguarding Children and Young Peoples Services,Children's Services and Education,Third Party Payments,Other establishments,01-Feb-24,6762355,-10,SUPPLIER,LILIAN DAVIS GROUP LTD,300000020467263
Portsmouth City Council,PCC,Children's and Education Services,Safeguarding Children and Young Peoples Services,Children's Services and Education,Third Party Payments,Other establishments,01-Feb-24,6762355,-10,SUPPLIER,LILIAN DAVIS GROUP LTD,300000020467263
Portsmouth City Council,PCC,Children's and Education Services,Safeguarding Children and Young Peoples Services,Children's Services and Education,Third Party Payments,Other establishments,01-Feb-24,6762355,-10,SUPPLIER,LILIAN DAVIS GROUP LTD,300000020467263
Portsmouth City Council,PCC,Children's and Education Services,Safeguarding Children and Young Peoples Services,Children's Services and Education,Third Party Payments,Other establishments,01-Feb-24,6762355,-8.57,SUPPLIER,LILIAN DAVIS GROUP LTD,300000020467263
Portsmouth City Council,PCC,Children's and Education Services,Safeguarding Children and Young Peoples Services,Children's Services and Education,Third Party Payments,Other establishments,01-Feb-24,6762355,-5.71,SUPPLIER,LILIAN DAVIS GROUP LTD,300000020467263
Portsmouth City Council,PCC,Children's and Education Services,Safeguarding Children and Young Peoples Services,Children's Services and Education,Third Party Payments,Other establishments,01-Feb-24,6762355,71.43,SUPPLIER,LILIAN DAVIS GROUP LTD,300000020467263
Portsmouth City Council,PCC,Children's and Education Services,Safeguarding Children and Young Peoples Services,Children's Services and Education,Third Party Payments,Other establishments,01-Feb-24,6762355,107.14,SUPPLIER,LILIAN DAVIS GROUP LTD,300000020467263
Portsmouth City Council,PCC,Children's and Education Services,Safeguarding Children and Young Peoples Services,Children's Services and Education,Third Party Payments,Other establishments,01-Feb-24,6762355,125,SUPPLIER,LILIAN DAVIS GROUP LTD,300000020467263
Portsmouth City Council,PCC,Children's and Education Services,Safeguarding Children and Young Peoples Services,Children's Services and Education,Third Party Payments,Other establishments,01-Feb-24,6762355,125,SUPPLIER,LILIAN DAVIS GROUP LTD,300000020467263
Portsmouth City Council,PCC,Children's and Education Services,Safeguarding Children and Young Peoples Services,Children's Services and Education,Third Party Payments,Other establishments,01-Feb-24,6762355,125,SUPPLIER,LILIAN DAVIS GROUP LTD,300000020467263
Portsmouth City Council,PCC,Children's and Education Services,Safeguarding Children and Young Peoples Services,Children's Services and Education,Third Party Payments,Other establishments,01-Feb-24,6762355,221.71,SUPPLIER,LILIAN DAVIS GROUP LTD,300000020467263
Portsmouth City Council,PCC,Children's and Education Services,Safeguarding Children and Young Peoples Services,Children's Services and Education,Third Party Payments,Other establishments,01-Feb-24,6762355,332.57,SUPPLIER,LILIAN DAVIS GROUP LTD,300000020467263
Portsmouth City Council,PCC,Children's and Education Services,Safeguarding Children and Young Peoples Services,Children's Services and Education,Third Party Payments,Other establishments,01-Feb-24,6762355,388,SUPPLIER,LILIAN DAVIS GROUP LTD,300000020467263
Portsmouth City Council,PCC,Children's and Education Services,Safeguarding Children and Young Peoples Services,Children's Services and Education,Third Party Payments,Other establishments,01-Feb-24,6762355,388,SUPPLIER,LILIAN DAVIS GROUP LTD,300000020467263
Portsmouth City Council,PCC,Children's and Education Services,Safeguarding Children and Young Peoples Services,Children's Services and Education,Third Party Payments,Other establishments,01-Feb-24,6762355,388,SUPPLIER,LILIAN DAVIS GROUP LTD,300000020467263
Portsmouth City Council,PCC,Children's and Education Services,Safeguarding Children and Young Peoples Services,Children's Services and Education,Third Party Payments,Other establishments,01-Feb-24,6762355,-892.54,SUPPLIER,LILIAN DAVIS GROUP LTD,300000020467263
Portsmouth City Council,PCC,Children's and Education Services,Safeguarding Children and Young Peoples Services,Children's Services and Education,Third Party Payments,Other establishments,01-Feb-24,6762355,-10,SUPPLIER,LILIAN DAVIS GROUP LTD,300000020467263
Portsmouth City Council,PCC,Children's and Education Services,Safeguarding Children and Young Peoples Services,Children's Services and Education,Third Party Payments,Other establishments,01-Feb-24,6762355,-10,SUPPLIER,LILIAN DAVIS GROUP LTD,300000020467263
Portsmouth City Council,PCC,Children's and Education Services,Safeguarding Children and Young Peoples Services,Children's Services and Education,Third Party Payments,Other establishments,01-Feb-24,6762355,-10,SUPPLIER,LILIAN DAVIS GROUP LTD,300000020467263
Portsmouth City Council,PCC,Children's and Education Services,Safeguarding Children and Young Peoples Services,Children's Services and Education,Third Party Payments,Other establishments,01-Feb-24,6762355,-8.57,SUPPLIER,LILIAN DAVIS GROUP LTD,300000020467263
Portsmouth City Council,PCC,Children's and Education Services,Safeguarding Children and Young Peoples Services,Children's Services and Education,Third Party Payments,Other establishments,01-Feb-24,6762355,-5.71,SUPPLIER,LILIAN DAVIS GROUP LTD,300000020467263
Portsmouth City Council,PCC,Children's and Education Services,Safeguarding Children and Young Peoples Services,Children's Services and Education,Third Party Payments,Other establishments,01-Feb-24,6762355,68.57,SUPPLIER,LILIAN DAVIS GROUP LTD,300000020467263
Portsmouth City Council,PCC,Children's and Education Services,Safeguarding Children and Young Peoples Services,Children's Services and Education,Third Party Payments,Other establishments,01-Feb-24,6762355,102.86,SUPPLIER,LILIAN DAVIS GROUP LTD,300000020467263
Portsmouth City Council,PCC,Children's and Education Services,Safeguarding Children and Young Peoples Services,Children's Services and Education,Third Party Payments,Other establishments,01-Feb-24,6762355,120,SUPPLIER,LILIAN DAVIS GROUP LTD,300000020467263
Portsmouth City Council,PCC,Children's and Education Services,Safeguarding Children and Young Peoples Services,Children's Services and Education,Third Party Payments,Other establishments,01-Feb-24,6762355,120,SUPPLIER,LILIAN DAVIS GROUP LTD,300000020467263
Portsmouth City Council,PCC,Children's and Education Services,Safeguarding Children and Young Peoples Services,Children's Services and Education,Third Party Payments,Other establishments,01-Feb-24,6762355,120,SUPPLIER,LILIAN DAVIS GROUP LTD,300000020467263
Portsmouth City Council,PCC,Children's and Education Services,Safeguarding Children and Young Peoples Services,Children's Services and Education,Third Party Payments,Other establishments,01-Feb-24,6762355,251.43,SUPPLIER,LILIAN DAVIS GROUP LTD,300000020467263
Portsmouth City Council,PCC,Children's and Education Services,Safeguarding Children and Young Peoples Services,Children's Services and Education,Third Party Payments,Other establishments,01-Feb-24,6762355,377.14,SUPPLIER,LILIAN DAVIS GROUP LTD,300000020467263
Portsmouth City Council,PCC,Children's and Education Services,Safeguarding Children and Young Peoples Services,Children's Services and Education,Third Party Payments,Other establishments,01-Feb-24,6762355,440,SUPPLIER,LILIAN DAVIS GROUP LTD,300000020467263
Portsmouth City Council,PCC,Children's and Education Services,Safeguarding Children and Young Peoples Services,Children's Services and Education,Third Party Payments,Other establishments,01-Feb-24,6762355,440,SUPPLIER,LILIAN DAVIS GROUP LTD,300000020467263
Portsmouth City Council,PCC,Children's and Education Services,Safeguarding Children and Young Peoples Services,Children's Services and Education,Third Party Payments,Other establishments,01-Feb-24,6762355,440,SUPPLIER,LILIAN DAVIS GROUP LTD,300000020467263
Portsmouth City Council,PCC,Children's and Education Services,Children Looked After,Children's Services and Education,Third Party Payments,Other establishments,01-Feb-24,6762375,0.05,SUPPLIER,COMPASS COMMUNITY LIMITED,300000020462668
Portsmouth City Council,PCC,Children's and Education Services,Children Looked After,Children's Services and Education,Third Party Payments,Other establishments,01-Feb-24,6762375,400,SUPPLIER,COMPASS COMMUNITY LIMITED,300000020462668
Portsmouth City Council,PCC,Children's and Education Services,Children Looked After,Children's Services and Education,Third Party Payments,Other establishments,01-Feb-24,6762375,600,SUPPLIER,COMPASS COMMUNITY LIMITED,300000020462668
Portsmouth City Council,PCC,Children's and Education Services,Children Looked After,Children's Services and Education,Third Party Payments,Other establishments,01-Feb-24,6762375,700,SUPPLIER,COMPASS COMMUNITY LIMITED,300000020462668
Portsmouth City Council,PCC,Children's and Education Services,Children Looked After,Children's Services and Education,Third Party Payments,Other establishments,01-Feb-24,6762375,700,SUPPLIER,COMPASS COMMUNITY LIMITED,300000020462668
Portsmouth City Council,PCC,Children's and Education Services,Children Looked After,Children's Services and Education,Third Party Payments,Other establishments,01-Feb-24,6762375,700,SUPPLIER,COMPASS COMMUNITY LIMITED,300000020462668
Portsmouth City Council,PCC,Children's and Education Services,Children Looked After,Children's Services and Education,Third Party Payments,Other establishments,01-Feb-24,6762375,738.12,SUPPLIER,COMPASS COMMUNITY LIMITED,300000020462668
Portsmouth City Council,PCC,Children's and Education Services,Children Looked After,Children's Services and Education,Third Party Payments,Other establishments,01-Feb-24,6762375,"1,107.18",SUPPLIER,COMPASS COMMUNITY LIMITED,300000020462668
Portsmouth City Council,PCC,Children's and Education Services,Children Looked After,Children's Services and Education,Third Party Payments,Other establishments,01-Feb-24,6762375,"1,291.71",SUPPLIER,COMPASS COMMUNITY LIMITED,300000020462668
Portsmouth City Council,PCC,Children's and Education Services,Children Looked After,Children's Services and Education,Third Party Payments,Other establishments,01-Feb-24,6762375,"1,291.71",SUPPLIER,COMPASS COMMUNITY LIMITED,300000020462668
Portsmouth City Council,PCC,Children's and Education Services,Children Looked After,Children's Services and Education,Third Party Payments,Other establishments,01-Feb-24,6762375,"1,291.71",SUPPLIER,COMPASS COMMUNITY LIMITED,300000020462668
Portsmouth City Council,PCC,Children's and Education Services,Children Looked After,Children's Services and Education,Third Party Payments,Other establishments,01-Feb-24,6762375,"2,447.59",SUPPLIER,COMPASS COMMUNITY LIMITED,300000020462668
Portsmouth City Council,PCC,Children's and Education Services,Children Looked After,Children's Services and Education,Third Party Payments,Other establishments,01-Feb-24,6762375,"3,671.39",SUPPLIER,COMPASS COMMUNITY LIMITED,300000020462668
Portsmouth City Council,PCC,Children's and Education Services,Children Looked After,Children's Services and Education,Third Party Payments,Other establishments,01-Feb-24,6762375,"4,283.29",SUPPLIER,COMPASS COMMUNITY LIMITED,300000020462668
Portsmouth City Council,PCC,Children's and Education Services,Children Looked After,Children's Services and Education,Third Party Payments,Other establishments,01-Feb-24,6762375,"4,283.29",SUPPLIER,COMPASS COMMUNITY LIMITED,300000020462668
Portsmouth City Council,PCC,Children's and Education Services,Children Looked After,Children's Services and Education,Third Party Payments,Other establishments,01-Feb-24,6762375,"4,283.29",SUPPLIER,COMPASS COMMUNITY LIMITED,300000020462668
Portsmouth City Council,PCC,Children's and Education Services,Family Support Services,Children's Services and Education,Third Party Payments,Other establishments,06-Feb-24,6762999,200,SUPPLIER,HOPE INTO ACTION PORTSMOUTH,300000020472723
Portsmouth City Council,PCC,Children's and Education Services,Family Support Services,Children's Services and Education,Third Party Payments,Other establishments,06-Feb-24,6762999,"1,064.34",SUPPLIER,HOPE INTO ACTION PORTSMOUTH,300000020472723
Portsmouth City Council,PCC,Children's and Education Services,Children Looked After,Children's Services and Education,Third Party Payments,Other establishments,02-Feb-24,6762454,255.71,SUPPLIER,RAINBOW FOSTERING,300000020482345
Portsmouth City Council,PCC,Children's and Education Services,Children Looked After,Children's Services and Education,Third Party Payments,Other establishments,02-Feb-24,6762454,511.43,SUPPLIER,RAINBOW FOSTERING,300000020482345
Portsmouth City Council,PCC,Children's and Education Services,Children Looked After,Children's Services and Education,Third Party Payments,Other establishments,02-Feb-24,6762454,895,SUPPLIER,RAINBOW FOSTERING,300000020482345
Portsmouth City Council,PCC,Children's and Education Services,Children Looked After,Children's Services and Education,Third Party Payments,Other establishments,02-Feb-24,6762454,895,SUPPLIER,RAINBOW FOSTERING,300000020482345
Portsmouth City Council,PCC,Children's and Education Services,Children Looked After,Children's Services and Education,Third Party Payments,Other establishments,02-Feb-24,6762454,255.71,SUPPLIER,RAINBOW FOSTERING,300000020482345
Portsmouth City Council,PCC,Children's and Education Services,Children Looked After,Children's Services and Education,Third Party Payments,Other establishments,02-Feb-24,6762454,511.43,SUPPLIER,RAINBOW FOSTERING,300000020482345
Portsmouth City Council,PCC,Children's and Education Services,Children Looked After,Children's Services and Education,Third Party Payments,Other establishments,02-Feb-24,6762454,895,SUPPLIER,RAINBOW FOSTERING,300000020482345
Portsmouth City Council,PCC,Children's and Education Services,Children Looked After,Children's Services and Education,Third Party Payments,Other establishments,02-Feb-24,6762454,895,SUPPLIER,RAINBOW FOSTERING,300000020482345
Portsmouth City Council,PCC,Children's and Education Services,Primary Schools,Children's Services and Education,Premises-Related Expenditure,Energy costs,14-Feb-24,6764649,89.55,LIMITED COMPANY,SEFE MARKETING AND TRADING LTD,300000250807105
Portsmouth City Council,PCC,Children's and Education Services,Primary Schools,Children's Services and Education,Premises-Related Expenditure,Energy costs,14-Feb-24,6764649,"1,611.78",LIMITED COMPANY,SEFE MARKETING AND TRADING LTD,300000250807105
Portsmouth City Council,PCC,Housing Revenue Account,Special Services,"Housing, Neighbourhood and Building Services",Premises-Related Expenditure,Energy costs,14-Feb-24,6764649,369.09,LIMITED COMPANY,SEFE MARKETING AND TRADING LTD,300000250807105
Portsmouth City Council,PCC,Cultural and Related Services,Library Service,"Culture, Leisure & Regulatory Services",Premises-Related Expenditure,Energy costs,14-Feb-24,6764649,103.83,LIMITED COMPANY,SEFE MARKETING AND TRADING LTD,300000250807105
Portsmouth City Council,PCC,Children's and Education Services,Children Looked After,Children's Services and Education,Premises-Related Expenditure,Energy costs,14-Feb-24,6764649,76.41,LIMITED COMPANY,SEFE MARKETING AND TRADING LTD,300000250807105
Portsmouth City Council,PCC,Costs below Net Cost of Services,Trading,Regeneration,Premises-Related Expenditure,Energy costs,14-Feb-24,6764649,6.32,LIMITED COMPANY,SEFE MARKETING AND TRADING LTD,300000250807105
Portsmouth City Council,PCC,Housing Revenue Account,Special Services,"Housing, Neighbourhood and Building Services",Premises-Related Expenditure,Energy costs,14-Feb-24,6764649,762.88,LIMITED COMPANY,SEFE MARKETING AND TRADING LTD,300000250807105
Portsmouth City Council,PCC,Housing Revenue Account,Special Services,"Housing, Neighbourhood and Building Services",Premises-Related Expenditure,Energy costs,14-Feb-24,6764649,408.13,LIMITED COMPANY,SEFE MARKETING AND TRADING LTD,300000250807105
Portsmouth City Council,PCC,Housing Revenue Account,Special Services,"Housing, Neighbourhood and Building Services",Premises-Related Expenditure,Energy costs,14-Feb-24,6764649,142.71,LIMITED COMPANY,SEFE MARKETING AND TRADING LTD,300000250807105
Portsmouth City Council,PCC,Housing Revenue Account,Special Services,"Housing, Neighbourhood and Building Services",Premises-Related Expenditure,Energy costs,14-Feb-24,6764649,9.93,LIMITED COMPANY,SEFE MARKETING AND TRADING LTD,300000250807105
Portsmouth City Council,PCC,Housing Revenue Account,Special Services,"Housing, Neighbourhood and Building Services",Premises-Related Expenditure,Energy costs,14-Feb-24,6764649,"2,655.97",LIMITED COMPANY,SEFE MARKETING AND TRADING LTD,300000250807105
Portsmouth City Council,PCC,Housing Revenue Account,Special Services,"Housing, Neighbourhood and Building Services",Premises-Related Expenditure,Energy costs,14-Feb-24,6764649,181.69,LIMITED COMPANY,SEFE MARKETING AND TRADING LTD,300000250807105
Portsmouth City Council,PCC,Housing Revenue Account,Special Services,"Housing, Neighbourhood and Building Services",Premises-Related Expenditure,Energy costs,14-Feb-24,6764649,103.25,LIMITED COMPANY,SEFE MARKETING AND TRADING LTD,300000250807105
Portsmouth City Council,PCC,Housing Revenue Account,Special Services,"Housing, Neighbourhood and Building Services",Premises-Related Expenditure,Energy costs,14-Feb-24,6764649,21.81,LIMITED COMPANY,SEFE MARKETING AND TRADING LTD,300000250807105
Portsmouth City Council,PCC,Housing Revenue Account,Special Services,"Housing, Neighbourhood and Building Services",Premises-Related Expenditure,Energy costs,14-Feb-24,6764649,"3,153.87",LIMITED COMPANY,SEFE MARKETING AND TRADING LTD,300000250807105
Portsmouth City Council,PCC,Planning Services,Business support,Regeneration,Premises-Related Expenditure,Energy costs,14-Feb-24,6764649,"2,298.31",LIMITED COMPANY,SEFE MARKETING AND TRADING LTD,300000250807105
Portsmouth City Council,PCC,Children's and Education Services,Children Looked After,Children's Services and Education,Premises-Related Expenditure,Energy costs,14-Feb-24,6764649,726.53,LIMITED COMPANY,SEFE MARKETING AND TRADING LTD,300000250807105
Portsmouth City Council,PCC,Housing Revenue Account,Special Services,"Housing, Neighbourhood and Building Services",Premises-Related Expenditure,Energy costs,14-Feb-24,6764649,103.34,LIMITED COMPANY,SEFE MARKETING AND TRADING LTD,300000250807105
Portsmouth City Council,PCC,Housing Revenue Account,Special Services,"Housing, Neighbourhood and Building Services",Premises-Related Expenditure,Energy costs,14-Feb-24,6764649,815.68,LIMITED COMPANY,SEFE MARKETING AND TRADING LTD,300000250807105
Portsmouth City Council,PCC,Housing Revenue Account,Special Services,"Housing, Neighbourhood and Building Services",Premises-Related Expenditure,Energy costs,14-Feb-24,6764649,28.23,LIMITED COMPANY,SEFE MARKETING AND TRADING LTD,300000250807105
Portsmouth City Council,PCC,Housing Revenue Account,Special Services,"Housing, Neighbourhood and Building Services",Premises-Related Expenditure,Energy costs,14-Feb-24,6764649,"3,971.68",LIMITED COMPANY,SEFE MARKETING AND TRADING LTD,300000250807105
Portsmouth City Council,PCC,Children's and Education Services,Primary Schools,Children's Services and Education,Premises-Related Expenditure,Energy costs,14-Feb-24,6764649,"3,240.12",LIMITED COMPANY,SEFE MARKETING AND TRADING LTD,300000250807105
Portsmouth City Council,PCC,Housing Revenue Account,Special Services,"Housing, Neighbourhood and Building Services",Premises-Related Expenditure,Energy costs,14-Feb-24,6764649,"3,751.39",LIMITED COMPANY,SEFE MARKETING AND TRADING LTD,300000250807105
Portsmouth City Council,PCC,Children's and Education Services,Primary Schools,Children's Services and Education,Premises-Related Expenditure,Energy costs,14-Feb-24,6764649,458.58,LIMITED COMPANY,SEFE MARKETING AND TRADING LTD,300000250807105
Portsmouth City Council,PCC,Housing Revenue Account,Special Services,"Housing, Neighbourhood and Building Services",Premises-Related Expenditure,Energy costs,14-Feb-24,6764649,"50,404.90",LIMITED COMPANY,SEFE MARKETING AND TRADING LTD,300000250807105
Portsmouth City Council,PCC,Housing Revenue Account,Special Services,"Housing, Neighbourhood and Building Services",Premises-Related Expenditure,Energy costs,14-Feb-24,6764649,141.94,LIMITED COMPANY,SEFE MARKETING AND TRADING LTD,300000250807105
Portsmouth City Council,PCC,Cultural and Related Services,Culture and Heritage,"Culture, Leisure & Regulatory Services",Premises-Related Expenditure,Energy costs,14-Feb-24,6764649,"1,209.20",LIMITED COMPANY,SEFE MARKETING AND TRADING LTD,300000250807105
Portsmouth City Council,PCC,Housing Revenue Account,Special Services,"Housing, Neighbourhood and Building Services",Premises-Related Expenditure,Energy costs,14-Feb-24,6764649,26.2,LIMITED COMPANY,SEFE MARKETING AND TRADING LTD,300000250807105
Portsmouth City Council,PCC,Cultural and Related Services,Culture and Heritage,"Culture, Leisure & Regulatory Services",Premises-Related Expenditure,Energy costs,14-Feb-24,6764649,"1,082.74",LIMITED COMPANY,SEFE MARKETING AND TRADING LTD,300000250807105
Portsmouth City Council,PCC,Children's and Education Services,Primary Schools,Children's Services and Education,Premises-Related Expenditure,Energy costs,14-Feb-24,6764649,"1,548.12",LIMITED COMPANY,SEFE MARKETING AND TRADING LTD,300000250807105
Portsmouth City Council,PCC,Housing Revenue Account,Special Services,"Housing, Neighbourhood and Building Services",Premises-Related Expenditure,Energy costs,14-Feb-24,6764649,921.61,LIMITED COMPANY,SEFE MARKETING AND TRADING LTD,300000250807105
Portsmouth City Council,PCC,Housing Revenue Account,Special Services,"Housing, Neighbourhood and Building Services",Premises-Related Expenditure,Energy costs,14-Feb-24,6764649,742.37,LIMITED COMPANY,SEFE MARKETING AND TRADING LTD,300000250807105
Portsmouth City Council,PCC,Housing Revenue Account,Special Services,"Housing, Neighbourhood and Building Services",Premises-Related Expenditure,Energy costs,14-Feb-24,6764649,559.47,LIMITED COMPANY,SEFE MARKETING AND TRADING LTD,300000250807105
Portsmouth City Council,PCC,Housing Revenue Account,Special Services,"Housing, Neighbourhood and Building Services",Premises-Related Expenditure,Energy costs,14-Feb-24,6764649,"1,195.91",LIMITED COMPANY,SEFE MARKETING AND TRADING LTD,300000250807105
Portsmouth City Council,PCC,Housing Revenue Account,Special Services,"Housing, Neighbourhood and Building Services",Premises-Related Expenditure,Energy costs,14-Feb-24,6764649,15.75,LIMITED COMPANY,SEFE MARKETING AND TRADING LTD,300000250807105
Portsmouth City Council,PCC,Housing Revenue Account,Special Services,"Housing, Neighbourhood and Building Services",Premises-Related Expenditure,Energy costs,14-Feb-24,6764649,6.32,LIMITED COMPANY,SEFE MARKETING AND TRADING LTD,300000250807105
Portsmouth City Council,PCC,Support Service / Transparency Costs Unallocated,AMS,Corporate Services,Premises-Related Expenditure,Energy costs,14-Feb-24,6764649,"35,844.57",LIMITED COMPANY,SEFE MARKETING AND TRADING LTD,300000250807105
Portsmouth City Council,PCC,Housing Revenue Account,Supervision and Management,"Housing, Neighbourhood and Building Services",Premises-Related Expenditure,Energy costs,14-Feb-24,6764649,939.25,LIMITED COMPANY,SEFE MARKETING AND TRADING LTD,300000250807105
Portsmouth City Council,PCC,Housing Revenue Account,Special Services,"Housing, Neighbourhood and Building Services",Premises-Related Expenditure,Energy costs,14-Feb-24,6764649,138.41,LIMITED COMPANY,SEFE MARKETING AND TRADING LTD,300000250807105
Portsmouth City Council,PCC,Housing Revenue Account,Special Services,"Housing, Neighbourhood and Building Services",Premises-Related Expenditure,Energy costs,14-Feb-24,6764649,52.8,LIMITED COMPANY,SEFE MARKETING AND TRADING LTD,300000250807105
Portsmouth City Council,PCC,Highways and Transport Services,"Airports, Harbours and Toll Facilities",Portsmouth International Port,Premises-Related Expenditure,Energy costs,14-Feb-24,6764649,41.05,LIMITED COMPANY,SEFE MARKETING AND TRADING LTD,300000250807105
Portsmouth City Council,PCC,Housing Revenue Account,Special Services,"Housing, Neighbourhood and Building Services",Premises-Related Expenditure,Energy costs,14-Feb-24,6764649,"1,139.27",LIMITED COMPANY,SEFE MARKETING AND TRADING LTD,300000250807105
Portsmouth City Council,PCC,Children's and Education Services,Secondary Schools,Children's Services and Education,Premises-Related Expenditure,Energy costs,14-Feb-24,6764649,"3,335.43",LIMITED COMPANY,SEFE MARKETING AND TRADING LTD,300000250807105
Portsmouth City Council,PCC,Housing Revenue Account,Special Services,"Housing, Neighbourhood and Building Services",Premises-Related Expenditure,Energy costs,14-Feb-24,6764649,"1,922.05",LIMITED COMPANY,SEFE MARKETING AND TRADING LTD,300000250807105
Portsmouth City Council,PCC,Housing Revenue Account,Special Services,"Housing, Neighbourhood and Building Services",Premises-Related Expenditure,Energy costs,14-Feb-24,6764649,348.37,LIMITED COMPANY,SEFE MARKETING AND TRADING LTD,300000250807105
Portsmouth City Council,PCC,Cultural and Related Services,Open Spaces,"Culture, Leisure & Regulatory Services",Premises-Related Expenditure,Energy costs,14-Feb-24,6764649,897.31,LIMITED COMPANY,SEFE MARKETING AND TRADING LTD,300000250807105
Portsmouth City Council,PCC,Housing Revenue Account,Special Services,"Housing, Neighbourhood and Building Services",Premises-Related Expenditure,Energy costs,14-Feb-24,6764649,69.91,LIMITED COMPANY,SEFE MARKETING AND TRADING LTD,300000250807105
Portsmouth City Council,PCC,Children's and Education Services,Children Looked After,Children's Services and Education,Premises-Related Expenditure,Energy costs,14-Feb-24,6764649,643.82,LIMITED COMPANY,SEFE MARKETING AND TRADING LTD,300000250807105
Portsmouth City Council,PCC,Housing Revenue Account,Supervision and Management,"Housing, Neighbourhood and Building Services",Premises-Related Expenditure,Energy costs,14-Feb-24,6764649,131.16,LIMITED COMPANY,SEFE MARKETING AND TRADING LTD,300000250807105
Portsmouth City Council,PCC,Housing Revenue Account,Special Services,"Housing, Neighbourhood and Building Services",Premises-Related Expenditure,Energy costs,14-Feb-24,6764649,219.31,LIMITED COMPANY,SEFE MARKETING AND TRADING LTD,300000250807105
Portsmouth City Council,PCC,Adult Social Care,Learning Disability Support Adults (18 - 64),Adult Care,Third Party Payments,Other establishments,23-Feb-24,6766617,722.6,SUPPLIER,ACHIEVE TOGETHER LIMITED,300000020469986
Portsmouth City Council,PCC,Housing Revenue Account,Special Services,"Housing, Neighbourhood and Building Services",Premises-Related Expenditure,Energy costs,14-Feb-24,6764649,766.91,LIMITED COMPANY,SEFE MARKETING AND TRADING LTD,300000250807105
Portsmouth City Council,PCC,Housing Revenue Account,Special Services,"Housing, Neighbourhood and Building Services",Premises-Related Expenditure,Energy costs,14-Feb-24,6764649,164.22,LIMITED COMPANY,SEFE MARKETING AND TRADING LTD,300000250807105
Portsmouth City Council,PCC,Housing Revenue Account,Special Services,"Housing, Neighbourhood and Building Services",Premises-Related Expenditure,Energy costs,14-Feb-24,6764649,231.98,LIMITED COMPANY,SEFE MARKETING AND TRADING LTD,300000250807105
Portsmouth City Council,PCC,Housing Revenue Account,Special Services,"Housing, Neighbourhood and Building Services",Premises-Related Expenditure,Energy costs,14-Feb-24,6764649,17.89,LIMITED COMPANY,SEFE MARKETING AND TRADING LTD,300000250807105
Portsmouth City Council,PCC,Adult Social Care,Learning Disability Support Adults (18 - 64),Adult Care,Third Party Payments,Other establishments,23-Feb-24,6766617,722.6,SUPPLIER,ACHIEVE TOGETHER LIMITED,300000020469986
Portsmouth City Council,PCC,Other,Suspense and Capital Schemes,Portsmouth International Port,Premises-Related Expenditure,Energy costs,14-Feb-24,6764649,571.35,LIMITED COMPANY,SEFE MARKETING AND TRADING LTD,300000250807105
Portsmouth City Council,PCC,Other,Suspense and Capital Schemes,"Housing, Neighbourhood and Building Services",Premises-Related Expenditure,Energy costs,14-Feb-24,6764649,"2,029.99",LIMITED COMPANY,SEFE MARKETING AND TRADING LTD,300000250807105
Portsmouth City Council,PCC,Costs below Net Cost of Services,Trading,Regeneration,Premises-Related Expenditure,Energy costs,14-Feb-24,6764649,226.95,LIMITED COMPANY,SEFE MARKETING AND TRADING LTD,300000250807105
Portsmouth City Council,PCC,Housing Revenue Account,Special Services,"Housing, Neighbourhood and Building Services",Premises-Related Expenditure,Energy costs,14-Feb-24,6764649,309.88,LIMITED COMPANY,SEFE MARKETING AND TRADING LTD,300000250807105
Portsmouth City Council,PCC,Children's and Education Services,Other Education and Community Budget,Regeneration,Premises-Related Expenditure,Energy costs,14-Feb-24,6764649,526.4,LIMITED COMPANY,SEFE MARKETING AND TRADING LTD,300000250807105
Portsmouth City Council,PCC,Housing Revenue Account,Special Services,"Housing, Neighbourhood and Building Services",Premises-Related Expenditure,Energy costs,14-Feb-24,6764649,"1,892.11",LIMITED COMPANY,SEFE MARKETING AND TRADING LTD,300000250807105
Portsmouth City Council,PCC,Housing Revenue Account,Special Services,"Housing, Neighbourhood and Building Services",Premises-Related Expenditure,Energy costs,14-Feb-24,6764649,564.71,LIMITED COMPANY,SEFE MARKETING AND TRADING LTD,300000250807105
Portsmouth City Council,PCC,Highways and Transport Services,"Airports, Harbours and Toll Facilities",Portsmouth International Port,Premises-Related Expenditure,Energy costs,14-Feb-24,6764649,302.62,LIMITED COMPANY,SEFE MARKETING AND TRADING LTD,300000250807105
Portsmouth City Council,PCC,Cultural and Related Services,Recreation and Sport,"Culture, Leisure & Regulatory Services",Premises-Related Expenditure,Energy costs,14-Feb-24,6764649,550.59,LIMITED COMPANY,SEFE MARKETING AND TRADING LTD,300000250807105
Portsmouth City Council,PCC,Children's and Education Services,Primary Schools,Children's Services and Education,Premises-Related Expenditure,Energy costs,14-Feb-24,6764649,"1,957.53",LIMITED COMPANY,SEFE MARKETING AND TRADING LTD,300000250807105
Portsmouth City Council,PCC,Housing Revenue Account,Special Services,"Housing, Neighbourhood and Building Services",Premises-Related Expenditure,Energy costs,14-Feb-24,6764649,79.39,LIMITED COMPANY,SEFE MARKETING AND TRADING LTD,300000250807105
Portsmouth City Council,PCC,Children's and Education Services,Primary Schools,Children's Services and Education,Premises-Related Expenditure,Energy costs,14-Feb-24,6764649,"1,263.20",LIMITED COMPANY,SEFE MARKETING AND TRADING LTD,300000250807105
Portsmouth City Council,PCC,Housing Revenue Account,Special Services,"Housing, Neighbourhood and Building Services",Premises-Related Expenditure,Energy costs,14-Feb-24,6764649,340.71,LIMITED COMPANY,SEFE MARKETING AND TRADING LTD,300000250807105
Portsmouth City Council,PCC,Children's and Education Services,Family Support Services,Children's Services and Education,Premises-Related Expenditure,Energy costs,14-Feb-24,6764649,"1,009.92",LIMITED COMPANY,SEFE MARKETING AND TRADING LTD,300000250807105
Portsmouth City Council,PCC,Housing Revenue Account,Special Services,"Housing, Neighbourhood and Building Services",Premises-Related Expenditure,Energy costs,14-Feb-24,6764649,605.13,LIMITED COMPANY,SEFE MARKETING AND TRADING LTD,300000250807105
Portsmouth City Council,PCC,Housing Revenue Account,Special Services,"Housing, Neighbourhood and Building Services",Premises-Related Expenditure,Energy costs,14-Feb-24,6764649,811.04,LIMITED COMPANY,SEFE MARKETING AND TRADING LTD,300000250807105
Portsmouth City Council,PCC,Adult Social Care,Learning Disability Support Adults (18 - 64),Adult Care,Third Party Payments,Other establishments,23-Feb-24,6766617,722.6,SUPPLIER,ACHIEVE TOGETHER LIMITED,300000020469986
Portsmouth City Council,PCC,Housing Revenue Account,Special Services,"Housing, Neighbourhood and Building Services",Premises-Related Expenditure,Energy costs,14-Feb-24,6764649,349.53,LIMITED COMPANY,SEFE MARKETING AND TRADING LTD,300000250807105
Portsmouth City Council,PCC,Adult Social Care,Learning Disability Support Adults (18 - 64),Adult Care,Third Party Payments,Other establishments,23-Feb-24,6766617,722.6,SUPPLIER,ACHIEVE TOGETHER LIMITED,300000020469986
Portsmouth City Council,PCC,Adult Social Care,Learning Disability Support Adults (18 - 64),Adult Care,Third Party Payments,Other establishments,23-Feb-24,6766617,722.6,SUPPLIER,ACHIEVE TOGETHER LIMITED,300000020469986
Portsmouth City Council,PCC,Housing Revenue Account,Supervision and Management,"Housing, Neighbourhood and Building Services",Premises-Related Expenditure,Energy costs,14-Feb-24,6764649,"1,360.70",LIMITED COMPANY,SEFE MARKETING AND TRADING LTD,300000250807105
Portsmouth City Council,PCC,Central Services,"Registration of Births, Deaths and Marriages","Culture, Leisure & Regulatory Services",Premises-Related Expenditure,Energy costs,14-Feb-24,6764649,"1,070.55",LIMITED COMPANY,SEFE MARKETING AND TRADING LTD,300000250807105
Portsmouth City Council,PCC,Children's and Education Services,Primary Schools,Children's Services and Education,Premises-Related Expenditure,Energy costs,14-Feb-24,6764649,415.3,LIMITED COMPANY,SEFE MARKETING AND TRADING LTD,300000250807105
Portsmouth City Council,PCC,Children's and Education Services,Primary Schools,Children's Services and Education,Premises-Related Expenditure,Energy costs,14-Feb-24,6764649,"1,535.04",LIMITED COMPANY,SEFE MARKETING AND TRADING LTD,300000250807105
Portsmouth City Council,PCC,Housing Revenue Account,Special Services,"Housing, Neighbourhood and Building Services",Premises-Related Expenditure,Energy costs,14-Feb-24,6764649,963.87,LIMITED COMPANY,SEFE MARKETING AND TRADING LTD,300000250807105
Portsmouth City Council,PCC,Housing Revenue Account,Special Services,"Housing, Neighbourhood and Building Services",Premises-Related Expenditure,Energy costs,14-Feb-24,6764649,231.56,LIMITED COMPANY,SEFE MARKETING AND TRADING LTD,300000250807105
Portsmouth City Council,PCC,Adult Social Care,Learning Disability Support Adults (18 - 64),Adult Care,Third Party Payments,Other establishments,23-Feb-24,6766617,722.6,SUPPLIER,ACHIEVE TOGETHER LIMITED,300000020469986
Portsmouth City Council,PCC,Other,Suspense and Capital Schemes,Capital - Housing and Tackling Homelessness,Capital Charges,Capital Expenditure (WIP),14-Feb-24,6764649,17.48,LIMITED COMPANY,SEFE MARKETING AND TRADING LTD,300000250807105
Portsmouth City Council,PCC,Housing Services,Homelessness,"Housing, Neighbourhood and Building Services",Premises-Related Expenditure,Energy costs,14-Feb-24,6764649,295.93,LIMITED COMPANY,SEFE MARKETING AND TRADING LTD,300000250807105
Portsmouth City Council,PCC,Housing Revenue Account,Special Services,"Housing, Neighbourhood and Building Services",Premises-Related Expenditure,Energy costs,14-Feb-24,6764649,106.24,LIMITED COMPANY,SEFE MARKETING AND TRADING LTD,300000250807105
Portsmouth City Council,PCC,Children's and Education Services,Primary Schools,Children's Services and Education,Premises-Related Expenditure,Energy costs,14-Feb-24,6764649,136.67,LIMITED COMPANY,SEFE MARKETING AND TRADING LTD,300000250807105
Portsmouth City Council,PCC,Children's and Education Services,Primary Schools,Children's Services and Education,Premises-Related Expenditure,Energy costs,14-Feb-24,6764649,"1,030.34",LIMITED COMPANY,SEFE MARKETING AND TRADING LTD,300000250807105
Portsmouth City Council,PCC,Housing Revenue Account,Special Services,"Housing, Neighbourhood and Building Services",Premises-Related Expenditure,Energy costs,14-Feb-24,6764649,322.54,LIMITED COMPANY,SEFE MARKETING AND TRADING LTD,300000250807105
Portsmouth City Council,PCC,Housing Revenue Account,Special Services,"Housing, Neighbourhood and Building Services",Premises-Related Expenditure,Energy costs,14-Feb-24,6764649,"1,969.33",LIMITED COMPANY,SEFE MARKETING AND TRADING LTD,300000250807105
Portsmouth City Council,PCC,Children's and Education Services,Other Children and Family Services,Children's Services and Education,Premises-Related Expenditure,Energy costs,14-Feb-24,6764649,405.95,LIMITED COMPANY,SEFE MARKETING AND TRADING LTD,300000250807105
Portsmouth City Council,PCC,Children's and Education Services,Family Support Services,Children's Services and Education,Premises-Related Expenditure,Energy costs,14-Feb-24,6764649,"1,670.56",LIMITED COMPANY,SEFE MARKETING AND TRADING LTD,300000250807105
Portsmouth City Council,PCC,Housing Revenue Account,Special Services,"Housing, Neighbourhood and Building Services",Premises-Related Expenditure,Energy costs,14-Feb-24,6764649,569.97,LIMITED COMPANY,SEFE MARKETING AND TRADING LTD,300000250807105
Portsmouth City Council,PCC,Housing Revenue Account,Special Services,"Housing, Neighbourhood and Building Services",Premises-Related Expenditure,Energy costs,14-Feb-24,6764649,24.36,LIMITED COMPANY,SEFE MARKETING AND TRADING LTD,300000250807105
Portsmouth City Council,PCC,Children's and Education Services,Primary Schools,Children's Services and Education,Premises-Related Expenditure,Energy costs,14-Feb-24,6764649,"1,446.34",LIMITED COMPANY,SEFE MARKETING AND TRADING LTD,300000250807105
Portsmouth City Council,PCC,Housing Services,Homelessness,"Housing, Neighbourhood and Building Services",Premises-Related Expenditure,Energy costs,14-Feb-24,6764649,219.46,LIMITED COMPANY,SEFE MARKETING AND TRADING LTD,300000250807105
Portsmouth City Council,PCC,Housing Services,Homelessness,"Housing, Neighbourhood and Building Services",Premises-Related Expenditure,Energy costs,14-Feb-24,6764649,249.52,LIMITED COMPANY,SEFE MARKETING AND TRADING LTD,300000250807105
Portsmouth City Council,PCC,Adult Social Care,Learning Disability Support Adults (18 - 64),Adult Care,Third Party Payments,Other establishments,23-Feb-24,6766617,722.6,SUPPLIER,ACHIEVE TOGETHER LIMITED,300000020469986
Portsmouth City Council,PCC,Adult Social Care,Learning Disability Support Adults (18 - 64),Adult Care,Third Party Payments,Other establishments,23-Feb-24,6766617,722.6,SUPPLIER,ACHIEVE TOGETHER LIMITED,300000020469986
Portsmouth City Council,PCC,Housing Revenue Account,Special Services,"Housing, Neighbourhood and Building Services",Premises-Related Expenditure,Energy costs,14-Feb-24,6764649,239.23,LIMITED COMPANY,SEFE MARKETING AND TRADING LTD,300000250807105
Portsmouth City Council,PCC,Other,Suspense and Capital Schemes,Portsmouth International Port,Premises-Related Expenditure,Energy costs,14-Feb-24,6764649,"2,760.21",LIMITED COMPANY,SEFE MARKETING AND TRADING LTD,300000250807105
Portsmouth City Council,PCC,Children's and Education Services,Primary Schools,Children's Services and Education,Premises-Related Expenditure,Energy costs,14-Feb-24,6764649,996.05,LIMITED COMPANY,SEFE MARKETING AND TRADING LTD,300000250807105
Portsmouth City Council,PCC,Other,Suspense and Capital Schemes,"Housing, Neighbourhood and Building Services",Premises-Related Expenditure,Energy costs,14-Feb-24,6764649,94.68,LIMITED COMPANY,SEFE MARKETING AND TRADING LTD,300000250807105
Portsmouth City Council,PCC,Children's and Education Services,Primary Schools,Children's Services and Education,Premises-Related Expenditure,Energy costs,14-Feb-24,6764649,777.81,LIMITED COMPANY,SEFE MARKETING AND TRADING LTD,300000250807105
Portsmouth City Council,PCC,Adult Social Care,Learning Disability Support Adults (18 - 64),Adult Care,Third Party Payments,Other establishments,23-Feb-24,6766617,722.6,SUPPLIER,ACHIEVE TOGETHER LIMITED,300000020469986
Portsmouth City Council,PCC,Children's and Education Services,Primary Schools,Children's Services and Education,Premises-Related Expenditure,Energy costs,14-Feb-24,6764649,"1,306.97",LIMITED COMPANY,SEFE MARKETING AND TRADING LTD,300000250807105
Portsmouth City Council,PCC,Children's and Education Services,Primary Schools,Children's Services and Education,Premises-Related Expenditure,Energy costs,14-Feb-24,6764649,327.85,LIMITED COMPANY,SEFE MARKETING AND TRADING LTD,300000250807105
Portsmouth City Council,PCC,Children's and Education Services,Children Looked After,Children's Services and Education,Premises-Related Expenditure,Energy costs,14-Feb-24,6764649,347.04,LIMITED COMPANY,SEFE MARKETING AND TRADING LTD,300000250807105
Portsmouth City Council,PCC,Housing Revenue Account,Special Services,"Housing, Neighbourhood and Building Services",Premises-Related Expenditure,Energy costs,14-Feb-24,6764649,"3,010.53",LIMITED COMPANY,SEFE MARKETING AND TRADING LTD,300000250807105
Portsmouth City Council,PCC,Environmental and Regulatory Services,"Cemetery, Cremation and Mortuary Services","Culture, Leisure & Regulatory Services",Premises-Related Expenditure,Energy costs,14-Feb-24,6764649,434.93,LIMITED COMPANY,SEFE MARKETING AND TRADING LTD,300000250807105
Portsmouth City Council,PCC,Planning Services,Business support,Regeneration,Premises-Related Expenditure,Energy costs,14-Feb-24,6764649,"5,249.27",LIMITED COMPANY,SEFE MARKETING AND TRADING LTD,300000250807105
Portsmouth City Council,PCC,Cultural and Related Services,Library Service,"Culture, Leisure & Regulatory Services",Premises-Related Expenditure,Energy costs,14-Feb-24,6764649,530.76,LIMITED COMPANY,SEFE MARKETING AND TRADING LTD,300000250807105
Portsmouth City Council,PCC,Children's and Education Services,Children Looked After,Children's Services and Education,Premises-Related Expenditure,Energy costs,14-Feb-24,6764649,821.11,LIMITED COMPANY,SEFE MARKETING AND TRADING LTD,300000250807105
Portsmouth City Council,PCC,Children's and Education Services,Primary Schools,Children's Services and Education,Premises-Related Expenditure,Energy costs,14-Feb-24,6764649,543.88,LIMITED COMPANY,SEFE MARKETING AND TRADING LTD,300000250807105
Portsmouth City Council,PCC,Housing Revenue Account,Special Services,"Housing, Neighbourhood and Building Services",Premises-Related Expenditure,Energy costs,14-Feb-24,6764649,24.08,LIMITED COMPANY,SEFE MARKETING AND TRADING LTD,300000250807105
Portsmouth City Council,PCC,Children's and Education Services,Primary Schools,Children's Services and Education,Premises-Related Expenditure,Energy costs,14-Feb-24,6764649,"2,902.91",LIMITED COMPANY,SEFE MARKETING AND TRADING LTD,300000250807105
Portsmouth City Council,PCC,Housing Revenue Account,Supervision and Management,"Housing, Neighbourhood and Building Services",Premises-Related Expenditure,Energy costs,14-Feb-24,6764649,316.41,LIMITED COMPANY,SEFE MARKETING AND TRADING LTD,300000250807105
Portsmouth City Council,PCC,Housing Revenue Account,Special Services,"Housing, Neighbourhood and Building Services",Premises-Related Expenditure,Energy costs,14-Feb-24,6764649,"3,831.26",LIMITED COMPANY,SEFE MARKETING AND TRADING LTD,300000250807105
Portsmouth City Council,PCC,Cultural and Related Services,Library Service,"Culture, Leisure & Regulatory Services",Premises-Related Expenditure,Energy costs,14-Feb-24,6764649,883.93,LIMITED COMPANY,SEFE MARKETING AND TRADING LTD,300000250807105
Portsmouth City Council,PCC,Cultural and Related Services,Library Service,"Culture, Leisure & Regulatory Services",Premises-Related Expenditure,Energy costs,14-Feb-24,6764649,"8,697.95",LIMITED COMPANY,SEFE MARKETING AND TRADING LTD,300000250807105
Portsmouth City Council,PCC,Housing Revenue Account,Special Services,"Housing, Neighbourhood and Building Services",Premises-Related Expenditure,Energy costs,14-Feb-24,6764649,382.87,LIMITED COMPANY,SEFE MARKETING AND TRADING LTD,300000250807105
Portsmouth City Council,PCC,Costs below Net Cost of Services,Trading,Regeneration,Premises-Related Expenditure,Energy costs,14-Feb-24,6764649,235.64,LIMITED COMPANY,SEFE MARKETING AND TRADING LTD,300000250807105
Portsmouth City Council,PCC,Housing Revenue Account,Special Services,"Housing, Neighbourhood and Building Services",Premises-Related Expenditure,Energy costs,14-Feb-24,6764649,682.08,LIMITED COMPANY,SEFE MARKETING AND TRADING LTD,300000250807105
Portsmouth City Council,PCC,Adult Social Care,Learning Disability Support Adults (18 - 64),Adult Care,Third Party Payments,Other establishments,23-Feb-24,6766617,722.6,SUPPLIER,ACHIEVE TOGETHER LIMITED,300000020469986
Portsmouth City Council,PCC,Housing Revenue Account,Special Services,"Housing, Neighbourhood and Building Services",Premises-Related Expenditure,Energy costs,14-Feb-24,6764649,13.72,LIMITED COMPANY,SEFE MARKETING AND TRADING LTD,300000250807105
Portsmouth City Council,PCC,Housing Revenue Account,Supervision and Management,"Housing, Neighbourhood and Building Services",Premises-Related Expenditure,Energy costs,14-Feb-24,6764649,"2,995.79",LIMITED COMPANY,SEFE MARKETING AND TRADING LTD,300000250807105
Portsmouth City Council,PCC,Children's and Education Services,Primary Schools,Children's Services and Education,Premises-Related Expenditure,Energy costs,14-Feb-24,6764649,148.98,LIMITED COMPANY,SEFE MARKETING AND TRADING LTD,300000250807105
Portsmouth City Council,PCC,Housing Revenue Account,Special Services,"Housing, Neighbourhood and Building Services",Premises-Related Expenditure,Energy costs,14-Feb-24,6764649,183.35,LIMITED COMPANY,SEFE MARKETING AND TRADING LTD,300000250807105
Portsmouth City Council,PCC,Housing Revenue Account,Special Services,"Housing, Neighbourhood and Building Services",Premises-Related Expenditure,Energy costs,14-Feb-24,6764649,260.43,LIMITED COMPANY,SEFE MARKETING AND TRADING LTD,300000250807105
Portsmouth City Council,PCC,Housing Revenue Account,Special Services,"Housing, Neighbourhood and Building Services",Premises-Related Expenditure,Energy costs,14-Feb-24,6764649,156.95,LIMITED COMPANY,SEFE MARKETING AND TRADING LTD,300000250807105
Portsmouth City Council,PCC,Children's and Education Services,Primary Schools,Children's Services and Education,Premises-Related Expenditure,Energy costs,14-Feb-24,6764649,"1,934.80",LIMITED COMPANY,SEFE MARKETING AND TRADING LTD,300000250807105
Portsmouth City Council,PCC,Housing Revenue Account,Special Services,"Housing, Neighbourhood and Building Services",Premises-Related Expenditure,Energy costs,14-Feb-24,6764649,34.21,LIMITED COMPANY,SEFE MARKETING AND TRADING LTD,300000250807105
Portsmouth City Council,PCC,Housing Revenue Account,Special Services,"Housing, Neighbourhood and Building Services",Premises-Related Expenditure,Energy costs,14-Feb-24,6764649,183.48,LIMITED COMPANY,SEFE MARKETING AND TRADING LTD,300000250807105
Portsmouth City Council,PCC,Housing Revenue Account,Special Services,"Housing, Neighbourhood and Building Services",Premises-Related Expenditure,Energy costs,14-Feb-24,6764649,58.93,LIMITED COMPANY,SEFE MARKETING AND TRADING LTD,300000250807105
Portsmouth City Council,PCC,Housing Revenue Account,Special Services,"Housing, Neighbourhood and Building Services",Premises-Related Expenditure,Energy costs,14-Feb-24,6764649,563.03,LIMITED COMPANY,SEFE MARKETING AND TRADING LTD,300000250807105
Portsmouth City Council,PCC,Costs below Net Cost of Services,Trading,Regeneration,Premises-Related Expenditure,Energy costs,14-Feb-24,6764649,"62,825.40",LIMITED COMPANY,SEFE MARKETING AND TRADING LTD,300000250807105
Portsmouth City Council,PCC,Housing Revenue Account,Special Services,"Housing, Neighbourhood and Building Services",Premises-Related Expenditure,Energy costs,14-Feb-24,6764649,514.23,LIMITED COMPANY,SEFE MARKETING AND TRADING LTD,300000250807105
Portsmouth City Council,PCC,Housing Revenue Account,Special Services,"Housing, Neighbourhood and Building Services",Premises-Related Expenditure,Energy costs,14-Feb-24,6764649,258.76,LIMITED COMPANY,SEFE MARKETING AND TRADING LTD,300000250807105
Portsmouth City Council,PCC,Housing Revenue Account,Special Services,"Housing, Neighbourhood and Building Services",Premises-Related Expenditure,Energy costs,14-Feb-24,6764649,207.92,LIMITED COMPANY,SEFE MARKETING AND TRADING LTD,300000250807105
Portsmouth City Council,PCC,Housing Revenue Account,Special Services,"Housing, Neighbourhood and Building Services",Premises-Related Expenditure,Energy costs,14-Feb-24,6764649,188.41,LIMITED COMPANY,SEFE MARKETING AND TRADING LTD,300000250807105
Portsmouth City Council,PCC,Housing Revenue Account,Special Services,"Housing, Neighbourhood and Building Services",Premises-Related Expenditure,Energy costs,14-Feb-24,6764649,343.44,LIMITED COMPANY,SEFE MARKETING AND TRADING LTD,300000250807105
Portsmouth City Council,PCC,Housing Revenue Account,Special Services,"Housing, Neighbourhood and Building Services",Premises-Related Expenditure,Energy costs,14-Feb-24,6764649,441.21,LIMITED COMPANY,SEFE MARKETING AND TRADING LTD,300000250807105
Portsmouth City Council,PCC,Housing Revenue Account,Special Services,"Housing, Neighbourhood and Building Services",Premises-Related Expenditure,Energy costs,14-Feb-24,6764649,273.13,LIMITED COMPANY,SEFE MARKETING AND TRADING LTD,300000250807105
Portsmouth City Council,PCC,Housing Revenue Account,Special Services,"Housing, Neighbourhood and Building Services",Premises-Related Expenditure,Energy costs,14-Feb-24,6764649,224.06,LIMITED COMPANY,SEFE MARKETING AND TRADING LTD,300000250807105
Portsmouth City Council,PCC,Housing Revenue Account,Special Services,"Housing, Neighbourhood and Building Services",Premises-Related Expenditure,Energy costs,14-Feb-24,6764649,246.89,LIMITED COMPANY,SEFE MARKETING AND TRADING LTD,300000250807105
Portsmouth City Council,PCC,Housing Services,Homelessness,"Housing, Neighbourhood and Building Services",Premises-Related Expenditure,Energy costs,14-Feb-24,6764649,96.44,LIMITED COMPANY,SEFE MARKETING AND TRADING LTD,300000250807105
Portsmouth City Council,PCC,Other,Suspense and Capital Schemes,"Housing, Neighbourhood and Building Services",Premises-Related Expenditure,Energy costs,14-Feb-24,6764649,92.94,LIMITED COMPANY,SEFE MARKETING AND TRADING LTD,300000250807105
Portsmouth City Council,PCC,Housing Revenue Account,Special Services,"Housing, Neighbourhood and Building Services",Premises-Related Expenditure,Energy costs,14-Feb-24,6764649,15.75,LIMITED COMPANY,SEFE MARKETING AND TRADING LTD,300000250807105
Portsmouth City Council,PCC,Cultural and Related Services,Open Spaces,"Culture, Leisure & Regulatory Services",Premises-Related Expenditure,Water Services,13-Feb-24,6764210,29.34,LIMITED COMPANY,WAVE LTD,300000457049455
Portsmouth City Council,PCC,Cultural and Related Services,Open Spaces,"Culture, Leisure & Regulatory Services",Premises-Related Expenditure,Water Services,13-Feb-24,6764210,4.81,LIMITED COMPANY,WAVE LTD,300000457049455
Portsmouth City Council,PCC,Cultural and Related Services,Open Spaces,"Culture, Leisure & Regulatory Services",Premises-Related Expenditure,Water Services,13-Feb-24,6764210,3.03,LIMITED COMPANY,WAVE LTD,300000457049455
Portsmouth City Council,PCC,Cultural and Related Services,Open Spaces,"Culture, Leisure & Regulatory Services",Premises-Related Expenditure,Water Services,13-Feb-24,6764210,17.38,LIMITED COMPANY,WAVE LTD,300000457049455
Portsmouth City Council,PCC,Cultural and Related Services,Open Spaces,"Culture, Leisure & Regulatory Services",Premises-Related Expenditure,Water Services,13-Feb-24,6764210,3.03,LIMITED COMPANY,WAVE LTD,300000457049455
Portsmouth City Council,PCC,Cultural and Related Services,Open Spaces,"Culture, Leisure & Regulatory Services",Premises-Related Expenditure,Water Services,13-Feb-24,6764210,4.81,LIMITED COMPANY,WAVE LTD,300000457049455
Portsmouth City Council,PCC,Children's and Education Services,Children Looked After,Children's Services and Education,Premises-Related Expenditure,Water Services,13-Feb-24,6764210,44.77,LIMITED COMPANY,WAVE LTD,300000457049455
Portsmouth City Council,PCC,Costs below Net Cost of Services,Trading,"Housing, Neighbourhood and Building Services",Premises-Related Expenditure,Water Services,13-Feb-24,6764210,"2,475.35",LIMITED COMPANY,WAVE LTD,300000457049455
Portsmouth City Council,PCC,Cultural and Related Services,Open Spaces,"Culture, Leisure & Regulatory Services",Premises-Related Expenditure,Water Services,13-Feb-24,6764210,494.94,LIMITED COMPANY,WAVE LTD,300000457049455
Portsmouth City Council,PCC,Housing Revenue Account,Special Services,"Housing, Neighbourhood and Building Services",Premises-Related Expenditure,Water Services,13-Feb-24,6764210,102.98,LIMITED COMPANY,WAVE LTD,300000457049455
Portsmouth City Council,PCC,Cultural and Related Services,Open Spaces,"Culture, Leisure & Regulatory Services",Premises-Related Expenditure,Water Services,13-Feb-24,6764210,3.03,LIMITED COMPANY,WAVE LTD,300000457049455
Portsmouth City Council,PCC,Environmental and Regulatory Services,Regulatory Services,"Housing, Neighbourhood and Building Services",Premises-Related Expenditure,Water Services,13-Feb-24,6764210,525.66,LIMITED COMPANY,WAVE LTD,300000457049455
Portsmouth City Council,PCC,Costs below Net Cost of Services,Trading,Regeneration,Premises-Related Expenditure,Water Services,13-Feb-24,6764210,63.5,LIMITED COMPANY,WAVE LTD,300000457049455
Portsmouth City Council,PCC,Cultural and Related Services,Open Spaces,"Culture, Leisure & Regulatory Services",Premises-Related Expenditure,Water Services,13-Feb-24,6764210,4.81,LIMITED COMPANY,WAVE LTD,300000457049455
Portsmouth City Council,PCC,Cultural and Related Services,Open Spaces,"Culture, Leisure & Regulatory Services",Premises-Related Expenditure,Water Services,13-Feb-24,6764210,28.92,LIMITED COMPANY,WAVE LTD,300000457049455
Portsmouth City Council,PCC,Cultural and Related Services,Open Spaces,"Culture, Leisure & Regulatory Services",Premises-Related Expenditure,Water Services,13-Feb-24,6764210,248.8,LIMITED COMPANY,WAVE LTD,300000457049455
Portsmouth City Council,PCC,Cultural and Related Services,Open Spaces,"Culture, Leisure & Regulatory Services",Premises-Related Expenditure,Water Services,13-Feb-24,6764210,9.02,LIMITED COMPANY,WAVE LTD,300000457049455
Portsmouth City Council,PCC,Environmental and Regulatory Services,Regulatory Services,"Housing, Neighbourhood and Building Services",Premises-Related Expenditure,Water Services,13-Feb-24,6764210,666.56,LIMITED COMPANY,WAVE LTD,300000457049455
Portsmouth City Council,PCC,Cultural and Related Services,Recreation and Sport,"Culture, Leisure & Regulatory Services",Premises-Related Expenditure,Water Services,13-Feb-24,6764210,12.64,LIMITED COMPANY,WAVE LTD,300000457049455
Portsmouth City Council,PCC,Housing Revenue Account,Special Services,"Housing, Neighbourhood and Building Services",Premises-Related Expenditure,Water Services,13-Feb-24,6764210,36.31,LIMITED COMPANY,WAVE LTD,300000457049455
Portsmouth City Council,PCC,Cultural and Related Services,Open Spaces,"Culture, Leisure & Regulatory Services",Premises-Related Expenditure,Water Services,13-Feb-24,6764210,42.37,LIMITED COMPANY,WAVE LTD,300000457049455
Portsmouth City Council,PCC,Cultural and Related Services,Library Service,"Culture, Leisure & Regulatory Services",Premises-Related Expenditure,Water Services,13-Feb-24,6764210,48.97,LIMITED COMPANY,WAVE LTD,300000457049455
Portsmouth City Council,PCC,Cultural and Related Services,Open Spaces,"Culture, Leisure & Regulatory Services",Premises-Related Expenditure,Water Services,13-Feb-24,6764210,225.72,LIMITED COMPANY,WAVE LTD,300000457049455
Portsmouth City Council,PCC,Costs below Net Cost of Services,Trading,Regeneration,Premises-Related Expenditure,Water Services,13-Feb-24,6764210,6.52,LIMITED COMPANY,WAVE LTD,300000457049455
Portsmouth City Council,PCC,Housing Revenue Account,Special Services,"Housing, Neighbourhood and Building Services",Premises-Related Expenditure,Water Services,13-Feb-24,6764210,305.36,LIMITED COMPANY,WAVE LTD,300000457049455
Portsmouth City Council,PCC,Cultural and Related Services,Open Spaces,"Culture, Leisure & Regulatory Services",Premises-Related Expenditure,Water Services,13-Feb-24,6764210,334.19,LIMITED COMPANY,WAVE LTD,300000457049455
Portsmouth City Council,PCC,Children's and Education Services,Primary Schools,Children's Services and Education,Premises-Related Expenditure,Water Services,13-Feb-24,6764210,727.94,LIMITED COMPANY,WAVE LTD,300000457049455
Portsmouth City Council,PCC,Housing Revenue Account,Special Services,"Housing, Neighbourhood and Building Services",Premises-Related Expenditure,Water Services,13-Feb-24,6764210,162.73,LIMITED COMPANY,WAVE LTD,300000457049455
Portsmouth City Council,PCC,Environmental and Regulatory Services,Regulatory Services,"Housing, Neighbourhood and Building Services",Premises-Related Expenditure,Water Services,13-Feb-24,6764210,214.37,LIMITED COMPANY,WAVE LTD,300000457049455
Portsmouth City Council,PCC,Housing Revenue Account,Special Services,"Housing, Neighbourhood and Building Services",Premises-Related Expenditure,Water Services,13-Feb-24,6764210,67.35,LIMITED COMPANY,WAVE LTD,300000457049455
Portsmouth City Council,PCC,Housing Revenue Account,Supervision and Management,"Housing, Neighbourhood and Building Services",Premises-Related Expenditure,Water Services,13-Feb-24,6764210,74.9,LIMITED COMPANY,WAVE LTD,300000457049455
Portsmouth City Council,PCC,Environmental and Regulatory Services,Regulatory Services,"Housing, Neighbourhood and Building Services",Premises-Related Expenditure,Water Services,13-Feb-24,6764210,47.83,LIMITED COMPANY,WAVE LTD,300000457049455
Portsmouth City Council,PCC,Children's and Education Services,Primary Schools,Children's Services and Education,Premises-Related Expenditure,Water Services,13-Feb-24,6764210,176.84,LIMITED COMPANY,WAVE LTD,300000457049455
Portsmouth City Council,PCC,Housing Revenue Account,"Rents, Rates, Taxes and Other Charges","Housing, Neighbourhood and Building Services",Premises-Related Expenditure,Water Services,13-Feb-24,6764210,128.66,LIMITED COMPANY,WAVE LTD,300000457049455
Portsmouth City Council,PCC,Cultural and Related Services,Library Service,"Culture, Leisure & Regulatory Services",Premises-Related Expenditure,Water Services,13-Feb-24,6764210,73.9,LIMITED COMPANY,WAVE LTD,300000457049455
Portsmouth City Council,PCC,Cultural and Related Services,Open Spaces,"Culture, Leisure & Regulatory Services",Premises-Related Expenditure,Water Services,13-Feb-24,6764210,11.7,LIMITED COMPANY,WAVE LTD,300000457049455
Portsmouth City Council,PCC,Cultural and Related Services,Open Spaces,"Culture, Leisure & Regulatory Services",Premises-Related Expenditure,Water Services,13-Feb-24,6764210,17.38,LIMITED COMPANY,WAVE LTD,300000457049455
Portsmouth City Council,PCC,Cultural and Related Services,Culture and Heritage,"Culture, Leisure & Regulatory Services",Premises-Related Expenditure,Water Services,13-Feb-24,6764210,32.52,LIMITED COMPANY,WAVE LTD,300000457049455
Portsmouth City Council,PCC,Adult Social Care,Learning Disabilty Support Older People (65 - 74),Adult Care,Third Party Payments,Joint authorities,23-Feb-24,6766617,722.6,SUPPLIER,ACHIEVE TOGETHER LIMITED,300000020469986
Portsmouth City Council,PCC,Cultural and Related Services,Open Spaces,"Culture, Leisure & Regulatory Services",Premises-Related Expenditure,Water Services,13-Feb-24,6764210,25.77,LIMITED COMPANY,WAVE LTD,300000457049455
Portsmouth City Council,PCC,Cultural and Related Services,Open Spaces,"Culture, Leisure & Regulatory Services",Premises-Related Expenditure,Water Services,13-Feb-24,6764210,"1,169.79",LIMITED COMPANY,WAVE LTD,300000457049455
Portsmouth City Council,PCC,Children's and Education Services,Primary Schools,Children's Services and Education,Premises-Related Expenditure,Water Services,13-Feb-24,6764210,887.33,LIMITED COMPANY,WAVE LTD,300000457049455
Portsmouth City Council,PCC,Cultural and Related Services,Open Spaces,"Culture, Leisure & Regulatory Services",Premises-Related Expenditure,Water Services,13-Feb-24,6764210,116.33,LIMITED COMPANY,WAVE LTD,300000457049455
Portsmouth City Council,PCC,Cultural and Related Services,Recreation and Sport,"Culture, Leisure & Regulatory Services",Premises-Related Expenditure,Water Services,13-Feb-24,6764210,21.42,LIMITED COMPANY,WAVE LTD,300000457049455
Portsmouth City Council,PCC,Cultural and Related Services,Open Spaces,"Culture, Leisure & Regulatory Services",Premises-Related Expenditure,Water Services,13-Feb-24,6764210,66.45,LIMITED COMPANY,WAVE LTD,300000457049455
Portsmouth City Council,PCC,Cultural and Related Services,Open Spaces,"Culture, Leisure & Regulatory Services",Premises-Related Expenditure,Water Services,13-Feb-24,6764210,3.03,LIMITED COMPANY,WAVE LTD,300000457049455
Portsmouth City Council,PCC,Cultural and Related Services,Open Spaces,"Culture, Leisure & Regulatory Services",Premises-Related Expenditure,Water Services,13-Feb-24,6764210,290.15,LIMITED COMPANY,WAVE LTD,300000457049455
Portsmouth City Council,PCC,Cultural and Related Services,Open Spaces,"Culture, Leisure & Regulatory Services",Premises-Related Expenditure,Water Services,13-Feb-24,6764210,603.5,LIMITED COMPANY,WAVE LTD,300000457049455
Portsmouth City Council,PCC,Cultural and Related Services,Open Spaces,"Culture, Leisure & Regulatory Services",Premises-Related Expenditure,Water Services,13-Feb-24,6764210,7.91,LIMITED COMPANY,WAVE LTD,300000457049455
Portsmouth City Council,PCC,Housing Revenue Account,"Rents, Rates, Taxes and Other Charges","Housing, Neighbourhood and Building Services",Premises-Related Expenditure,Water Services,13-Feb-24,6764210,31.03,LIMITED COMPANY,WAVE LTD,300000457049455
Portsmouth City Council,PCC,Housing Revenue Account,Special Services,"Housing, Neighbourhood and Building Services",Premises-Related Expenditure,Water Services,13-Feb-24,6764210,35.59,LIMITED COMPANY,WAVE LTD,300000457049455
Portsmouth City Council,PCC,Cultural and Related Services,Open Spaces,"Culture, Leisure & Regulatory Services",Premises-Related Expenditure,Water Services,13-Feb-24,6764210,12.59,LIMITED COMPANY,WAVE LTD,300000457049455
Portsmouth City Council,PCC,Environmental and Regulatory Services,Regulatory Services,"Housing, Neighbourhood and Building Services",Premises-Related Expenditure,Water Services,13-Feb-24,6764210,853.38,LIMITED COMPANY,WAVE LTD,300000457049455
Portsmouth City Council,PCC,Housing Revenue Account,"Rents, Rates, Taxes and Other Charges","Housing, Neighbourhood and Building Services",Premises-Related Expenditure,Water Services,13-Feb-24,6764210,102.54,LIMITED COMPANY,WAVE LTD,300000457049455
Portsmouth City Council,PCC,Housing Revenue Account,Special Services,"Housing, Neighbourhood and Building Services",Premises-Related Expenditure,Water Services,13-Feb-24,6764210,15.27,LIMITED COMPANY,WAVE LTD,300000457049455
Portsmouth City Council,PCC,Housing Revenue Account,"Rents, Rates, Taxes and Other Charges","Housing, Neighbourhood and Building Services",Premises-Related Expenditure,Water Services,13-Feb-24,6764210,34.54,LIMITED COMPANY,WAVE LTD,300000457049455
Portsmouth City Council,PCC,Highways and Transport Services,"Transport Planning, Policy and Strategy",Regeneration,Premises-Related Expenditure,Water Services,13-Feb-24,6764210,3.03,LIMITED COMPANY,WAVE LTD,300000457049455
Portsmouth City Council,PCC,Adult Social Care,Learning Disability Support Adults (18 - 64),Adult Care,Third Party Payments,Other establishments,23-Feb-24,6766617,724.83,SUPPLIER,ACHIEVE TOGETHER LIMITED,300000020469986
Portsmouth City Council,PCC,Cultural and Related Services,Culture and Heritage,"Culture, Leisure & Regulatory Services",Premises-Related Expenditure,Water Services,13-Feb-24,6764210,26.4,LIMITED COMPANY,WAVE LTD,300000457049455
Portsmouth City Council,PCC,Costs below Net Cost of Services,Trading,"Housing, Neighbourhood and Building Services",Premises-Related Expenditure,Water Services,13-Feb-24,6764210,"2,032.99",LIMITED COMPANY,WAVE LTD,300000457049455
Portsmouth City Council,PCC,Housing Revenue Account,Special Services,"Housing, Neighbourhood and Building Services",Premises-Related Expenditure,Water Services,13-Feb-24,6764210,82.68,LIMITED COMPANY,WAVE LTD,300000457049455
Portsmouth City Council,PCC,Cultural and Related Services,Open Spaces,"Culture, Leisure & Regulatory Services",Premises-Related Expenditure,Water Services,13-Feb-24,6764210,265.43,LIMITED COMPANY,WAVE LTD,300000457049455
Portsmouth City Council,PCC,Cultural and Related Services,Open Spaces,"Culture, Leisure & Regulatory Services",Premises-Related Expenditure,Water Services,13-Feb-24,6764210,87.56,LIMITED COMPANY,WAVE LTD,300000457049455
Portsmouth City Council,PCC,Other,Suspense and Capital Schemes,"Housing, Neighbourhood and Building Services",Premises-Related Expenditure,Water Services,13-Feb-24,6764210,443.19,LIMITED COMPANY,WAVE LTD,300000457049455
Portsmouth City Council,PCC,Adult Social Care,Learning Disability Support Adults (18 - 64),Adult Care,Third Party Payments,Other establishments,23-Feb-24,6766617,"1,008.00",SUPPLIER,ACHIEVE TOGETHER LIMITED,300000020469986
Portsmouth City Council,PCC,Environmental and Regulatory Services,"Cemetery, Cremation and Mortuary Services","Culture, Leisure & Regulatory Services",Premises-Related Expenditure,Water Services,13-Feb-24,6764210,278.58,LIMITED COMPANY,WAVE LTD,300000457049455
Portsmouth City Council,PCC,Cultural and Related Services,Library Service,"Culture, Leisure & Regulatory Services",Premises-Related Expenditure,Water Services,13-Feb-24,6764210,18.77,LIMITED COMPANY,WAVE LTD,300000457049455
Portsmouth City Council,PCC,Cultural and Related Services,Open Spaces,"Culture, Leisure & Regulatory Services",Premises-Related Expenditure,Water Services,13-Feb-24,6764210,57.22,LIMITED COMPANY,WAVE LTD,300000457049455
Portsmouth City Council,PCC,Children's and Education Services,Primary Schools,Children's Services and Education,Premises-Related Expenditure,Water Services,13-Feb-24,6764210,128.63,LIMITED COMPANY,WAVE LTD,300000457049455
Portsmouth City Council,PCC,Children's and Education Services,Primary Schools,Children's Services and Education,Premises-Related Expenditure,Water Services,13-Feb-24,6764210,446.26,LIMITED COMPANY,WAVE LTD,300000457049455
Portsmouth City Council,PCC,Environmental and Regulatory Services,"Cemetery, Cremation and Mortuary Services","Culture, Leisure & Regulatory Services",Premises-Related Expenditure,Water Services,13-Feb-24,6764210,179.54,LIMITED COMPANY,WAVE LTD,300000457049455
Portsmouth City Council,PCC,Cultural and Related Services,Open Spaces,"Culture, Leisure & Regulatory Services",Premises-Related Expenditure,Water Services,13-Feb-24,6764210,26.4,LIMITED COMPANY,WAVE LTD,300000457049455
Portsmouth City Council,PCC,Cultural and Related Services,Library Service,"Culture, Leisure & Regulatory Services",Premises-Related Expenditure,Water Services,13-Feb-24,6764210,27.54,LIMITED COMPANY,WAVE LTD,300000457049455
Portsmouth City Council,PCC,Cultural and Related Services,Open Spaces,"Culture, Leisure & Regulatory Services",Premises-Related Expenditure,Water Services,13-Feb-24,6764210,9.02,LIMITED COMPANY,WAVE LTD,300000457049455
Portsmouth City Council,PCC,Cultural and Related Services,Open Spaces,"Culture, Leisure & Regulatory Services",Premises-Related Expenditure,Water Services,13-Feb-24,6764210,"2,265.59",LIMITED COMPANY,WAVE LTD,300000457049455
Portsmouth City Council,PCC,Cultural and Related Services,Open Spaces,"Culture, Leisure & Regulatory Services",Premises-Related Expenditure,Water Services,13-Feb-24,6764210,365.09,LIMITED COMPANY,WAVE LTD,300000457049455
Portsmouth City Council,PCC,Housing Revenue Account,Supervision and Management,"Housing, Neighbourhood and Building Services",Premises-Related Expenditure,Water Services,13-Feb-24,6764210,39.79,LIMITED COMPANY,WAVE LTD,300000457049455
Portsmouth City Council,PCC,Housing Revenue Account,Special Services,"Housing, Neighbourhood and Building Services",Premises-Related Expenditure,Water Services,13-Feb-24,6764210,87.64,LIMITED COMPANY,WAVE LTD,300000457049455
Portsmouth City Council,PCC,Housing Revenue Account,Special Services,"Housing, Neighbourhood and Building Services",Premises-Related Expenditure,Water Services,13-Feb-24,6764210,9.7,LIMITED COMPANY,WAVE LTD,300000457049455
Portsmouth City Council,PCC,Planning Services,Business support,Regeneration,Premises-Related Expenditure,Water Services,13-Feb-24,6764210,254.62,LIMITED COMPANY,WAVE LTD,300000457049455
Portsmouth City Council,PCC,Housing Revenue Account,Special Services,"Housing, Neighbourhood and Building Services",Premises-Related Expenditure,Water Services,13-Feb-24,6764210,9.16,LIMITED COMPANY,WAVE LTD,300000457049455
Portsmouth City Council,PCC,Housing Revenue Account,"Rents, Rates, Taxes and Other Charges","Housing, Neighbourhood and Building Services",Premises-Related Expenditure,Water Services,13-Feb-24,6764210,4.81,LIMITED COMPANY,WAVE LTD,300000457049455
Portsmouth City Council,PCC,Housing Revenue Account,Special Services,"Housing, Neighbourhood and Building Services",Premises-Related Expenditure,Water Services,13-Feb-24,6764210,161.4,LIMITED COMPANY,WAVE LTD,300000457049455
Portsmouth City Council,PCC,Costs below Net Cost of Services,Trading,Regeneration,Premises-Related Expenditure,Water Services,13-Feb-24,6764210,3.03,LIMITED COMPANY,WAVE LTD,300000457049455
Portsmouth City Council,PCC,Children's and Education Services,Primary Schools,Children's Services and Education,Premises-Related Expenditure,Water Services,13-Feb-24,6764210,45.92,LIMITED COMPANY,WAVE LTD,300000457049455
Portsmouth City Council,PCC,Housing Revenue Account,Special Services,"Housing, Neighbourhood and Building Services",Premises-Related Expenditure,Water Services,13-Feb-24,6764210,129.05,LIMITED COMPANY,WAVE LTD,300000457049455
Portsmouth City Council,PCC,Cultural and Related Services,Culture and Heritage,"Culture, Leisure & Regulatory Services",Premises-Related Expenditure,Water Services,13-Feb-24,6764210,40.95,LIMITED COMPANY,WAVE LTD,300000457049455
Portsmouth City Council,PCC,Cultural and Related Services,Open Spaces,"Culture, Leisure & Regulatory Services",Premises-Related Expenditure,Water Services,13-Feb-24,6764210,18.84,LIMITED COMPANY,WAVE LTD,300000457049455
Portsmouth City Council,PCC,Housing Revenue Account,"Rents, Rates, Taxes and Other Charges","Housing, Neighbourhood and Building Services",Premises-Related Expenditure,Water Services,13-Feb-24,6764210,9.34,LIMITED COMPANY,WAVE LTD,300000457049455
Portsmouth City Council,PCC,Housing Revenue Account,Special Services,"Housing, Neighbourhood and Building Services",Premises-Related Expenditure,Water Services,13-Feb-24,6764210,9.34,LIMITED COMPANY,WAVE LTD,300000457049455
Portsmouth City Council,PCC,Children's and Education Services,Family Support Services,Children's Services and Education,Premises-Related Expenditure,Water Services,13-Feb-24,6764210,536.42,LIMITED COMPANY,WAVE LTD,300000457049455
Portsmouth City Council,PCC,Housing Revenue Account,"Rents, Rates, Taxes and Other Charges","Housing, Neighbourhood and Building Services",Premises-Related Expenditure,Water Services,13-Feb-24,6764210,3.45,LIMITED COMPANY,WAVE LTD,300000457049455
Portsmouth City Council,PCC,Housing Revenue Account,"Rents, Rates, Taxes and Other Charges","Housing, Neighbourhood and Building Services",Premises-Related Expenditure,Water Services,13-Feb-24,6764210,36.91,LIMITED COMPANY,WAVE LTD,300000457049455
Portsmouth City Council,PCC,Highways and Transport Services,Public Transport,Regeneration,Premises-Related Expenditure,Water Services,13-Feb-24,6764210,44.77,LIMITED COMPANY,WAVE LTD,300000457049455
Portsmouth City Council,PCC,Housing Revenue Account,"Rents, Rates, Taxes and Other Charges","Housing, Neighbourhood and Building Services",Premises-Related Expenditure,Water Services,13-Feb-24,6764210,3.03,LIMITED COMPANY,WAVE LTD,300000457049455
Portsmouth City Council,PCC,Children's and Education Services,Primary Schools,Children's Services and Education,Premises-Related Expenditure,Water Services,13-Feb-24,6764210,489.12,LIMITED COMPANY,WAVE LTD,300000457049455
Portsmouth City Council,PCC,Housing Revenue Account,Special Services,"Housing, Neighbourhood and Building Services",Premises-Related Expenditure,Water Services,13-Feb-24,6764210,69.5,LIMITED COMPANY,WAVE LTD,300000457049455
Portsmouth City Council,PCC,Central Services,"Registration of Births, Deaths and Marriages","Culture, Leisure & Regulatory Services",Premises-Related Expenditure,Water Services,13-Feb-24,6764210,69.27,LIMITED COMPANY,WAVE LTD,300000457049455
Portsmouth City Council,PCC,Cultural and Related Services,Culture and Heritage,"Culture, Leisure & Regulatory Services",Premises-Related Expenditure,Water Services,13-Feb-24,6764210,2,LIMITED COMPANY,WAVE LTD,300000457049455
Portsmouth City Council,PCC,Children's and Education Services,Primary Schools,Children's Services and Education,Premises-Related Expenditure,Water Services,13-Feb-24,6764210,381.71,LIMITED COMPANY,WAVE LTD,300000457049455
Portsmouth City Council,PCC,Environmental and Regulatory Services,Regulatory Services,"Housing, Neighbourhood and Building Services",Premises-Related Expenditure,Water Services,13-Feb-24,6764210,418.82,LIMITED COMPANY,WAVE LTD,300000457049455
Portsmouth City Council,PCC,Environmental and Regulatory Services,Regulatory Services,"Housing, Neighbourhood and Building Services",Premises-Related Expenditure,Water Services,13-Feb-24,6764210,505.37,LIMITED COMPANY,WAVE LTD,300000457049455
Portsmouth City Council,PCC,Housing Revenue Account,"Rents, Rates, Taxes and Other Charges","Housing, Neighbourhood and Building Services",Premises-Related Expenditure,Water Services,13-Feb-24,6764210,36.91,LIMITED COMPANY,WAVE LTD,300000457049455
Portsmouth City Council,PCC,Children's and Education Services,Primary Schools,Children's Services and Education,Premises-Related Expenditure,Water Services,13-Feb-24,6764210,26.39,LIMITED COMPANY,WAVE LTD,300000457049455
Portsmouth City Council,PCC,Children's and Education Services,Primary Schools,Children's Services and Education,Premises-Related Expenditure,Water Services,13-Feb-24,6764210,179.77,LIMITED COMPANY,WAVE LTD,300000457049455
Portsmouth City Council,PCC,Environmental and Regulatory Services,Regulatory Services,"Housing, Neighbourhood and Building Services",Premises-Related Expenditure,Water Services,13-Feb-24,6764210,113.3,LIMITED COMPANY,WAVE LTD,300000457049455
Portsmouth City Council,PCC,Environmental and Regulatory Services,Regulatory Services,"Housing, Neighbourhood and Building Services",Premises-Related Expenditure,Water Services,13-Feb-24,6764210,"1,331.21",LIMITED COMPANY,WAVE LTD,300000457049455
Portsmouth City Council,PCC,Cultural and Related Services,Open Spaces,"Culture, Leisure & Regulatory Services",Premises-Related Expenditure,Water Services,13-Feb-24,6764210,"1,637.15",LIMITED COMPANY,WAVE LTD,300000457049455
Portsmouth City Council,PCC,Cultural and Related Services,Open Spaces,"Culture, Leisure & Regulatory Services",Premises-Related Expenditure,Water Services,13-Feb-24,6764210,14.63,LIMITED COMPANY,WAVE LTD,300000457049455
Portsmouth City Council,PCC,Cultural and Related Services,Open Spaces,"Culture, Leisure & Regulatory Services",Premises-Related Expenditure,Water Services,13-Feb-24,6764210,99.17,LIMITED COMPANY,WAVE LTD,300000457049455
Portsmouth City Council,PCC,Cultural and Related Services,Open Spaces,"Culture, Leisure & Regulatory Services",Premises-Related Expenditure,Water Services,13-Feb-24,6764210,"1,123.16",LIMITED COMPANY,WAVE LTD,300000457049455
Portsmouth City Council,PCC,Cultural and Related Services,Open Spaces,"Culture, Leisure & Regulatory Services",Premises-Related Expenditure,Water Services,13-Feb-24,6764210,329.53,LIMITED COMPANY,WAVE LTD,300000457049455
Portsmouth City Council,PCC,Cultural and Related Services,Open Spaces,"Culture, Leisure & Regulatory Services",Premises-Related Expenditure,Water Services,13-Feb-24,6764210,30.92,LIMITED COMPANY,WAVE LTD,300000457049455
Portsmouth City Council,PCC,Cultural and Related Services,Open Spaces,"Culture, Leisure & Regulatory Services",Premises-Related Expenditure,Water Services,13-Feb-24,6764210,24.88,LIMITED COMPANY,WAVE LTD,300000457049455
Portsmouth City Council,PCC,Cultural and Related Services,Culture and Heritage,"Culture, Leisure & Regulatory Services",Premises-Related Expenditure,Water Services,13-Feb-24,6764210,36.72,LIMITED COMPANY,WAVE LTD,300000457049455
Portsmouth City Council,PCC,Children's and Education Services,Primary Schools,Children's Services and Education,Premises-Related Expenditure,Water Services,13-Feb-24,6764210,282.19,LIMITED COMPANY,WAVE LTD,300000457049455
Portsmouth City Council,PCC,Environmental and Regulatory Services,"Cemetery, Cremation and Mortuary Services","Culture, Leisure & Regulatory Services",Premises-Related Expenditure,Water Services,13-Feb-24,6764210,10.62,LIMITED COMPANY,WAVE LTD,300000457049455
Portsmouth City Council,PCC,Housing Revenue Account,Special Services,"Housing, Neighbourhood and Building Services",Premises-Related Expenditure,Water Services,13-Feb-24,6764210,3.03,LIMITED COMPANY,WAVE LTD,300000457049455
Portsmouth City Council,PCC,Housing Revenue Account,Special Services,"Housing, Neighbourhood and Building Services",Premises-Related Expenditure,Water Services,13-Feb-24,6764210,69.7,LIMITED COMPANY,WAVE LTD,300000457049455
Portsmouth City Council,PCC,Children's and Education Services,Family Support Services,Children's Services and Education,Premises-Related Expenditure,Water Services,13-Feb-24,6764210,164.21,LIMITED COMPANY,WAVE LTD,300000457049455
Portsmouth City Council,PCC,Housing Revenue Account,Special Services,"Housing, Neighbourhood and Building Services",Premises-Related Expenditure,Water Services,13-Feb-24,6764210,35.59,LIMITED COMPANY,WAVE LTD,300000457049455
Portsmouth City Council,PCC,Housing Revenue Account,Special Services,"Housing, Neighbourhood and Building Services",Premises-Related Expenditure,Water Services,13-Feb-24,6764210,101.06,LIMITED COMPANY,WAVE LTD,300000457049455
Portsmouth City Council,PCC,Housing Revenue Account,Supervision and Management,"Housing, Neighbourhood and Building Services",Premises-Related Expenditure,Water Services,13-Feb-24,6764210,3.03,LIMITED COMPANY,WAVE LTD,300000457049455
Portsmouth City Council,PCC,Housing Revenue Account,Special Services,"Housing, Neighbourhood and Building Services",Premises-Related Expenditure,Water Services,13-Feb-24,6764210,194.85,LIMITED COMPANY,WAVE LTD,300000457049455
Portsmouth City Council,PCC,Housing Revenue Account,Supervision and Management,"Housing, Neighbourhood and Building Services",Premises-Related Expenditure,Water Services,13-Feb-24,6764210,3.03,LIMITED COMPANY,WAVE LTD,300000457049455
Portsmouth City Council,PCC,Housing Revenue Account,Supervision and Management,"Housing, Neighbourhood and Building Services",Premises-Related Expenditure,Water Services,13-Feb-24,6764210,36.91,LIMITED COMPANY,WAVE LTD,300000457049455
Portsmouth City Council,PCC,Highways and Transport Services,Parking Services,Regeneration,Premises-Related Expenditure,Water Services,13-Feb-24,6764210,143.02,LIMITED COMPANY,WAVE LTD,300000457049455
Portsmouth City Council,PCC,Cultural and Related Services,Library Service,"Culture, Leisure & Regulatory Services",Premises-Related Expenditure,Water Services,13-Feb-24,6764210,755.74,LIMITED COMPANY,WAVE LTD,300000457049455
Portsmouth City Council,PCC,Cultural and Related Services,Open Spaces,"Culture, Leisure & Regulatory Services",Premises-Related Expenditure,Water Services,13-Feb-24,6764210,43.19,LIMITED COMPANY,WAVE LTD,300000457049455
Portsmouth City Council,PCC,Support Service / Transparency Costs Unallocated,AMS,Corporate Services,Premises-Related Expenditure,Water Services,13-Feb-24,6764210,"4,321.66",LIMITED COMPANY,WAVE LTD,300000457049455
Portsmouth City Council,PCC,Costs below Net Cost of Services,Trading,Regeneration,Premises-Related Expenditure,Water Services,13-Feb-24,6764210,"8,667.14",LIMITED COMPANY,WAVE LTD,300000457049455
Portsmouth City Council,PCC,Cultural and Related Services,Open Spaces,"Culture, Leisure & Regulatory Services",Premises-Related Expenditure,Water Services,13-Feb-24,6764210,163.21,LIMITED COMPANY,WAVE LTD,300000457049455
Portsmouth City Council,PCC,Cultural and Related Services,Open Spaces,"Culture, Leisure & Regulatory Services",Premises-Related Expenditure,Water Services,13-Feb-24,6764210,"1,078.24",LIMITED COMPANY,WAVE LTD,300000457049455
Portsmouth City Council,PCC,Highways and Transport Services,"Airports, Harbours and Toll Facilities",Portsmouth International Port,Premises-Related Expenditure,Water Services,13-Feb-24,6764210,"15,259.95",LIMITED COMPANY,WAVE LTD,300000457049455
Portsmouth City Council,PCC,Cultural and Related Services,Open Spaces,"Culture, Leisure & Regulatory Services",Premises-Related Expenditure,Water Services,13-Feb-24,6764210,62.8,LIMITED COMPANY,WAVE LTD,300000457049455
Portsmouth City Council,PCC,Adult Social Care,Learning Disability Support Adults (18 - 64),Adult Care,Third Party Payments,Other establishments,23-Feb-24,6766617,"1,204.63",SUPPLIER,ACHIEVE TOGETHER LIMITED,300000020469986
Portsmouth City Council,PCC,Environmental and Regulatory Services,"Cemetery, Cremation and Mortuary Services","Culture, Leisure & Regulatory Services",Premises-Related Expenditure,Water Services,13-Feb-24,6764210,31.03,LIMITED COMPANY,WAVE LTD,300000457049455
Portsmouth City Council,PCC,Children's and Education Services,Primary Schools,Children's Services and Education,Premises-Related Expenditure,Water Services,13-Feb-24,6764210,3.05,LIMITED COMPANY,WAVE LTD,300000457049455
Portsmouth City Council,PCC,Highways and Transport Services,Public Transport,Regeneration,Premises-Related Expenditure,Water Services,13-Feb-24,6764210,116.12,LIMITED COMPANY,WAVE LTD,300000457049455
Portsmouth City Council,PCC,Housing Revenue Account,Special Services,"Housing, Neighbourhood and Building Services",Premises-Related Expenditure,Water Services,13-Feb-24,6764210,53.29,LIMITED COMPANY,WAVE LTD,300000457049455
Portsmouth City Council,PCC,Housing Revenue Account,Special Services,"Housing, Neighbourhood and Building Services",Premises-Related Expenditure,Water Services,13-Feb-24,6764210,53.29,LIMITED COMPANY,WAVE LTD,300000457049455
Portsmouth City Council,PCC,Housing Revenue Account,Special Services,"Housing, Neighbourhood and Building Services",Premises-Related Expenditure,Water Services,13-Feb-24,6764210,51.41,LIMITED COMPANY,WAVE LTD,300000457049455
Portsmouth City Council,PCC,Housing Revenue Account,"Rents, Rates, Taxes and Other Charges","Housing, Neighbourhood and Building Services",Premises-Related Expenditure,Water Services,13-Feb-24,6764210,92.86,LIMITED COMPANY,WAVE LTD,300000457049455
Portsmouth City Council,PCC,Planning Services,Economic Development,Regeneration,Premises-Related Expenditure,Water Services,13-Feb-24,6764210,13.27,LIMITED COMPANY,WAVE LTD,300000457049455
Portsmouth City Council,PCC,Housing Revenue Account,Supervision and Management,"Housing, Neighbourhood and Building Services",Premises-Related Expenditure,Water Services,13-Feb-24,6764210,266.5,LIMITED COMPANY,WAVE LTD,300000457049455
Portsmouth City Council,PCC,Highways and Transport Services,Parking Services,Regeneration,Premises-Related Expenditure,Water Services,13-Feb-24,6764210,65.17,LIMITED COMPANY,WAVE LTD,300000457049455
Portsmouth City Council,PCC,Housing Revenue Account,Special Services,"Housing, Neighbourhood and Building Services",Premises-Related Expenditure,Water Services,13-Feb-24,6764210,116.42,LIMITED COMPANY,WAVE LTD,300000457049455
Portsmouth City Council,PCC,Housing Revenue Account,Special Services,"Housing, Neighbourhood and Building Services",Premises-Related Expenditure,Water Services,13-Feb-24,6764210,6.52,LIMITED COMPANY,WAVE LTD,300000457049455
Portsmouth City Council,PCC,Housing Revenue Account,"Rents, Rates, Taxes and Other Charges","Housing, Neighbourhood and Building Services",Premises-Related Expenditure,Water Services,13-Feb-24,6764210,10.17,LIMITED COMPANY,WAVE LTD,300000457049455
Portsmouth City Council,PCC,Housing Revenue Account,"Rents, Rates, Taxes and Other Charges","Housing, Neighbourhood and Building Services",Premises-Related Expenditure,Water Services,13-Feb-24,6764210,4.05,LIMITED COMPANY,WAVE LTD,300000457049455
Portsmouth City Council,PCC,Housing Revenue Account,"Rents, Rates, Taxes and Other Charges","Housing, Neighbourhood and Building Services",Premises-Related Expenditure,Water Services,13-Feb-24,6764210,46.92,LIMITED COMPANY,WAVE LTD,300000457049455
Portsmouth City Council,PCC,Cultural and Related Services,Open Spaces,"Culture, Leisure & Regulatory Services",Premises-Related Expenditure,Water Services,13-Feb-24,6764210,7.49,LIMITED COMPANY,WAVE LTD,300000457049455
Portsmouth City Council,PCC,Housing Revenue Account,Special Services,"Housing, Neighbourhood and Building Services",Premises-Related Expenditure,Water Services,13-Feb-24,6764210,63.47,LIMITED COMPANY,WAVE LTD,300000457049455
Portsmouth City Council,PCC,Housing Revenue Account,Special Services,"Housing, Neighbourhood and Building Services",Premises-Related Expenditure,Water Services,13-Feb-24,6764210,64.3,LIMITED COMPANY,WAVE LTD,300000457049455
Portsmouth City Council,PCC,Housing Revenue Account,Special Services,"Housing, Neighbourhood and Building Services",Premises-Related Expenditure,Water Services,13-Feb-24,6764210,36.91,LIMITED COMPANY,WAVE LTD,300000457049455
Portsmouth City Council,PCC,Housing Revenue Account,Special Services,"Housing, Neighbourhood and Building Services",Premises-Related Expenditure,Water Services,13-Feb-24,6764210,25.85,LIMITED COMPANY,WAVE LTD,300000457049455
Portsmouth City Council,PCC,Cultural and Related Services,Open Spaces,"Culture, Leisure & Regulatory Services",Premises-Related Expenditure,Water Services,13-Feb-24,6764210,34.27,LIMITED COMPANY,WAVE LTD,300000457049455
Portsmouth City Council,PCC,Cultural and Related Services,Open Spaces,"Culture, Leisure & Regulatory Services",Premises-Related Expenditure,Water Services,13-Feb-24,6764210,3.03,LIMITED COMPANY,WAVE LTD,300000457049455
Portsmouth City Council,PCC,Housing Revenue Account,Special Services,"Housing, Neighbourhood and Building Services",Premises-Related Expenditure,Water Services,13-Feb-24,6764210,27.96,LIMITED COMPANY,WAVE LTD,300000457049455
Portsmouth City Council,PCC,Housing Revenue Account,Supervision and Management,"Housing, Neighbourhood and Building Services",Premises-Related Expenditure,Water Services,13-Feb-24,6764210,51.41,LIMITED COMPANY,WAVE LTD,300000457049455
Portsmouth City Council,PCC,Cultural and Related Services,Open Spaces,"Culture, Leisure & Regulatory Services",Premises-Related Expenditure,Water Services,13-Feb-24,6764210,44.98,LIMITED COMPANY,WAVE LTD,300000457049455
Portsmouth City Council,PCC,Cultural and Related Services,Open Spaces,"Culture, Leisure & Regulatory Services",Premises-Related Expenditure,Water Services,13-Feb-24,6764210,7.49,LIMITED COMPANY,WAVE LTD,300000457049455
Portsmouth City Council,PCC,Cultural and Related Services,Open Spaces,"Culture, Leisure & Regulatory Services",Premises-Related Expenditure,Water Services,13-Feb-24,6764210,47.66,LIMITED COMPANY,WAVE LTD,300000457049455
Portsmouth City Council,PCC,Cultural and Related Services,Open Spaces,"Culture, Leisure & Regulatory Services",Premises-Related Expenditure,Water Services,13-Feb-24,6764210,11.95,LIMITED COMPANY,WAVE LTD,300000457049455
Portsmouth City Council,PCC,Cultural and Related Services,Open Spaces,"Culture, Leisure & Regulatory Services",Premises-Related Expenditure,Water Services,13-Feb-24,6764210,3.03,LIMITED COMPANY,WAVE LTD,300000457049455
Portsmouth City Council,PCC,Cultural and Related Services,Open Spaces,"Culture, Leisure & Regulatory Services",Premises-Related Expenditure,Water Services,13-Feb-24,6764210,3.03,LIMITED COMPANY,WAVE LTD,300000457049455
Portsmouth City Council,PCC,Housing Revenue Account,Supervision and Management,"Housing, Neighbourhood and Building Services",Premises-Related Expenditure,Water Services,13-Feb-24,6764210,268.59,LIMITED COMPANY,WAVE LTD,300000457049455
Portsmouth City Council,PCC,Cultural and Related Services,Recreation and Sport,"Culture, Leisure & Regulatory Services",Premises-Related Expenditure,Water Services,13-Feb-24,6764210,60.09,LIMITED COMPANY,WAVE LTD,300000457049455
Portsmouth City Council,PCC,Cultural and Related Services,Open Spaces,"Culture, Leisure & Regulatory Services",Premises-Related Expenditure,Water Services,13-Feb-24,6764210,24.26,LIMITED COMPANY,WAVE LTD,300000457049455
Portsmouth City Council,PCC,Environmental and Regulatory Services,Regulatory Services,"Housing, Neighbourhood and Building Services",Premises-Related Expenditure,Water Services,13-Feb-24,6764210,882.77,LIMITED COMPANY,WAVE LTD,300000457049455
Portsmouth City Council,PCC,Cultural and Related Services,Open Spaces,"Culture, Leisure & Regulatory Services",Premises-Related Expenditure,Water Services,13-Feb-24,6764210,178.04,LIMITED COMPANY,WAVE LTD,300000457049455
Portsmouth City Council,PCC,Cultural and Related Services,Open Spaces,"Culture, Leisure & Regulatory Services",Premises-Related Expenditure,Water Services,13-Feb-24,6764210,4.9,LIMITED COMPANY,WAVE LTD,300000457049455
Portsmouth City Council,PCC,Cultural and Related Services,Open Spaces,"Culture, Leisure & Regulatory Services",Premises-Related Expenditure,Water Services,13-Feb-24,6764210,871.35,LIMITED COMPANY,WAVE LTD,300000457049455
Portsmouth City Council,PCC,Costs below Net Cost of Services,Trading,Regeneration,Premises-Related Expenditure,Water Services,13-Feb-24,6764210,86.16,LIMITED COMPANY,WAVE LTD,300000457049455
Portsmouth City Council,PCC,Other,Suspense and Capital Schemes,Regeneration,Premises-Related Expenditure,Water Services,13-Feb-24,6764210,"-13,439.38",LIMITED COMPANY,WAVE LTD,300000457049455
Portsmouth City Council,PCC,Children's and Education Services,Primary Schools,Children's Services and Education,Premises-Related Expenditure,Water Services,13-Feb-24,6764210,446.26,LIMITED COMPANY,WAVE LTD,300000457049455
Portsmouth City Council,PCC,Environmental and Regulatory Services,Regulatory Services,"Housing, Neighbourhood and Building Services",Premises-Related Expenditure,Water Services,13-Feb-24,6764210,317.37,LIMITED COMPANY,WAVE LTD,300000457049455
Portsmouth City Council,PCC,Cultural and Related Services,Library Service,"Culture, Leisure & Regulatory Services",Premises-Related Expenditure,Water Services,13-Feb-24,6764210,153.55,LIMITED COMPANY,WAVE LTD,300000457049455
Portsmouth City Council,PCC,Housing Revenue Account,"Rents, Rates, Taxes and Other Charges","Housing, Neighbourhood and Building Services",Premises-Related Expenditure,Water Services,13-Feb-24,6764210,36.91,LIMITED COMPANY,WAVE LTD,300000457049455
Portsmouth City Council,PCC,Housing Revenue Account,"Rents, Rates, Taxes and Other Charges","Housing, Neighbourhood and Building Services",Premises-Related Expenditure,Water Services,13-Feb-24,6764210,36.91,LIMITED COMPANY,WAVE LTD,300000457049455
Portsmouth City Council,PCC,Housing Revenue Account,Special Services,"Housing, Neighbourhood and Building Services",Premises-Related Expenditure,Water Services,13-Feb-24,6764210,15.29,LIMITED COMPANY,WAVE LTD,300000457049455
Portsmouth City Council,PCC,Costs below Net Cost of Services,Trading,Regeneration,Premises-Related Expenditure,Water Services,13-Feb-24,6764210,30.61,LIMITED COMPANY,WAVE LTD,300000457049455
Portsmouth City Council,PCC,Housing Revenue Account,Special Services,"Housing, Neighbourhood and Building Services",Premises-Related Expenditure,Water Services,13-Feb-24,6764210,10.3,LIMITED COMPANY,WAVE LTD,300000457049455
Portsmouth City Council,PCC,Highways and Transport Services,Parking Services,Regeneration,Premises-Related Expenditure,Water Services,13-Feb-24,6764210,5.07,LIMITED COMPANY,WAVE LTD,300000457049455
Portsmouth City Council,PCC,Housing Revenue Account,Special Services,"Housing, Neighbourhood and Building Services",Premises-Related Expenditure,Water Services,13-Feb-24,6764210,14.9,LIMITED COMPANY,WAVE LTD,300000457049455
Portsmouth City Council,PCC,Housing Revenue Account,Special Services,"Housing, Neighbourhood and Building Services",Premises-Related Expenditure,Water Services,13-Feb-24,6764210,94.59,LIMITED COMPANY,WAVE LTD,300000457049455
Portsmouth City Council,PCC,Housing Revenue Account,Special Services,"Housing, Neighbourhood and Building Services",Premises-Related Expenditure,Water Services,13-Feb-24,6764210,65.46,LIMITED COMPANY,WAVE LTD,300000457049455
Portsmouth City Council,PCC,Housing Revenue Account,Non-dwelling Rents (Gross),"Housing, Neighbourhood and Building Services",Premises-Related Expenditure,Water Services,13-Feb-24,6764210,10.3,LIMITED COMPANY,WAVE LTD,300000457049455
Portsmouth City Council,PCC,Housing Revenue Account,Special Services,"Housing, Neighbourhood and Building Services",Premises-Related Expenditure,Water Services,13-Feb-24,6764210,31.29,LIMITED COMPANY,WAVE LTD,300000457049455
Portsmouth City Council,PCC,Housing Revenue Account,Special Services,"Housing, Neighbourhood and Building Services",Premises-Related Expenditure,Water Services,13-Feb-24,6764210,10.3,LIMITED COMPANY,WAVE LTD,300000457049455
Portsmouth City Council,PCC,Housing Revenue Account,Special Services,"Housing, Neighbourhood and Building Services",Premises-Related Expenditure,Water Services,13-Feb-24,6764210,38.77,LIMITED COMPANY,WAVE LTD,300000457049455
Portsmouth City Council,PCC,Housing Revenue Account,Special Services,"Housing, Neighbourhood and Building Services",Premises-Related Expenditure,Water Services,13-Feb-24,6764210,18.06,LIMITED COMPANY,WAVE LTD,300000457049455
Portsmouth City Council,PCC,Housing Revenue Account,Special Services,"Housing, Neighbourhood and Building Services",Premises-Related Expenditure,Water Services,13-Feb-24,6764210,102.21,LIMITED COMPANY,WAVE LTD,300000457049455
Portsmouth City Council,PCC,Housing Revenue Account,Special Services,"Housing, Neighbourhood and Building Services",Premises-Related Expenditure,Water Services,13-Feb-24,6764210,16.78,LIMITED COMPANY,WAVE LTD,300000457049455
Portsmouth City Council,PCC,Housing Revenue Account,Special Services,"Housing, Neighbourhood and Building Services",Premises-Related Expenditure,Water Services,13-Feb-24,6764210,10.3,LIMITED COMPANY,WAVE LTD,300000457049455
Portsmouth City Council,PCC,Housing Revenue Account,Special Services,"Housing, Neighbourhood and Building Services",Premises-Related Expenditure,Water Services,13-Feb-24,6764210,11.39,LIMITED COMPANY,WAVE LTD,300000457049455
Portsmouth City Council,PCC,Housing Revenue Account,Special Services,"Housing, Neighbourhood and Building Services",Premises-Related Expenditure,Water Services,13-Feb-24,6764210,51.88,LIMITED COMPANY,WAVE LTD,300000457049455
Portsmouth City Council,PCC,Housing Revenue Account,Special Services,"Housing, Neighbourhood and Building Services",Premises-Related Expenditure,Water Services,13-Feb-24,6764210,11.16,LIMITED COMPANY,WAVE LTD,300000457049455
Portsmouth City Council,PCC,Housing Revenue Account,Special Services,"Housing, Neighbourhood and Building Services",Premises-Related Expenditure,Water Services,13-Feb-24,6764210,10.3,LIMITED COMPANY,WAVE LTD,300000457049455
Portsmouth City Council,PCC,Highways and Transport Services,Public Transport,Regeneration,Premises-Related Expenditure,Water Services,13-Feb-24,6764210,196.76,LIMITED COMPANY,WAVE LTD,300000457049455
Portsmouth City Council,PCC,Housing Revenue Account,Special Services,"Housing, Neighbourhood and Building Services",Premises-Related Expenditure,Water Services,13-Feb-24,6764210,38.77,LIMITED COMPANY,WAVE LTD,300000457049455
Portsmouth City Council,PCC,Housing Revenue Account,Special Services,"Housing, Neighbourhood and Building Services",Premises-Related Expenditure,Water Services,13-Feb-24,6764210,19.12,LIMITED COMPANY,WAVE LTD,300000457049455
Portsmouth City Council,PCC,Housing Revenue Account,Special Services,"Housing, Neighbourhood and Building Services",Premises-Related Expenditure,Water Services,13-Feb-24,6764210,10.3,LIMITED COMPANY,WAVE LTD,300000457049455
Portsmouth City Council,PCC,Housing Revenue Account,Non-dwelling Rents (Gross),"Housing, Neighbourhood and Building Services",Premises-Related Expenditure,Water Services,13-Feb-24,6764210,15.14,LIMITED COMPANY,WAVE LTD,300000457049455
Portsmouth City Council,PCC,Housing Revenue Account,Special Services,"Housing, Neighbourhood and Building Services",Premises-Related Expenditure,Water Services,13-Feb-24,6764210,5.07,LIMITED COMPANY,WAVE LTD,300000457049455
Portsmouth City Council,PCC,Housing Revenue Account,Special Services,"Housing, Neighbourhood and Building Services",Premises-Related Expenditure,Water Services,13-Feb-24,6764210,10.3,LIMITED COMPANY,WAVE LTD,300000457049455
Portsmouth City Council,PCC,Housing Revenue Account,Non-dwelling Rents (Gross),"Housing, Neighbourhood and Building Services",Premises-Related Expenditure,Water Services,13-Feb-24,6764210,23.79,LIMITED COMPANY,WAVE LTD,300000457049455
Portsmouth City Council,PCC,Highways and Transport Services,Parking Services,Regeneration,Premises-Related Expenditure,Water Services,13-Feb-24,6764210,22.62,LIMITED COMPANY,WAVE LTD,300000457049455
Portsmouth City Council,PCC,Costs below Net Cost of Services,Trading,Regeneration,Premises-Related Expenditure,Water Services,13-Feb-24,6764210,5.07,LIMITED COMPANY,WAVE LTD,300000457049455
Portsmouth City Council,PCC,Cultural and Related Services,Open Spaces,"Culture, Leisure & Regulatory Services",Premises-Related Expenditure,Water Services,13-Feb-24,6764210,34.33,LIMITED COMPANY,WAVE LTD,300000457049455
Portsmouth City Council,PCC,Highways and Transport Services,Parking Services,Regeneration,Premises-Related Expenditure,Water Services,13-Feb-24,6764210,5.07,LIMITED COMPANY,WAVE LTD,300000457049455
Portsmouth City Council,PCC,Highways and Transport Services,Parking Services,Regeneration,Premises-Related Expenditure,Water Services,13-Feb-24,6764210,5.07,LIMITED COMPANY,WAVE LTD,300000457049455
Portsmouth City Council,PCC,Cultural and Related Services,Open Spaces,"Culture, Leisure & Regulatory Services",Premises-Related Expenditure,Water Services,13-Feb-24,6764210,64.76,LIMITED COMPANY,WAVE LTD,300000457049455
Portsmouth City Council,PCC,Housing Revenue Account,Special Services,"Housing, Neighbourhood and Building Services",Premises-Related Expenditure,Water Services,13-Feb-24,6764210,9.34,LIMITED COMPANY,WAVE LTD,300000457049455
Portsmouth City Council,PCC,Housing Revenue Account,Supervision and Management,"Housing, Neighbourhood and Building Services",Premises-Related Expenditure,Water Services,13-Feb-24,6764210,80.03,LIMITED COMPANY,WAVE LTD,300000457049455
Portsmouth City Council,PCC,Housing Revenue Account,Supervision and Management,"Housing, Neighbourhood and Building Services",Premises-Related Expenditure,Water Services,13-Feb-24,6764210,76.55,LIMITED COMPANY,WAVE LTD,300000457049455
Portsmouth City Council,PCC,Costs below Net Cost of Services,Trading,Regeneration,Premises-Related Expenditure,Water Services,13-Feb-24,6764210,121.36,LIMITED COMPANY,WAVE LTD,300000457049455
Portsmouth City Council,PCC,Housing Revenue Account,Special Services,"Housing, Neighbourhood and Building Services",Premises-Related Expenditure,Water Services,13-Feb-24,6764210,77.56,LIMITED COMPANY,WAVE LTD,300000457049455
Portsmouth City Council,PCC,Cultural and Related Services,Library Service,"Culture, Leisure & Regulatory Services",Premises-Related Expenditure,Water Services,13-Feb-24,6764210,15.29,LIMITED COMPANY,WAVE LTD,300000457049455
Portsmouth City Council,PCC,Adult Social Care,Learning Disability Support Adults (18 - 64),Adult Care,Third Party Payments,Other establishments,23-Feb-24,6766617,"1,204.63",SUPPLIER,ACHIEVE TOGETHER LIMITED,300000020469986
Portsmouth City Council,PCC,Housing Revenue Account,"Rents, Rates, Taxes and Other Charges","Housing, Neighbourhood and Building Services",Premises-Related Expenditure,Water Services,13-Feb-24,6764210,92.86,LIMITED COMPANY,WAVE LTD,300000457049455
Portsmouth City Council,PCC,Housing Revenue Account,Special Services,"Housing, Neighbourhood and Building Services",Premises-Related Expenditure,Water Services,13-Feb-24,6764210,25.43,LIMITED COMPANY,WAVE LTD,300000457049455
Portsmouth City Council,PCC,Children's and Education Services,Other Education and Community Budget,Regeneration,Premises-Related Expenditure,Water Services,13-Feb-24,6764210,48.97,LIMITED COMPANY,WAVE LTD,300000457049455
Portsmouth City Council,PCC,Housing Revenue Account,Special Services,"Housing, Neighbourhood and Building Services",Premises-Related Expenditure,Water Services,13-Feb-24,6764210,158.46,LIMITED COMPANY,WAVE LTD,300000457049455
Portsmouth City Council,PCC,Housing Revenue Account,Special Services,"Housing, Neighbourhood and Building Services",Premises-Related Expenditure,Water Services,13-Feb-24,6764210,478.22,LIMITED COMPANY,WAVE LTD,300000457049455
Portsmouth City Council,PCC,Planning Services,Business support,Regeneration,Premises-Related Expenditure,Water Services,13-Feb-24,6764210,307.31,LIMITED COMPANY,WAVE LTD,300000457049455
Portsmouth City Council,PCC,Adult Social Care,Learning Disability Support Adults (18 - 64),Adult Care,Third Party Payments,Other establishments,23-Feb-24,6766617,"1,204.63",SUPPLIER,ACHIEVE TOGETHER LIMITED,300000020469986
Portsmouth City Council,PCC,Cultural and Related Services,Open Spaces,"Culture, Leisure & Regulatory Services",Premises-Related Expenditure,Water Services,13-Feb-24,6764210,"1,322.26",LIMITED COMPANY,WAVE LTD,300000457049455
Portsmouth City Council,PCC,Housing Revenue Account,Non-dwelling Rents (Gross),"Housing, Neighbourhood and Building Services",Premises-Related Expenditure,Water Services,13-Feb-24,6764210,17.64,LIMITED COMPANY,WAVE LTD,300000457049455
Portsmouth City Council,PCC,Housing Revenue Account,Special Services,"Housing, Neighbourhood and Building Services",Premises-Related Expenditure,Water Services,13-Feb-24,6764210,357.38,LIMITED COMPANY,WAVE LTD,300000457049455
Portsmouth City Council,PCC,Costs below Net Cost of Services,Trading,Regeneration,Premises-Related Expenditure,Water Services,13-Feb-24,6764210,"2,178.08",LIMITED COMPANY,WAVE LTD,300000457049455
Portsmouth City Council,PCC,Cultural and Related Services,Allocation of Management & Admin,"Culture, Leisure & Regulatory Services",Premises-Related Expenditure,Water Services,13-Feb-24,6764210,-59.2,LIMITED COMPANY,WAVE LTD,300000457049455
Portsmouth City Council,PCC,Housing Revenue Account,Special Services,"Housing, Neighbourhood and Building Services",Premises-Related Expenditure,Water Services,13-Feb-24,6764210,15.02,LIMITED COMPANY,WAVE LTD,300000457049455
Portsmouth City Council,PCC,Housing Revenue Account,Special Services,"Housing, Neighbourhood and Building Services",Premises-Related Expenditure,Water Services,13-Feb-24,6764210,48.77,LIMITED COMPANY,WAVE LTD,300000457049455
Portsmouth City Council,PCC,Housing Revenue Account,Special Services,"Housing, Neighbourhood and Building Services",Premises-Related Expenditure,Water Services,13-Feb-24,6764210,464.66,LIMITED COMPANY,WAVE LTD,300000457049455
Portsmouth City Council,PCC,Cultural and Related Services,Culture and Heritage,"Culture, Leisure & Regulatory Services",Premises-Related Expenditure,Water Services,13-Feb-24,6764210,154.17,LIMITED COMPANY,WAVE LTD,300000457049455
Portsmouth City Council,PCC,Adult Social Care,Learning Disability Support Adults (18 - 64),Adult Care,Third Party Payments,Other establishments,23-Feb-24,6766617,"1,204.63",SUPPLIER,ACHIEVE TOGETHER LIMITED,300000020469986
Portsmouth City Council,PCC,Adult Social Care,Learning Disability Support Adults (18 - 64),Adult Care,Third Party Payments,Other establishments,23-Feb-24,6766617,"1,204.63",SUPPLIER,ACHIEVE TOGETHER LIMITED,300000020469986
Portsmouth City Council,PCC,Adult Social Care,Learning Disability Support Adults (18 - 64),Adult Care,Third Party Payments,Other establishments,23-Feb-24,6766617,"1,204.63",SUPPLIER,ACHIEVE TOGETHER LIMITED,300000020469986
Portsmouth City Council,PCC,Adult Social Care,Learning Disability Support Adults (18 - 64),Adult Care,Third Party Payments,Other establishments,23-Feb-24,6766617,"1,204.63",SUPPLIER,ACHIEVE TOGETHER LIMITED,300000020469986
Portsmouth City Council,PCC,Adult Social Care,Learning Disability Support Adults (18 - 64),Adult Care,Third Party Payments,Other establishments,23-Feb-24,6766617,"1,204.63",SUPPLIER,ACHIEVE TOGETHER LIMITED,300000020469986
Portsmouth City Council,PCC,Adult Social Care,Learning Disability Support Adults (18 - 64),Adult Care,Third Party Payments,Other establishments,23-Feb-24,6766617,"1,204.63",SUPPLIER,ACHIEVE TOGETHER LIMITED,300000020469986
Portsmouth City Council,PCC,Adult Social Care,Learning Disability Support Adults (18 - 64),Adult Care,Third Party Payments,Other establishments,23-Feb-24,6766617,"1,204.63",SUPPLIER,ACHIEVE TOGETHER LIMITED,300000020469986
Portsmouth City Council,PCC,Adult Social Care,Learning Disability Support Adults (18 - 64),Adult Care,Third Party Payments,Other establishments,23-Feb-24,6766617,"1,204.63",SUPPLIER,ACHIEVE TOGETHER LIMITED,300000020469986
Portsmouth City Council,PCC,Adult Social Care,Learning Disabilty Support Older People (65 - 74),Adult Care,Third Party Payments,Joint authorities,23-Feb-24,6766617,"1,204.63",SUPPLIER,ACHIEVE TOGETHER LIMITED,300000020469986
Portsmouth City Council,PCC,Adult Social Care,Learning Disability Support Adults (18 - 64),Adult Care,Third Party Payments,Other establishments,23-Feb-24,6766617,"1,640.57",SUPPLIER,ACHIEVE TOGETHER LIMITED,300000020469986
Portsmouth City Council,PCC,Adult Social Care,Learning Disability Support Adults (18 - 64),Adult Care,Third Party Payments,Other establishments,23-Feb-24,6766617,"2,088.00",SUPPLIER,ACHIEVE TOGETHER LIMITED,300000020469986
Portsmouth City Council,PCC,Adult Social Care,Learning Disability Support Adults (18 - 64),Adult Care,Third Party Payments,Other establishments,23-Feb-24,6766617,"2,088.00",SUPPLIER,ACHIEVE TOGETHER LIMITED,300000020469986
Portsmouth City Council,PCC,Adult Social Care,Learning Disability Support Adults (18 - 64),Adult Care,Third Party Payments,Other establishments,23-Feb-24,6766617,"2,610.00",SUPPLIER,ACHIEVE TOGETHER LIMITED,300000020469986
Portsmouth City Council,PCC,Adult Social Care,Learning Disability Support Adults (18 - 64),Adult Care,Third Party Payments,Other establishments,23-Feb-24,6766617,"2,684.57",SUPPLIER,ACHIEVE TOGETHER LIMITED,300000020469986
Portsmouth City Council,PCC,Adult Social Care,Learning Disability Support Adults (18 - 64),Adult Care,Third Party Payments,Other establishments,23-Feb-24,6766617,"2,908.29",SUPPLIER,ACHIEVE TOGETHER LIMITED,300000020469986
Portsmouth City Council,PCC,Adult Social Care,Learning Disability Support Adults (18 - 64),Adult Care,Third Party Payments,Other establishments,23-Feb-24,6766617,"3,281.14",SUPPLIER,ACHIEVE TOGETHER LIMITED,300000020469986
Portsmouth City Council,PCC,Adult Social Care,Learning Disability Support Adults (18 - 64),Adult Care,Third Party Payments,Other establishments,23-Feb-24,6766617,"3,318.43",SUPPLIER,ACHIEVE TOGETHER LIMITED,300000020469986
Portsmouth City Council,PCC,Adult Social Care,Learning Disability Support Adults (18 - 64),Adult Care,Third Party Payments,Other establishments,23-Feb-24,6766617,"4,064.14",SUPPLIER,ACHIEVE TOGETHER LIMITED,300000020469986
Portsmouth City Council,PCC,Adult Social Care,Learning Disability Support Adults (18 - 64),Adult Care,Third Party Payments,Other establishments,23-Feb-24,6766617,"4,809.86",SUPPLIER,ACHIEVE TOGETHER LIMITED,300000020469986
Portsmouth City Council,PCC,Adult Social Care,Learning Disability Support Adults (18 - 64),Adult Care,Third Party Payments,Other establishments,23-Feb-24,6766617,"4,996.29",SUPPLIER,ACHIEVE TOGETHER LIMITED,300000020469986
Portsmouth City Council,PCC,Adult Social Care,Learning Disability Support Adults (18 - 64),Adult Care,Third Party Payments,Other establishments,23-Feb-24,6766679,690.84,PRIVATE PROVIDER,Classified as 'personal data' (under the Data Protection Act 2018),300000020478185
Portsmouth City Council,PCC,Adult Social Care,Physical Support Older People (85+),Adult Care,Third Party Payments,Other establishments,27-Feb-24,6766975,-100.04,SUPPLIER,ADMIRAL CARE LTD,300000020477405
Portsmouth City Council,PCC,Adult Social Care,Social Care Activities,Adult Care,Third Party Payments,Other establishments,27-Feb-24,6766975,-44.64,SUPPLIER,ADMIRAL CARE LTD,300000020477405
Portsmouth City Council,PCC,Adult Social Care,Physical Support Older People (85+),Adult Care,Third Party Payments,Other establishments,27-Feb-24,6766975,5.58,SUPPLIER,ADMIRAL CARE LTD,300000020477405
Portsmouth City Council,PCC,Adult Social Care,Physical Support Older People (85+),Adult Care,Third Party Payments,Other establishments,27-Feb-24,6766975,5.58,SUPPLIER,ADMIRAL CARE LTD,300000020477405
Portsmouth City Council,PCC,Adult Social Care,Physical Support Older People (85+),Adult Care,Third Party Payments,Other establishments,27-Feb-24,6766975,5.58,SUPPLIER,ADMIRAL CARE LTD,300000020477405
Portsmouth City Council,PCC,Adult Social Care,Physical Support Older People (85+),Adult Care,Third Party Payments,Other establishments,27-Feb-24,6766975,39.06,SUPPLIER,ADMIRAL CARE LTD,300000020477405
Portsmouth City Council,PCC,Adult Social Care,Physical Support Older People (85+),Adult Care,Third Party Payments,Other establishments,27-Feb-24,6766975,44.64,SUPPLIER,ADMIRAL CARE LTD,300000020477405
Portsmouth City Council,PCC,Adult Social Care,Physical Support Adults (18 - 64),Adult Care,Third Party Payments,Other establishments,27-Feb-24,6766975,50.02,SUPPLIER,ADMIRAL CARE LTD,300000020477405
Portsmouth City Council,PCC,Other,Suspense and Capital Schemes,Capital - Housing and Tackling Homelessness,Capital Charges,Capital Expenditure (WIP),13-Feb-24,6764210,48.24,LIMITED COMPANY,WAVE LTD,300000457049455
Portsmouth City Council,PCC,Housing Revenue Account,Special Services,"Housing, Neighbourhood and Building Services",Premises-Related Expenditure,Water Services,13-Feb-24,6764210,38.94,LIMITED COMPANY,WAVE LTD,300000457049455
Portsmouth City Council,PCC,Children's and Education Services,Family Support Services,Children's Services and Education,Premises-Related Expenditure,Water Services,13-Feb-24,6764210,167.92,LIMITED COMPANY,WAVE LTD,300000457049455
Portsmouth City Council,PCC,Adult Social Care,Social Support - Support for Carer,Adult Care,Third Party Payments,Other establishments,27-Feb-24,6766975,73.44,SUPPLIER,ADMIRAL CARE LTD,300000020477405
Portsmouth City Council,PCC,Adult Social Care,Physical Support Older People (85+),Adult Care,Third Party Payments,Other establishments,27-Feb-24,6766975,133.92,SUPPLIER,ADMIRAL CARE LTD,300000020477405
Portsmouth City Council,PCC,Adult Social Care,Social Support - Support for Carer,Adult Care,Third Party Payments,Other establishments,27-Feb-24,6766975,146.88,SUPPLIER,ADMIRAL CARE LTD,300000020477405
Portsmouth City Council,PCC,Adult Social Care,Physical Support Older People (85+),Adult Care,Third Party Payments,Other establishments,27-Feb-24,6766975,156.24,SUPPLIER,ADMIRAL CARE LTD,300000020477405
Portsmouth City Council,PCC,Adult Social Care,Physical Support Older People (85+),Adult Care,Third Party Payments,Other establishments,27-Feb-24,6766975,178.56,SUPPLIER,ADMIRAL CARE LTD,300000020477405
Portsmouth City Council,PCC,Adult Social Care,Mental Health Support Older People (65 - 74),Adult Care,Third Party Payments,Other establishments,27-Feb-24,6766975,200.08,SUPPLIER,ADMIRAL CARE LTD,300000020477405
Portsmouth City Council,PCC,Adult Social Care,Mental Health Support Older People (65 - 74),Adult Care,Third Party Payments,Other establishments,27-Feb-24,6766975,223.2,SUPPLIER,ADMIRAL CARE LTD,300000020477405
Portsmouth City Council,PCC,Adult Social Care,Mental Health Support Older People (65 - 74),Adult Care,Third Party Payments,Other establishments,27-Feb-24,6766975,223.2,SUPPLIER,ADMIRAL CARE LTD,300000020477405
Portsmouth City Council,PCC,Adult Social Care,Physical Support Older People (85+),Adult Care,Third Party Payments,Other establishments,27-Feb-24,6766975,242.85,SUPPLIER,ADMIRAL CARE LTD,300000020477405
Portsmouth City Council,PCC,Adult Social Care,Mental Health Support Older People (65 - 74),Adult Care,Third Party Payments,Other establishments,27-Feb-24,6766975,267.84,SUPPLIER,ADMIRAL CARE LTD,300000020477405
Portsmouth City Council,PCC,Adult Social Care,Physical Support Older People (85+),Adult Care,Third Party Payments,Other establishments,27-Feb-24,6766975,267.84,SUPPLIER,ADMIRAL CARE LTD,300000020477405
Portsmouth City Council,PCC,Adult Social Care,Physical Support Older People (85+),Adult Care,Third Party Payments,Other establishments,27-Feb-24,6766975,340,SUPPLIER,ADMIRAL CARE LTD,300000020477405
Portsmouth City Council,PCC,Adult Social Care,Physical Support Older People (85+),Adult Care,Third Party Payments,Other establishments,27-Feb-24,6766975,340,SUPPLIER,ADMIRAL CARE LTD,300000020477405
Portsmouth City Council,PCC,Adult Social Care,Physical Support Older People (85+),Adult Care,Third Party Payments,Other establishments,27-Feb-24,6766975,340,SUPPLIER,ADMIRAL CARE LTD,300000020477405
Portsmouth City Council,PCC,Adult Social Care,Physical Support Older People (85+),Adult Care,Third Party Payments,Other establishments,27-Feb-24,6766975,340,SUPPLIER,ADMIRAL CARE LTD,300000020477405
Portsmouth City Council,PCC,Adult Social Care,Physical Support Older People (85+),Adult Care,Third Party Payments,Other establishments,27-Feb-24,6766975,340,SUPPLIER,ADMIRAL CARE LTD,300000020477405
Portsmouth City Council,PCC,Adult Social Care,Physical Support Older People (85+),Adult Care,Third Party Payments,Other establishments,27-Feb-24,6766975,340,SUPPLIER,ADMIRAL CARE LTD,300000020477405
Portsmouth City Council,PCC,Adult Social Care,Physical Support Older People (85+),Adult Care,Third Party Payments,Other establishments,27-Feb-24,6766975,340,SUPPLIER,ADMIRAL CARE LTD,300000020477405
Portsmouth City Council,PCC,Adult Social Care,Physical Support Older People (85+),Adult Care,Third Party Payments,Other establishments,27-Feb-24,6766975,340,SUPPLIER,ADMIRAL CARE LTD,300000020477405
Portsmouth City Council,PCC,Adult Social Care,Physical Support Older People (85+),Adult Care,Third Party Payments,Other establishments,27-Feb-24,6766975,340,SUPPLIER,ADMIRAL CARE LTD,300000020477405
Portsmouth City Council,PCC,Cultural and Related Services,Recreation and Sport,"Culture, Leisure & Regulatory Services",Premises-Related Expenditure,Energy costs,14-Feb-24,6764649,"51,558.06",LIMITED COMPANY,SEFE MARKETING AND TRADING LTD,300000250807105
Portsmouth City Council,PCC,Adult Social Care,Social Care Activities,Adult Care,Third Party Payments,Other establishments,27-Feb-24,6766975,379.44,SUPPLIER,ADMIRAL CARE LTD,300000020477405
Portsmouth City Council,PCC,Planning Services,Business support,Finance & Resources,Income,Government grants,16-Feb-24,6764988,"8,412.00",SUPPLIER,OFFICE OF THE DEPUTY PRIME MINISTER (ODPM),300000020464429
Portsmouth City Council,PCC,Planning Services,Business support,Finance & Resources,Supplies and Services,Grants and subscriptions,16-Feb-24,6764988,"353,700.00",SUPPLIER,OFFICE OF THE DEPUTY PRIME MINISTER (ODPM),300000020464429
Portsmouth City Council,PCC,Adult Social Care,Social Care Activities,Adult Care,Third Party Payments,Other establishments,27-Feb-24,6766975,379.44,SUPPLIER,ADMIRAL CARE LTD,300000020477405
Portsmouth City Council,PCC,Adult Social Care,Social Care Activities,Adult Care,Third Party Payments,Other establishments,27-Feb-24,6766975,379.44,SUPPLIER,ADMIRAL CARE LTD,300000020477405
Portsmouth City Council,PCC,Adult Social Care,Social Support - Support for Carer,Adult Care,Third Party Payments,Other establishments,27-Feb-24,6766975,440.64,SUPPLIER,ADMIRAL CARE LTD,300000020477405
Portsmouth City Council,PCC,Adult Social Care,Social Support - Support for Carer,Adult Care,Third Party Payments,Other establishments,27-Feb-24,6766975,440.64,SUPPLIER,ADMIRAL CARE LTD,300000020477405
Portsmouth City Council,PCC,Adult Social Care,Physical Support Older People (85+),Adult Care,Third Party Payments,Other establishments,27-Feb-24,6766975,468.72,SUPPLIER,ADMIRAL CARE LTD,300000020477405
Portsmouth City Council,PCC,Adult Social Care,Mental Health Support Older People (65 - 74),Adult Care,Third Party Payments,Other establishments,27-Feb-24,6766975,714.24,SUPPLIER,ADMIRAL CARE LTD,300000020477405
Portsmouth City Council,PCC,Adult Social Care,Physical Support Adults (18 - 64),Adult Care,Third Party Payments,Other establishments,27-Feb-24,6766975,714.24,SUPPLIER,ADMIRAL CARE LTD,300000020477405
Portsmouth City Council,PCC,Adult Social Care,Physical Support Older People (85+),Adult Care,Third Party Payments,Other establishments,27-Feb-24,6766975,725.4,SUPPLIER,ADMIRAL CARE LTD,300000020477405
Portsmouth City Council,PCC,Adult Social Care,Physical Support Older People (85+),Adult Care,Third Party Payments,Other establishments,27-Feb-24,6766975,725.4,SUPPLIER,ADMIRAL CARE LTD,300000020477405
Portsmouth City Council,PCC,Housing Services,Private Sector Housing Renewal,"Housing, Neighbourhood and Building Services",Income,Other grants reimbursements and contributions,12-Feb-24,6764132,-987,SUPPLIER,D&T BATHROOMS LTD,300000020476584
Portsmouth City Council,PCC,Other,Suspense and Capital Schemes,Capital - Housing and Tackling Homelessness,Capital Charges,REFCUS,12-Feb-24,6764132,"1,184.40",SUPPLIER,D&T BATHROOMS LTD,300000020476584
Portsmouth City Council,PCC,Other,Suspense and Capital Schemes,Capital - Housing and Tackling Homelessness,Capital Charges,REFCUS,12-Feb-24,6764132,"6,580.00",SUPPLIER,D&T BATHROOMS LTD,300000020476584
Portsmouth City Council,PCC,Children's and Education Services,Children Looked After,Children's Services and Education,Third Party Payments,Other establishments,16-Feb-24,6764992,741.72,SUPPLIER,FOSTER CARE ASSOCIATES LTD,300000020461175
Portsmouth City Council,PCC,Children's and Education Services,Children Looked After,Children's Services and Education,Third Party Payments,Other establishments,16-Feb-24,6764992,"1,112.58",SUPPLIER,FOSTER CARE ASSOCIATES LTD,300000020461175
Portsmouth City Council,PCC,Children's and Education Services,Children Looked After,Children's Services and Education,Third Party Payments,Other establishments,16-Feb-24,6764992,"1,298.01",SUPPLIER,FOSTER CARE ASSOCIATES LTD,300000020461175
Portsmouth City Council,PCC,Children's and Education Services,Children Looked After,Children's Services and Education,Third Party Payments,Other establishments,16-Feb-24,6764992,"1,298.01",SUPPLIER,FOSTER CARE ASSOCIATES LTD,300000020461175
Portsmouth City Council,PCC,Children's and Education Services,Children Looked After,Children's Services and Education,Third Party Payments,Other establishments,16-Feb-24,6764992,"1,298.01",SUPPLIER,FOSTER CARE ASSOCIATES LTD,300000020461175
Portsmouth City Council,PCC,Children's and Education Services,Asylum seekers,Children's Services and Education,Third Party Payments,Other establishments,16-Feb-24,6764992,789.6,SUPPLIER,FOSTER CARE ASSOCIATES LTD,300000020461175
Portsmouth City Council,PCC,Children's and Education Services,Asylum seekers,Children's Services and Education,Third Party Payments,Other establishments,16-Feb-24,6764992,"1,184.40",SUPPLIER,FOSTER CARE ASSOCIATES LTD,300000020461175
Portsmouth City Council,PCC,Children's and Education Services,Asylum seekers,Children's Services and Education,Third Party Payments,Other establishments,16-Feb-24,6764992,"1,381.80",SUPPLIER,FOSTER CARE ASSOCIATES LTD,300000020461175
Portsmouth City Council,PCC,Children's and Education Services,Asylum seekers,Children's Services and Education,Third Party Payments,Other establishments,16-Feb-24,6764992,"1,381.80",SUPPLIER,FOSTER CARE ASSOCIATES LTD,300000020461175
Portsmouth City Council,PCC,Children's and Education Services,Asylum seekers,Children's Services and Education,Third Party Payments,Other establishments,16-Feb-24,6764992,"1,381.80",SUPPLIER,FOSTER CARE ASSOCIATES LTD,300000020461175
Portsmouth City Council,PCC,Children's and Education Services,Asylum seekers,Children's Services and Education,Third Party Payments,Other establishments,15-Feb-24,6764795,-0.1,SUPPLIER,LOTUS FOSTER CARE LTD,300000576423786
Portsmouth City Council,PCC,Children's and Education Services,Asylum seekers,Children's Services and Education,Third Party Payments,Other establishments,15-Feb-24,6764795,117.86,SUPPLIER,LOTUS FOSTER CARE LTD,300000576423786
Portsmouth City Council,PCC,Children's and Education Services,Asylum seekers,Children's Services and Education,Third Party Payments,Other establishments,15-Feb-24,6764795,589.29,SUPPLIER,LOTUS FOSTER CARE LTD,300000576423786
Portsmouth City Council,PCC,Children's and Education Services,Asylum seekers,Children's Services and Education,Third Party Payments,Other establishments,15-Feb-24,6764795,825,SUPPLIER,LOTUS FOSTER CARE LTD,300000576423786
Portsmouth City Council,PCC,Children's and Education Services,Children Looked After,Children's Services and Education,Third Party Payments,Other establishments,07-Feb-24,6763087,125.01,SUPPLIER,FIVE RIVERS CHILD CARE LIMITED,300000020461320
Portsmouth City Council,PCC,Children's and Education Services,Children Looked After,Children's Services and Education,Third Party Payments,Other establishments,07-Feb-24,6763087,250.03,SUPPLIER,FIVE RIVERS CHILD CARE LIMITED,300000020461320
Portsmouth City Council,PCC,Children's and Education Services,Children Looked After,Children's Services and Education,Third Party Payments,Other establishments,07-Feb-24,6763087,875.1,SUPPLIER,FIVE RIVERS CHILD CARE LIMITED,300000020461320
Portsmouth City Council,PCC,Children's and Education Services,Children Looked After,Children's Services and Education,Third Party Payments,Other establishments,07-Feb-24,6763087,875.1,SUPPLIER,FIVE RIVERS CHILD CARE LIMITED,300000020461320
Portsmouth City Council,PCC,Children's and Education Services,Children Looked After,Children's Services and Education,Third Party Payments,Other establishments,07-Feb-24,6763087,875.1,SUPPLIER,FIVE RIVERS CHILD CARE LIMITED,300000020461320
Portsmouth City Council,PCC,Children's and Education Services,Children Looked After,Children's Services and Education,Third Party Payments,Other establishments,07-Feb-24,6763087,-0.01,SUPPLIER,FIVE RIVERS CHILD CARE LIMITED,300000020461320
Portsmouth City Council,PCC,Children's and Education Services,Children Looked After,Children's Services and Education,Third Party Payments,Other establishments,07-Feb-24,6763087,500.06,SUPPLIER,FIVE RIVERS CHILD CARE LIMITED,300000020461320
Portsmouth City Council,PCC,Children's and Education Services,Children Looked After,Children's Services and Education,Third Party Payments,Other establishments,07-Feb-24,6763087,750.09,SUPPLIER,FIVE RIVERS CHILD CARE LIMITED,300000020461320
Portsmouth City Council,PCC,Children's and Education Services,Children Looked After,Children's Services and Education,Third Party Payments,Other establishments,07-Feb-24,6763087,875.1,SUPPLIER,FIVE RIVERS CHILD CARE LIMITED,300000020461320
Portsmouth City Council,PCC,Children's and Education Services,Children Looked After,Children's Services and Education,Third Party Payments,Other establishments,07-Feb-24,6763087,875.1,SUPPLIER,FIVE RIVERS CHILD CARE LIMITED,300000020461320
Portsmouth City Council,PCC,Children's and Education Services,Children Looked After,Children's Services and Education,Third Party Payments,Other establishments,07-Feb-24,6763087,875.1,SUPPLIER,FIVE RIVERS CHILD CARE LIMITED,300000020461320
Portsmouth City Council,PCC,Children's and Education Services,Children Looked After,Children's Services and Education,Third Party Payments,Other establishments,01-Feb-24,6762384,0.01,LIMITED COMPANY,KITES CHILDRENS SERVICES LIMITED,300000631295724
Portsmouth City Council,PCC,Children's and Education Services,Children Looked After,Children's Services and Education,Third Party Payments,Other establishments,01-Feb-24,6762384,"1,068.57",LIMITED COMPANY,KITES CHILDRENS SERVICES LIMITED,300000631295724
Portsmouth City Council,PCC,Children's and Education Services,Children Looked After,Children's Services and Education,Third Party Payments,Other establishments,01-Feb-24,6762384,"1,335.71",LIMITED COMPANY,KITES CHILDRENS SERVICES LIMITED,300000631295724
Portsmouth City Council,PCC,Children's and Education Services,Children Looked After,Children's Services and Education,Third Party Payments,Other establishments,01-Feb-24,6762384,"1,870.00",LIMITED COMPANY,KITES CHILDRENS SERVICES LIMITED,300000631295724
Portsmouth City Council,PCC,Children's and Education Services,Children Looked After,Children's Services and Education,Third Party Payments,Other establishments,01-Feb-24,6762384,"1,870.00",LIMITED COMPANY,KITES CHILDRENS SERVICES LIMITED,300000631295724
Portsmouth City Council,PCC,Children's and Education Services,Children Looked After,Children's Services and Education,Third Party Payments,Other establishments,01-Feb-24,6762384,"1,870.00",LIMITED COMPANY,KITES CHILDRENS SERVICES LIMITED,300000631295724
Portsmouth City Council,PCC,Children's and Education Services,Children Looked After,Children's Services and Education,Third Party Payments,Other establishments,01-Feb-24,6762384,"1,870.00",LIMITED COMPANY,KITES CHILDRENS SERVICES LIMITED,300000631295724
Portsmouth City Council,PCC,Children's and Education Services,Children Looked After,Children's Services and Education,Third Party Payments,Other establishments,01-Feb-24,6762384,"1,870.00",LIMITED COMPANY,KITES CHILDRENS SERVICES LIMITED,300000631295724
Portsmouth City Council,PCC,Children's and Education Services,Children Looked After,Children's Services and Education,Third Party Payments,Other establishments,01-Feb-24,6762384,"1,870.00",LIMITED COMPANY,KITES CHILDRENS SERVICES LIMITED,300000631295724
Portsmouth City Council,PCC,Children's and Education Services,Children Looked After,Children's Services and Education,Third Party Payments,Other establishments,01-Feb-24,6762384,"1,870.00",LIMITED COMPANY,KITES CHILDRENS SERVICES LIMITED,300000631295724
Portsmouth City Council,PCC,Children's and Education Services,Safeguarding Children and Young Peoples Services,Children's Services and Education,Third Party Payments,Other establishments,01-Feb-24,6762355,-941,SUPPLIER,LILIAN DAVIS GROUP LTD,300000020467263
Portsmouth City Council,PCC,Children's and Education Services,Safeguarding Children and Young Peoples Services,Children's Services and Education,Third Party Payments,Other establishments,01-Feb-24,6762355,-10,SUPPLIER,LILIAN DAVIS GROUP LTD,300000020467263
Portsmouth City Council,PCC,Children's and Education Services,Safeguarding Children and Young Peoples Services,Children's Services and Education,Third Party Payments,Other establishments,01-Feb-24,6762355,-10,SUPPLIER,LILIAN DAVIS GROUP LTD,300000020467263
Portsmouth City Council,PCC,Children's and Education Services,Safeguarding Children and Young Peoples Services,Children's Services and Education,Third Party Payments,Other establishments,01-Feb-24,6762355,-10,SUPPLIER,LILIAN DAVIS GROUP LTD,300000020467263
Portsmouth City Council,PCC,Children's and Education Services,Safeguarding Children and Young Peoples Services,Children's Services and Education,Third Party Payments,Other establishments,01-Feb-24,6762355,-8.57,SUPPLIER,LILIAN DAVIS GROUP LTD,300000020467263
Portsmouth City Council,PCC,Children's and Education Services,Safeguarding Children and Young Peoples Services,Children's Services and Education,Third Party Payments,Other establishments,01-Feb-24,6762355,-4.29,SUPPLIER,LILIAN DAVIS GROUP LTD,300000020467263
Portsmouth City Council,PCC,Children's and Education Services,Safeguarding Children and Young Peoples Services,Children's Services and Education,Third Party Payments,Other establishments,01-Feb-24,6762355,-1.43,SUPPLIER,LILIAN DAVIS GROUP LTD,300000020467263
Portsmouth City Council,PCC,Children's and Education Services,Safeguarding Children and Young Peoples Services,Children's Services and Education,Third Party Payments,Other establishments,01-Feb-24,6762355,17.86,SUPPLIER,LILIAN DAVIS GROUP LTD,300000020467263
Portsmouth City Council,PCC,Children's and Education Services,Safeguarding Children and Young Peoples Services,Children's Services and Education,Third Party Payments,Other establishments,01-Feb-24,6762355,53.57,SUPPLIER,LILIAN DAVIS GROUP LTD,300000020467263
Portsmouth City Council,PCC,Children's and Education Services,Safeguarding Children and Young Peoples Services,Children's Services and Education,Third Party Payments,Other establishments,01-Feb-24,6762355,55,SUPPLIER,LILIAN DAVIS GROUP LTD,300000020467263
Portsmouth City Council,PCC,Children's and Education Services,Safeguarding Children and Young Peoples Services,Children's Services and Education,Third Party Payments,Other establishments,01-Feb-24,6762355,107.14,SUPPLIER,LILIAN DAVIS GROUP LTD,300000020467263
Portsmouth City Council,PCC,Children's and Education Services,Safeguarding Children and Young Peoples Services,Children's Services and Education,Third Party Payments,Other establishments,01-Feb-24,6762355,125,SUPPLIER,LILIAN DAVIS GROUP LTD,300000020467263
Portsmouth City Council,PCC,Children's and Education Services,Safeguarding Children and Young Peoples Services,Children's Services and Education,Third Party Payments,Other establishments,01-Feb-24,6762355,125,SUPPLIER,LILIAN DAVIS GROUP LTD,300000020467263
Portsmouth City Council,PCC,Children's and Education Services,Safeguarding Children and Young Peoples Services,Children's Services and Education,Third Party Payments,Other establishments,01-Feb-24,6762355,125,SUPPLIER,LILIAN DAVIS GROUP LTD,300000020467263
Portsmouth City Council,PCC,Children's and Education Services,Safeguarding Children and Young Peoples Services,Children's Services and Education,Third Party Payments,Other establishments,01-Feb-24,6762355,165,SUPPLIER,LILIAN DAVIS GROUP LTD,300000020467263
Portsmouth City Council,PCC,Children's and Education Services,Safeguarding Children and Young Peoples Services,Children's Services and Education,Third Party Payments,Other establishments,01-Feb-24,6762355,330,SUPPLIER,LILIAN DAVIS GROUP LTD,300000020467263
Portsmouth City Council,PCC,Children's and Education Services,Safeguarding Children and Young Peoples Services,Children's Services and Education,Third Party Payments,Other establishments,01-Feb-24,6762355,385,SUPPLIER,LILIAN DAVIS GROUP LTD,300000020467263
Portsmouth City Council,PCC,Children's and Education Services,Safeguarding Children and Young Peoples Services,Children's Services and Education,Third Party Payments,Other establishments,01-Feb-24,6762355,385,SUPPLIER,LILIAN DAVIS GROUP LTD,300000020467263
Portsmouth City Council,PCC,Children's and Education Services,Safeguarding Children and Young Peoples Services,Children's Services and Education,Third Party Payments,Other establishments,01-Feb-24,6762355,385,SUPPLIER,LILIAN DAVIS GROUP LTD,300000020467263
Portsmouth City Council,PCC,Children's and Education Services,Other Children and Family Services,Children's Services and Education,Third Party Payments,Other establishments,12-Feb-24,6764075,80,SUPPLIER,ENABLE ABILITY,300000020465080
Portsmouth City Council,PCC,Children's and Education Services,Other Children and Family Services,Children's Services and Education,Third Party Payments,Other establishments,12-Feb-24,6764075,80,SUPPLIER,ENABLE ABILITY,300000020465080
Portsmouth City Council,PCC,Children's and Education Services,Family Support Services,Children's Services and Education,Third Party Payments,Other establishments,12-Feb-24,6764075,160,SUPPLIER,ENABLE ABILITY,300000020465080
Portsmouth City Council,PCC,Children's and Education Services,Asylum seekers,Children's Services and Education,Third Party Payments,Other establishments,19-Feb-24,6765145,512.57,SUPPLIER,FOSTERING INNOVATIONS LIMITED,300000578941908
Portsmouth City Council,PCC,Children's and Education Services,Asylum seekers,Children's Services and Education,Third Party Payments,Other establishments,19-Feb-24,6765145,768.86,SUPPLIER,FOSTERING INNOVATIONS LIMITED,300000578941908
Portsmouth City Council,PCC,Children's and Education Services,Asylum seekers,Children's Services and Education,Third Party Payments,Other establishments,19-Feb-24,6765145,897,SUPPLIER,FOSTERING INNOVATIONS LIMITED,300000578941908
Portsmouth City Council,PCC,Children's and Education Services,Asylum seekers,Children's Services and Education,Third Party Payments,Other establishments,19-Feb-24,6765145,897,SUPPLIER,FOSTERING INNOVATIONS LIMITED,300000578941908
Portsmouth City Council,PCC,Children's and Education Services,Asylum seekers,Children's Services and Education,Third Party Payments,Other establishments,19-Feb-24,6765145,897,SUPPLIER,FOSTERING INNOVATIONS LIMITED,300000578941908
Portsmouth City Council,PCC,Children's and Education Services,Other Children and Family Services,Children's Services and Education,Third Party Payments,Other establishments,12-Feb-24,6764075,80,SUPPLIER,ENABLE ABILITY,300000020465080
Portsmouth City Council,PCC,Children's and Education Services,Other Children and Family Services,Children's Services and Education,Third Party Payments,Other establishments,12-Feb-24,6764075,80,SUPPLIER,ENABLE ABILITY,300000020465080
Portsmouth City Council,PCC,Children's and Education Services,Family Support Services,Children's Services and Education,Third Party Payments,Other establishments,12-Feb-24,6764075,80,SUPPLIER,ENABLE ABILITY,300000020465080
Portsmouth City Council,PCC,Children's and Education Services,Other Children and Family Services,Children's Services and Education,Third Party Payments,Other establishments,12-Feb-24,6764075,80,SUPPLIER,ENABLE ABILITY,300000020465080
Portsmouth City Council,PCC,Children's and Education Services,Family Support Services,Children's Services and Education,Third Party Payments,Other establishments,12-Feb-24,6764075,80,SUPPLIER,ENABLE ABILITY,300000020465080
Portsmouth City Council,PCC,Children's and Education Services,Family Support Services,Children's Services and Education,Third Party Payments,Other establishments,12-Feb-24,6764075,80,SUPPLIER,ENABLE ABILITY,300000020465080
Portsmouth City Council,PCC,Children's and Education Services,Family Support Services,Children's Services and Education,Third Party Payments,Other establishments,12-Feb-24,6764075,80,SUPPLIER,ENABLE ABILITY,300000020465080
Portsmouth City Council,PCC,Children's and Education Services,Family Support Services,Children's Services and Education,Third Party Payments,Other establishments,12-Feb-24,6764075,80,SUPPLIER,ENABLE ABILITY,300000020465080
Portsmouth City Council,PCC,Children's and Education Services,Children Looked After,Children's Services and Education,Third Party Payments,Other establishments,20-Feb-24,6765538,996,PUBLIC LIMITED COMPANY,FAITH HOPE AND FAMILIES LIMITED,300000168088079
Portsmouth City Council,PCC,Children's and Education Services,Family Support Services,Children's Services and Education,Third Party Payments,Other establishments,01-Feb-24,6762382,725,LIMITED COMPANY,TWYFORD HOMES LTD,300000619351386
Portsmouth City Council,PCC,Children's and Education Services,Children Looked After,Children's Services and Education,Third Party Payments,Other establishments,20-Feb-24,6765605,0.05,LIMITED COMPANY,UNITY ONE CARE SOLUTION LTD,300000632417516
Portsmouth City Council,PCC,Children's and Education Services,Children Looked After,Children's Services and Education,Third Party Payments,Other establishments,20-Feb-24,6765605,"1,214.29",LIMITED COMPANY,UNITY ONE CARE SOLUTION LTD,300000632417516
Portsmouth City Council,PCC,Children's and Education Services,Children Looked After,Children's Services and Education,Third Party Payments,Other establishments,20-Feb-24,6765605,"4,257.14",LIMITED COMPANY,UNITY ONE CARE SOLUTION LTD,300000632417516
Portsmouth City Council,PCC,Children's and Education Services,Children Looked After,Children's Services and Education,Third Party Payments,Other establishments,20-Feb-24,6765605,"6,385.71",LIMITED COMPANY,UNITY ONE CARE SOLUTION LTD,300000632417516
Portsmouth City Council,PCC,Children's and Education Services,Children Looked After,Children's Services and Education,Third Party Payments,Other establishments,20-Feb-24,6765605,"7,285.71",LIMITED COMPANY,UNITY ONE CARE SOLUTION LTD,300000632417516
Portsmouth City Council,PCC,Children's and Education Services,Children Looked After,Children's Services and Education,Third Party Payments,Other establishments,20-Feb-24,6765605,"7,450.00",LIMITED COMPANY,UNITY ONE CARE SOLUTION LTD,300000632417516
Portsmouth City Council,PCC,Children's and Education Services,Children Looked After,Children's Services and Education,Third Party Payments,Other establishments,20-Feb-24,6765605,"8,500.00",LIMITED COMPANY,UNITY ONE CARE SOLUTION LTD,300000632417516
Portsmouth City Council,PCC,Children's and Education Services,Children Looked After,Children's Services and Education,Third Party Payments,Other establishments,20-Feb-24,6765605,0.05,LIMITED COMPANY,UNITY ONE CARE SOLUTION LTD,300000632417516
Portsmouth City Council,PCC,Children's and Education Services,Children Looked After,Children's Services and Education,Third Party Payments,Other establishments,20-Feb-24,6765605,"4,857.14",LIMITED COMPANY,UNITY ONE CARE SOLUTION LTD,300000632417516
Portsmouth City Council,PCC,Children's and Education Services,Children Looked After,Children's Services and Education,Third Party Payments,Other establishments,20-Feb-24,6765605,"7,285.71",LIMITED COMPANY,UNITY ONE CARE SOLUTION LTD,300000632417516
Portsmouth City Council,PCC,Children's and Education Services,Children Looked After,Children's Services and Education,Third Party Payments,Other establishments,20-Feb-24,6765605,"8,500.00",LIMITED COMPANY,UNITY ONE CARE SOLUTION LTD,300000632417516
Portsmouth City Council,PCC,Children's and Education Services,Children Looked After,Children's Services and Education,Third Party Payments,Other establishments,20-Feb-24,6765605,"8,500.00",LIMITED COMPANY,UNITY ONE CARE SOLUTION LTD,300000632417516
Portsmouth City Council,PCC,Children's and Education Services,Children Looked After,Children's Services and Education,Third Party Payments,Other establishments,20-Feb-24,6765605,"8,500.00",LIMITED COMPANY,UNITY ONE CARE SOLUTION LTD,300000632417516
Portsmouth City Council,PCC,Children's and Education Services,Family Support Services,Children's Services and Education,Third Party Payments,Other establishments,12-Feb-24,6764075,80,SUPPLIER,ENABLE ABILITY,300000020465080
